"SERVICE_CODE","ORGANISATION_UNIT","EXPENDITURE_CATEGORY","EXPENDITURE_DESCRIPTION","EXPENDITURE_CODE","NARRATIVE","DATE","TRANSATION_CODE","NET_AMOUNT","SUPPLIER_CODE","SUPPLIER_NAME","FROM_DATE","TO_DATE","FINANCIAL_PERIOD_YEAR"
"P&V","MYDDLETON HSE HERITAGE CENTRE","EMPLOYEES","APPOINTMENT EXPENSES","1301","P115612-SERVICE-Catering DM Vacancy Advertising Costs",13/12/2021 00:00:00,"256889",448,"SA0133","SOWERBY ADVERTISING AND COMMUNICATIONS",29/11/2021 00:00:00,26/12/2021 00:00:00,"P09-2022"
"P&V","NORTH AREA RANGERS","EMPLOYEES","APPOINTMENT EXPENSES","1301","P115601-SERVICE-RANGER SERVICES  MGR ADVERTISING COSTS",13/12/2021 00:00:00,"256843",925.1,"SA0133","SOWERBY ADVERTISING AND COMMUNICATIONS",29/11/2021 00:00:00,26/12/2021 00:00:00,"P09-2022"
,"LEE VALLEY WHITE WATER CENTRE","EMPLOYEES","APPOINTMENT EXPENSES","1301","P115497-SERVICE-VACANCY ADVERT COSTS WWC ACTIVITY INSTRUCTORS",13/12/2021 00:00:00,"256625",730,"SA0133","SOWERBY ADVERTISING AND COMMUNICATIONS",29/11/2021 00:00:00,26/12/2021 00:00:00,"P09-2022"
"R&B","CORPORATE TRAINING","EMPLOYEES","TRAINING EXPENSES","1305","P115452-SERVICE-DSO Refresher Training 8/12/2021",13/12/2021 00:00:00,"256717",500,"TR0618","TRAINING, CONSULTANCY AND PRACTICE LTD",29/11/2021 00:00:00,26/12/2021 00:00:00,"P09-2022"
"R&B","CORPORATE TRAINING","EMPLOYEES","TRAINING EXPENSES","1305","P115607-SERVICE-E Learning Disability Essentials",13/12/2021 00:00:00,"256865",1750,"AC0479","DISABLED ENABLED LIMITED t/a ACCESS ABLE",29/11/2021 00:00:00,26/12/2021 00:00:00,"P09-2022"
"R&B","CORPORATE TRAINING","EMPLOYEES","TRAINING EXPENSES","1305","P115618-SERVICE-FAW A Barbagello Riding Centre 15/12/21",15/12/2021 00:00:00,"257005",379,"BR0069","BRITISH RED CROSS SOCIETY",29/11/2021 00:00:00,26/12/2021 00:00:00,"P09-2022"
"P&V","SOUTH AREA RANGERS","EMPLOYEES","TRAINING EXPENSES","1305","P115746-SERVICE-SWATG Annual Group Subscription",20/12/2021 00:00:00,"257180",415,"SA0137","SAFFRON WALDEN AGRICULTURAL TRAINING GROUP",29/11/2021 00:00:00,26/12/2021 00:00:00,"P09-2022"
"P&V","SOUTH AREA RANGERS","EMPLOYEES","TRAINING EXPENSES","1305","P115747-SERVICE-Brush Cutter Training - 1 Day",26/12/2021 00:00:00,"257477",625,"SA0137","SAFFRON WALDEN AGRICULTURAL TRAINING GROUP",29/11/2021 00:00:00,26/12/2021 00:00:00,"P09-2022"
"R&B","NON DISTRIBUTED COSTS","EMPLOYEES","SUPERANNUATION ADDED YEARS","1310","LONDON PENSIONS FUND AUTHORITY",7/12/2021 00:00:00,"256357",5322.66,"LO0031","LONDON PENSIONS FUND AUTHORITY",29/11/2021 00:00:00,26/12/2021 00:00:00,"P09-2022"
,"LEE VALLEY MARINA STANSTEAD","EMPLOYEES","CRB CHECKS","1330","ADMIN FEE",13/12/2021 00:00:00,"256520",18,"DD0119","DUE DILIGENCE CHECKING LIMITED",29/11/2021 00:00:00,26/12/2021 00:00:00,"P09-2022"
,"LEE VALLEY MARINA STANSTEAD","EMPLOYEES","CRB CHECKS","1330","DBS CHECKS",13/12/2021 00:00:00,"256520",23,"DD0119","DUE DILIGENCE CHECKING LIMITED",29/11/2021 00:00:00,26/12/2021 00:00:00,"P09-2022"
,"LEE VALLEY CARAVAN PARK","EMPLOYEES","CRB CHECKS","1330","DBS CHECKS",13/12/2021 00:00:00,"256520",36,"DD0119","DUE DILIGENCE CHECKING LIMITED",29/11/2021 00:00:00,26/12/2021 00:00:00,"P09-2022"
"P&V","POLICY & PERFORMANCE (L&E)","EMPLOYEES","CRB CHECKS","1330","DBS CHECK",13/12/2021 00:00:00,"256520",23,"DD0119","DUE DILIGENCE CHECKING LIMITED",29/11/2021 00:00:00,26/12/2021 00:00:00,"P09-2022"
"P&V","POLICY & PERFORMANCE (L&E)","EMPLOYEES","CRB CHECKS","1330","ADMIN FEE",13/12/2021 00:00:00,"256520",18,"DD0119","DUE DILIGENCE CHECKING LIMITED",29/11/2021 00:00:00,26/12/2021 00:00:00,"P09-2022"
"P&V","POLICY & PERFORMANCE (L&E)","EMPLOYEES","CRB CHECKS","1330","ADMIN FEE",13/12/2021 00:00:00,"256520",18,"DD0119","DUE DILIGENCE CHECKING LIMITED",29/11/2021 00:00:00,26/12/2021 00:00:00,"P09-2022"
,"LEE VALLEY VELOPARK","EMPLOYEES","CRB CHECKS","1330","DBS CHECKS",13/12/2021 00:00:00,"256520",23,"DD0119","DUE DILIGENCE CHECKING LIMITED",29/11/2021 00:00:00,26/12/2021 00:00:00,"P09-2022"
,"LEE VALLEY VELOPARK","EMPLOYEES","CRB CHECKS","1330","ADMIN FEE",13/12/2021 00:00:00,"256520",18,"DD0119","DUE DILIGENCE CHECKING LIMITED",29/11/2021 00:00:00,26/12/2021 00:00:00,"P09-2022"
,"LV HOCKEY AND TENNIS CENTRE","EMPLOYEES","CRB CHECKS","1330","DBS CHECKS",13/12/2021 00:00:00,"256520",46,"DD0119","DUE DILIGENCE CHECKING LIMITED",29/11/2021 00:00:00,26/12/2021 00:00:00,"P09-2022"
,"LV HOCKEY AND TENNIS CENTRE","EMPLOYEES","CRB CHECKS","1330","ADMIN FEE",13/12/2021 00:00:00,"256520",36,"DD0119","DUE DILIGENCE CHECKING LIMITED",29/11/2021 00:00:00,26/12/2021 00:00:00,"P09-2022"
,"LEE VALLEY RIDING CENTRE","EMPLOYEES","CRB CHECKS","1330","DBS CHECKS",13/12/2021 00:00:00,"256520",40,"DD0119","DUE DILIGENCE CHECKING LIMITED",29/11/2021 00:00:00,26/12/2021 00:00:00,"P09-2022"
,"LEE VALLEY RIDING CENTRE","EMPLOYEES","CRB CHECKS","1330","ADMIN FEE",13/12/2021 00:00:00,"256520",54,"DD0119","DUE DILIGENCE CHECKING LIMITED",29/11/2021 00:00:00,26/12/2021 00:00:00,"P09-2022"
,"LEE VALLEY ICE CENTRE","EMPLOYEES","CRB CHECKS","1330","DBS CHECKS",13/12/2021 00:00:00,"256520",23,"DD0119","DUE DILIGENCE CHECKING LIMITED",29/11/2021 00:00:00,26/12/2021 00:00:00,"P09-2022"
,"LEE VALLEY ICE CENTRE","EMPLOYEES","CRB CHECKS","1330","ADMIN FEE",13/12/2021 00:00:00,"256520",18,"DD0119","DUE DILIGENCE CHECKING LIMITED",29/11/2021 00:00:00,26/12/2021 00:00:00,"P09-2022"
,"LV LEISURE CENTRE CAMPSITE","EMPLOYEES","CRB CHECKS","1330","DBS CHECK",13/12/2021 00:00:00,"256520",18,"DD0119","DUE DILIGENCE CHECKING LIMITED",29/11/2021 00:00:00,26/12/2021 00:00:00,"P09-2022"
,"LEE VALLEY ATHLETICS CENTRE","EMPLOYEES","CRB CHECKS","1330","DBS CHECKS",13/12/2021 00:00:00,"256520",138,"DD0119","DUE DILIGENCE CHECKING LIMITED",29/11/2021 00:00:00,26/12/2021 00:00:00,"P09-2022"
,"LEE VALLEY ATHLETICS CENTRE","EMPLOYEES","CRB CHECKS","1330","ADMIN FEE",13/12/2021 00:00:00,"256520",108,"DD0119","DUE DILIGENCE CHECKING LIMITED",29/11/2021 00:00:00,26/12/2021 00:00:00,"P09-2022"
,"LEE VALLEY WHITE WATER CENTRE","EMPLOYEES","CRB CHECKS","1330","ADMIN FEE",13/12/2021 00:00:00,"256520",144,"DD0119","DUE DILIGENCE CHECKING LIMITED",29/11/2021 00:00:00,26/12/2021 00:00:00,"P09-2022"
,"LEE VALLEY WHITE WATER CENTRE","EMPLOYEES","CRB CHECKS","1330","DBS CHECKS",13/12/2021 00:00:00,"256520",269,"DD0119","DUE DILIGENCE CHECKING LIMITED",29/11/2021 00:00:00,26/12/2021 00:00:00,"P09-2022"
"CEO","LVLC SERVICE CHARGE","PREMISES RELATED EXPENDITURE","SCHEDULED GROUND MAINTENANCE","2111","GLENDALE GROUNDS MANAGEMENT LI",15/12/2021 00:00:00,"256307",1483.59,"GL0214","GLENDALE GROUNDS MANAGEMENT LIMITED",29/11/2021 00:00:00,26/12/2021 00:00:00,"P09-2022"
"CEO","LVLC SERVICE CHARGE","PREMISES RELATED EXPENDITURE","SCHEDULED GROUND MAINTENANCE","2111","GLENDALE GROUNDS MANAGEMENT LI",15/12/2021 00:00:00,"256307",54.13,"GL0214","GLENDALE GROUNDS MANAGEMENT LIMITED",29/11/2021 00:00:00,26/12/2021 00:00:00,"P09-2022"
"CEO","LVLC SERVICE CHARGE","PREMISES RELATED EXPENDITURE","SCHEDULED GROUND MAINTENANCE","2111","P114454-SERVICE-Picketts Lock Boundary Cut Back",6/12/2021 00:00:00,"256309",965.61,"GL0214","GLENDALE GROUNDS MANAGEMENT LIMITED",29/11/2021 00:00:00,26/12/2021 00:00:00,"P09-2022"
"CEO","LVLC SERVICE CHARGE","PREMISES RELATED EXPENDITURE","SCHEDULED GROUND MAINTENANCE","2111","P114454-SERVICE-Picketts Lock Tree Lifting - Car Park & Plaza",6/12/2021 00:00:00,"256309",996.79,"GL0214","GLENDALE GROUNDS MANAGEMENT LIMITED",29/11/2021 00:00:00,26/12/2021 00:00:00,"P09-2022"
"CEO","LVLC SERVICE CHARGE","PREMISES RELATED EXPENDITURE","SCHEDULED GROUND MAINTENANCE","2111","P114454-SERVICE-Picketts Lock Tree Lifting",6/12/2021 00:00:00,"256309",444.69,"GL0214","GLENDALE GROUNDS MANAGEMENT LIMITED",29/11/2021 00:00:00,26/12/2021 00:00:00,"P09-2022"
"P&V","MYDDELTON HOUSE","PREMISES RELATED EXPENDITURE","CONTRACT CLEANING","2120","P112094-SERVICE-Myddelton House Cleaning Contract",16/12/2021 00:00:00,"257132",3055.52,"BR0632","BRITANNIA SERVICES GROUP LTD",29/11/2021 00:00:00,26/12/2021 00:00:00,"P09-2022"
,"LEE VALLEY CAMPSITE","PREMISES RELATED EXPENDITURE","CONTRACT CLEANING","2120","P115424-SERVICE-Staff static van deep clean",6/12/2021 00:00:00,"256274",275,"LI0305","LIMPIAR CLEANING",29/11/2021 00:00:00,26/12/2021 00:00:00,"P09-2022"
,"LEE VALLEY CAMPSITE","PREMISES RELATED EXPENDITURE","CONTRACT CLEANING","2120","P115556-SERVICE-Monthly site cleaning Nov 21",8/12/2021 00:00:00,"256548",1300,"LI0305","LIMPIAR CLEANING",29/11/2021 00:00:00,26/12/2021 00:00:00,"P09-2022"
,"LEE VALLEY CAMPSITE","PREMISES RELATED EXPENDITURE","CONTRACT CLEANING","2120","P115815-SERVICE-Deep Clean staff static 2",22/12/2021 00:00:00,"257285",275,"LI0305","LIMPIAR CLEANING",29/11/2021 00:00:00,26/12/2021 00:00:00,"P09-2022"
,"LEE VALLEY CARAVAN PARK","PREMISES RELATED EXPENDITURE","CONTRACT CLEANING","2120","P115509-SERVICE-Window cleaning",7/12/2021 00:00:00,"256550",150,"LI0305","LIMPIAR CLEANING",29/11/2021 00:00:00,26/12/2021 00:00:00,"P09-2022"
,"LEE VALLEY CARAVAN PARK","PREMISES RELATED EXPENDITURE","CONTRACT CLEANING","2120","P115507-SERVICE-Cleaning contract - lodges & wigwams",8/12/2021 00:00:00,"256551",2554.5,"LI0305","LIMPIAR CLEANING",29/11/2021 00:00:00,26/12/2021 00:00:00,"P09-2022"
,"LEE VALLEY CARAVAN PARK","PREMISES RELATED EXPENDITURE","CONTRACT CLEANING","2120","P115507-SERVICE-cleaning supplies",8/12/2021 00:00:00,"256551",25,"LI0305","LIMPIAR CLEANING",29/11/2021 00:00:00,26/12/2021 00:00:00,"P09-2022"
,"LEE VALLEY CARAVAN PARK","PREMISES RELATED EXPENDITURE","CONTRACT CLEANING","2120","P115789-SERVICE-Monthly service",20/12/2021 00:00:00,"256970",90.39,"IN0012","INITIAL WASHROOM HYGIENE",29/11/2021 00:00:00,26/12/2021 00:00:00,"P09-2022"
"P&V","NORTH AREA RANGERS","PREMISES RELATED EXPENDITURE","CONTRACT CLEANING","2120","GLENDALE GROUNDS MANAGEMENT LI",15/12/2021 00:00:00,"256307",197.99,"GL0214","GLENDALE GROUNDS MANAGEMENT LIMITED",29/11/2021 00:00:00,26/12/2021 00:00:00,"P09-2022"
"P&V","GUNPOWDER PARK","PREMISES RELATED EXPENDITURE","CONTRACT CLEANING","2120","GLENDALE GROUNDS MANAGEMENT LI",15/12/2021 00:00:00,"256307",271.09,"GL0214","GLENDALE GROUNDS MANAGEMENT LIMITED",29/11/2021 00:00:00,26/12/2021 00:00:00,"P09-2022"
"P&V","RIVER LEE COUNTRY PARK","PREMISES RELATED EXPENDITURE","CONTRACT CLEANING","2120","GLENDALE GROUNDS MANAGEMENT LI",15/12/2021 00:00:00,"256307",542.17,"GL0214","GLENDALE GROUNDS MANAGEMENT LIMITED",29/11/2021 00:00:00,26/12/2021 00:00:00,"P09-2022"
,"LEE VALLEY VELOPARK","PREMISES RELATED EXPENDITURE","CONTRACT CLEANING","2120","P115402-SERVICE-Contract Cleaning",6/12/2021 00:00:00,"256181",584.85,"CA0498","CASNA GROUP",29/11/2021 00:00:00,26/12/2021 00:00:00,"P09-2022"
,"LEE VALLEY VELOPARK","PREMISES RELATED EXPENDITURE","CONTRACT CLEANING","2120","P114763-SERVICE-Contract Cleaning Venue",6/12/2021 00:00:00,"256256",4994,"JA0178","JAK JAK LTD",29/11/2021 00:00:00,26/12/2021 00:00:00,"P09-2022"
,"LEE VALLEY VELOPARK","PREMISES RELATED EXPENDITURE","CONTRACT CLEANING","2120","P115522-SERVICE-Contract Cleaning",14/12/2021 00:00:00,"256283",1204.35,"CA0498","CASNA GROUP",29/11/2021 00:00:00,26/12/2021 00:00:00,"P09-2022"
,"LEE VALLEY VELOPARK","PREMISES RELATED EXPENDITURE","CONTRACT CLEANING","2120","P115761-SERVICE-Skip Order",20/12/2021 00:00:00,"256627",1050,"BR0453","BREWSTERS WASTE MANAGEMENT LIMITED",29/11/2021 00:00:00,26/12/2021 00:00:00,"P09-2022"
,"LEE VALLEY VELOPARK","PREMISES RELATED EXPENDITURE","CONTRACT CLEANING","2120","P115759-SERVICE-Contract Cleaning 28 Nov",22/12/2021 00:00:00,"256697",1204.35,"CA0498","CASNA GROUP",29/11/2021 00:00:00,26/12/2021 00:00:00,"P09-2022"
,"LEE VALLEY VELOPARK","PREMISES RELATED EXPENDITURE","CONTRACT CLEANING","2120","P115775-SERVICE-Contract Cleaning 5 Dec",20/12/2021 00:00:00,"257134",1109.04,"CA0498","CASNA GROUP",29/11/2021 00:00:00,26/12/2021 00:00:00,"P09-2022"
,"LV LEISURE CENTRE CAMPSITE","PREMISES RELATED EXPENDITURE","CONTRACT CLEANING","2120","P115577-SERVICE-Monthly clean",13/12/2021 00:00:00,"256549",1209,"LI0305","LIMPIAR CLEANING",29/11/2021 00:00:00,26/12/2021 00:00:00,"P09-2022"
,"LEE VALLEY RIDING CENTRE","PREMISES RELATED EXPENDITURE","CLEANING CONTRACT","2121","P113893-SERVICE-centre cleaning august 21 - dec 21",6/12/2021 00:00:00,"256315",1082.01,"MA0015","MAYFAIR CLEANING COMPANY LIMITED",29/11/2021 00:00:00,26/12/2021 00:00:00,"P09-2022"
,"LEE VALLEY WHITE WATER CENTRE","PREMISES RELATED EXPENDITURE","CLEANING CONTRACT","2121","P115322-SERVICE-November to Jan Contract Cleaning",6/12/2021 00:00:00,"256284",793.73,"CA0498","CASNA GROUP",29/11/2021 00:00:00,26/12/2021 00:00:00,"P09-2022"
,"LEE VALLEY WHITE WATER CENTRE","PREMISES RELATED EXPENDITURE","CLEANING CONTRACT","2121","P115322-SERVICE-November to Jan Contract Cleaning",20/12/2021 00:00:00,"256950",559.79,"CA0498","CASNA GROUP",29/11/2021 00:00:00,26/12/2021 00:00:00,"P09-2022"
,"LEE VALLEY WHITE WATER CENTRE","PREMISES RELATED EXPENDITURE","CLEANING CONTRACT","2121","P115322-SERVICE-November to Jan Contract Cleaning",20/12/2021 00:00:00,"256989",768.66,"CA0498","CASNA GROUP",29/11/2021 00:00:00,26/12/2021 00:00:00,"P09-2022"
,"LEE VALLEY MARINA STANSTEAD","PREMISES RELATED EXPENDITURE","GM MAIN CONTRACT SCHEDULED","2141","GLENDALE GROUNDS MANAGEMENT LI",15/12/2021 00:00:00,"256307",189.21,"GL0214","GLENDALE GROUNDS MANAGEMENT LIMITED",29/11/2021 00:00:00,26/12/2021 00:00:00,"P09-2022"
,"LEE VALLEY WATERWORKS CENTRE","PREMISES RELATED EXPENDITURE","GM MAIN CONTRACT SCHEDULED","2141","GLENDALE GROUNDS MANAGEMENT LI",15/12/2021 00:00:00,"256307",250.67,"GL0214","GLENDALE GROUNDS MANAGEMENT LIMITED",29/11/2021 00:00:00,26/12/2021 00:00:00,"P09-2022"
,"LEE VALLEY WATERWORKS CENTRE","PREMISES RELATED EXPENDITURE","GM MAIN CONTRACT SCHEDULED","2141","GLENDALE GROUNDS MANAGEMENT LI",15/12/2021 00:00:00,"256307",93.18,"GL0214","GLENDALE GROUNDS MANAGEMENT LIMITED",29/11/2021 00:00:00,26/12/2021 00:00:00,"P09-2022"
,"LEE VALLEY FARM HAYES HILL","PREMISES RELATED EXPENDITURE","GM MAIN CONTRACT SCHEDULED","2141","GLENDALE GROUNDS MANAGEMENT LI",15/12/2021 00:00:00,"256307",153,"GL0214","GLENDALE GROUNDS MANAGEMENT LIMITED",29/11/2021 00:00:00,26/12/2021 00:00:00,"P09-2022"
"P&V","EAST INDIA DOCK AND BOW CREEK","PREMISES RELATED EXPENDITURE","GM MAIN CONTRACT SCHEDULED","2141","GLENDALE GROUNDS MANAGEMENT LI",15/12/2021 00:00:00,"256307",465.88,"GL0214","GLENDALE GROUNDS MANAGEMENT LIMITED",29/11/2021 00:00:00,26/12/2021 00:00:00,"P09-2022"
"P&V","EAST INDIA DOCK AND BOW CREEK","PREMISES RELATED EXPENDITURE","GM MAIN CONTRACT SCHEDULED","2141","GLENDALE GROUNDS MANAGEMENT LI",15/12/2021 00:00:00,"256307",417.18,"GL0214","GLENDALE GROUNDS MANAGEMENT LIMITED",29/11/2021 00:00:00,26/12/2021 00:00:00,"P09-2022"
"P&V","NORTH AREA RANGERS","PREMISES RELATED EXPENDITURE","GM MAIN CONTRACT SCHEDULED","2141","GLENDALE GROUNDS MANAGEMENT LI",15/12/2021 00:00:00,"256307",2805.49,"GL0214","GLENDALE GROUNDS MANAGEMENT LIMITED",29/11/2021 00:00:00,26/12/2021 00:00:00,"P09-2022"
"P&V","SOUTH AREA RANGERS","PREMISES RELATED EXPENDITURE","GM MAIN CONTRACT SCHEDULED","2141","GLENDALE GROUNDS MANAGEMENT LI",15/12/2021 00:00:00,"256307",372.7,"GL0214","GLENDALE GROUNDS MANAGEMENT LIMITED",29/11/2021 00:00:00,26/12/2021 00:00:00,"P09-2022"
"P&V","SOUTH AREA RANGERS","PREMISES RELATED EXPENDITURE","GM MAIN CONTRACT SCHEDULED","2141","GLENDALE GROUNDS MANAGEMENT LI",15/12/2021 00:00:00,"256307",3230.07,"GL0214","GLENDALE GROUNDS MANAGEMENT LIMITED",29/11/2021 00:00:00,26/12/2021 00:00:00,"P09-2022"
"P&V","ABBEY GARDENS","PREMISES RELATED EXPENDITURE","GM MAIN CONTRACT SCHEDULED","2141","GLENDALE GROUNDS MANAGEMENT LI",15/12/2021 00:00:00,"256307",1421.16,"GL0214","GLENDALE GROUNDS MANAGEMENT LIMITED",29/11/2021 00:00:00,26/12/2021 00:00:00,"P09-2022"
"P&V","GUNPOWDER PARK","PREMISES RELATED EXPENDITURE","GM MAIN CONTRACT SCHEDULED","2141","GLENDALE GROUNDS MANAGEMENT LI",15/12/2021 00:00:00,"256307",1401.51,"GL0214","GLENDALE GROUNDS MANAGEMENT LIMITED",29/11/2021 00:00:00,26/12/2021 00:00:00,"P09-2022"
"P&V","RIVER LEE COUNTRY PARK","PREMISES RELATED EXPENDITURE","GM MAIN CONTRACT SCHEDULED","2141","GLENDALE GROUNDS MANAGEMENT LI",15/12/2021 00:00:00,"256307",8179.78,"GL0214","GLENDALE GROUNDS MANAGEMENT LIMITED",29/11/2021 00:00:00,26/12/2021 00:00:00,"P09-2022"
"P&V","RIVER LEE COUNTRY PARK","PREMISES RELATED EXPENDITURE","GM MAIN CONTRACT SCHEDULED","2141","GLENDALE GROUNDS MANAGEMENT LI",15/12/2021 00:00:00,"256307",1304.46,"GL0214","GLENDALE GROUNDS MANAGEMENT LIMITED",29/11/2021 00:00:00,26/12/2021 00:00:00,"P09-2022"
,"LEE VALLEY VELOPARK","PREMISES RELATED EXPENDITURE","GM MAIN CONTRACT SCHEDULED","2141","GLENDALE GROUNDS MANAGEMENT LI",15/12/2021 00:00:00,"256307",3490.02,"GL0214","GLENDALE GROUNDS MANAGEMENT LIMITED",29/11/2021 00:00:00,26/12/2021 00:00:00,"P09-2022"
,"LV HOCKEY AND TENNIS CENTRE","PREMISES RELATED EXPENDITURE","GM MAIN CONTRACT SCHEDULED","2141","GLENDALE GROUNDS MANAGEMENT LI",15/12/2021 00:00:00,"256307",2229.6,"GL0214","GLENDALE GROUNDS MANAGEMENT LIMITED",29/11/2021 00:00:00,26/12/2021 00:00:00,"P09-2022"
"P&V","THREE MILLS","PREMISES RELATED EXPENDITURE","GM MAIN CONTRACT SCHEDULED","2141","GLENDALE GROUNDS MANAGEMENT LI",15/12/2021 00:00:00,"256307",796.99,"GL0214","GLENDALE GROUNDS MANAGEMENT LIMITED",29/11/2021 00:00:00,26/12/2021 00:00:00,"P09-2022"
,"LEE VALLEY RIDING CENTRE","PREMISES RELATED EXPENDITURE","GM MAIN CONTRACT SCHEDULED","2141","GLENDALE GROUNDS MANAGEMENT LI",15/12/2021 00:00:00,"256307",231.08,"GL0214","GLENDALE GROUNDS MANAGEMENT LIMITED",29/11/2021 00:00:00,26/12/2021 00:00:00,"P09-2022"
,"LEE VALLEY ICE CENTRE","PREMISES RELATED EXPENDITURE","GM MAIN CONTRACT SCHEDULED","2141","GLENDALE GROUNDS MANAGEMENT LI",15/12/2021 00:00:00,"256307",164.91,"GL0214","GLENDALE GROUNDS MANAGEMENT LIMITED",29/11/2021 00:00:00,26/12/2021 00:00:00,"P09-2022"
"P&V","FORMER LV LIDO SITE","PREMISES RELATED EXPENDITURE","GM MAIN CONTRACT SCHEDULED","2141","GLENDALE GROUNDS MANAGEMENT LI",15/12/2021 00:00:00,"256307",545.95,"GL0214","GLENDALE GROUNDS MANAGEMENT LIMITED",29/11/2021 00:00:00,26/12/2021 00:00:00,"P09-2022"
,"LEE VALLEY ATHLETICS CENTRE","PREMISES RELATED EXPENDITURE","GM MAIN CONTRACT SCHEDULED","2141","GLENDALE GROUNDS MANAGEMENT LI",15/12/2021 00:00:00,"256307",327.6,"GL0214","GLENDALE GROUNDS MANAGEMENT LIMITED",29/11/2021 00:00:00,26/12/2021 00:00:00,"P09-2022"
,"LEE VALLEY WHITE WATER CENTRE","PREMISES RELATED EXPENDITURE","GM MAIN CONTRACT SCHEDULED","2141","GLENDALE GROUNDS MANAGEMENT LI",15/12/2021 00:00:00,"256307",1406.46,"GL0214","GLENDALE GROUNDS MANAGEMENT LIMITED",29/11/2021 00:00:00,26/12/2021 00:00:00,"P09-2022"
,"LEE VALLEY WATERWORKS CENTRE","PREMISES RELATED EXPENDITURE","GM MAIN CONTRACT UNSCHEDULED","2142","P115461-SERVICE-Tree Works at WaterWorks Centre",21/12/2021 00:00:00,"257220",550,"PA0222","PARKIN & PARKER TREE SPECIALISTS",29/11/2021 00:00:00,26/12/2021 00:00:00,"P09-2022"
"P&V","SOUTH AREA RANGERS","PREMISES RELATED EXPENDITURE","GM MAIN CONTRACT UNSCHEDULED","2142","P111865-SERVICE-Japanese Knowtweed Treatment at Riding Centre",26/12/2021 00:00:00,"256558",285,"GO0044","S.H.GOSS & CO LTD",29/11/2021 00:00:00,26/12/2021 00:00:00,"P09-2022"
,"LEE VALLEY WATERWORKS CENTRE","PREMISES RELATED EXPENDITURE","GM HORTICULTURE SCHEDULED","2143","GLENDALE GROUNDS MANAGEMENT LI",15/12/2021 00:00:00,"256307",83.42,"GL0214","GLENDALE GROUNDS MANAGEMENT LIMITED",29/11/2021 00:00:00,26/12/2021 00:00:00,"P09-2022"
"P&V","NORTH AREA RANGERS","PREMISES RELATED EXPENDITURE","GM HORTICULTURE SCHEDULED","2143","GLENDALE GROUNDS MANAGEMENT LI",15/12/2021 00:00:00,"256307",124.03,"GL0214","GLENDALE GROUNDS MANAGEMENT LIMITED",29/11/2021 00:00:00,26/12/2021 00:00:00,"P09-2022"
"P&V","SOUTH AREA RANGERS","PREMISES RELATED EXPENDITURE","GM HORTICULTURE SCHEDULED","2143","GLENDALE GROUNDS MANAGEMENT LI",15/12/2021 00:00:00,"256307",71.11,"GL0214","GLENDALE GROUNDS MANAGEMENT LIMITED",29/11/2021 00:00:00,26/12/2021 00:00:00,"P09-2022"
"P&V","ABBEY GARDENS","PREMISES RELATED EXPENDITURE","GM HORTICULTURE SCHEDULED","2143","GLENDALE GROUNDS MANAGEMENT LI",15/12/2021 00:00:00,"256307",969.08,"GL0214","GLENDALE GROUNDS MANAGEMENT LIMITED",29/11/2021 00:00:00,26/12/2021 00:00:00,"P09-2022"
"P&V","GUNPOWDER PARK","PREMISES RELATED EXPENDITURE","GM HORTICULTURE SCHEDULED","2143","GLENDALE GROUNDS MANAGEMENT LI",15/12/2021 00:00:00,"256307",127.21,"GL0214","GLENDALE GROUNDS MANAGEMENT LIMITED",29/11/2021 00:00:00,26/12/2021 00:00:00,"P09-2022"
"P&V","RIVER LEE COUNTRY PARK","PREMISES RELATED EXPENDITURE","GM HORTICULTURE SCHEDULED","2143","GLENDALE GROUNDS MANAGEMENT LI",15/12/2021 00:00:00,"256307",66.01,"GL0214","GLENDALE GROUNDS MANAGEMENT LIMITED",29/11/2021 00:00:00,26/12/2021 00:00:00,"P09-2022"
,"LEE VALLEY VELOPARK","PREMISES RELATED EXPENDITURE","GM HORTICULTURE SCHEDULED","2143","GLENDALE GROUNDS MANAGEMENT LI",15/12/2021 00:00:00,"256307",550,"GL0214","GLENDALE GROUNDS MANAGEMENT LIMITED",29/11/2021 00:00:00,26/12/2021 00:00:00,"P09-2022"
,"LV HOCKEY AND TENNIS CENTRE","PREMISES RELATED EXPENDITURE","GM HORTICULTURE SCHEDULED","2143","GLENDALE GROUNDS MANAGEMENT LI",15/12/2021 00:00:00,"256307",696.85,"GL0214","GLENDALE GROUNDS MANAGEMENT LIMITED",29/11/2021 00:00:00,26/12/2021 00:00:00,"P09-2022"
"P&V","THREE MILLS","PREMISES RELATED EXPENDITURE","GM HORTICULTURE SCHEDULED","2143","GLENDALE GROUNDS MANAGEMENT LI",15/12/2021 00:00:00,"256307",26.45,"GL0214","GLENDALE GROUNDS MANAGEMENT LIMITED",29/11/2021 00:00:00,26/12/2021 00:00:00,"P09-2022"
,"LEE VALLEY RIDING CENTRE","PREMISES RELATED EXPENDITURE","GM HORTICULTURE SCHEDULED","2143","GLENDALE GROUNDS MANAGEMENT LI",15/12/2021 00:00:00,"256307",6.61,"GL0214","GLENDALE GROUNDS MANAGEMENT LIMITED",29/11/2021 00:00:00,26/12/2021 00:00:00,"P09-2022"
"P&V","FORMER LV LIDO SITE","PREMISES RELATED EXPENDITURE","GM HORTICULTURE SCHEDULED","2143","GLENDALE GROUNDS MANAGEMENT LI",15/12/2021 00:00:00,"256307",6.31,"GL0214","GLENDALE GROUNDS MANAGEMENT LIMITED",29/11/2021 00:00:00,26/12/2021 00:00:00,"P09-2022"
,"LEE VALLEY WHITE WATER CENTRE","PREMISES RELATED EXPENDITURE","GM HORTICULTURE SCHEDULED","2143","GLENDALE GROUNDS MANAGEMENT LI",15/12/2021 00:00:00,"256307",3.79,"GL0214","GLENDALE GROUNDS MANAGEMENT LIMITED",29/11/2021 00:00:00,26/12/2021 00:00:00,"P09-2022"
"P&V","NORTH AREA RANGERS","PREMISES RELATED EXPENDITURE","GM ARBORICULTURE UNSCHEDULED","2146","P114418-SERVICE-Tree Works at Stanstead Innings",26/12/2021 00:00:00,"257302",950,"VE0004","PRINCIPAL TREES LTD",29/11/2021 00:00:00,26/12/2021 00:00:00,"P09-2022"
"P&V","SOUTH AREA RANGERS","PREMISES RELATED EXPENDITURE","GM ARBORICULTURE UNSCHEDULED","2146","P115433-SERVICE-Tree Works at Leyton & Walthamstow Marshes",21/12/2021 00:00:00,"257221",295,"PA0222","PARKIN & PARKER TREE SPECIALISTS",29/11/2021 00:00:00,26/12/2021 00:00:00,"P09-2022"
"P&V","SOUTH AREA RANGERS","PREMISES RELATED EXPENDITURE","GM ARBORICULTURE UNSCHEDULED","2146","P115433-SERVICE-Tree Works at Leyton & Walthamstow Marshes",21/12/2021 00:00:00,"257221",175,"PA0222","PARKIN & PARKER TREE SPECIALISTS",29/11/2021 00:00:00,26/12/2021 00:00:00,"P09-2022"
"P&V","SOUTH AREA RANGERS","PREMISES RELATED EXPENDITURE","GM ARBORICULTURE UNSCHEDULED","2146","P115433-SERVICE-Tree Works at Leyton & Walthamstow Marshes",21/12/2021 00:00:00,"257221",75,"PA0222","PARKIN & PARKER TREE SPECIALISTS",29/11/2021 00:00:00,26/12/2021 00:00:00,"P09-2022"
"P&V","ABBEY GARDENS","PREMISES RELATED EXPENDITURE","GM ARBORICULTURE UNSCHEDULED","2146","P114854-SERVICE-Tree Works at Waltam Abbey Gardens",26/12/2021 00:00:00,"257303",945,"VE0004","PRINCIPAL TREES LTD",29/11/2021 00:00:00,26/12/2021 00:00:00,"P09-2022"
"P&V","SOUTH AREA RANGERS","PREMISES RELATED EXPENDITURE","GM NON MAIN CONT UNSCHEDULED","2147","P113965-SERVICE-Drain / Gully Cleaning Various Sites",14/12/2021 00:00:00,"256686",2310,"AB0257","ABBEY DRAINS LTD",29/11/2021 00:00:00,26/12/2021 00:00:00,"P09-2022"
"P&V","RIVER LEE COUNTRY PARK","PREMISES RELATED EXPENDITURE","GM NON MAIN CONT UNSCHEDULED","2147","P115303-SERVICE-Fence Repairs & Ground Works at Showground",21/12/2021 00:00:00,"257158",1800,"BU0090","BUSH WHEELER SERVICES LTD",29/11/2021 00:00:00,26/12/2021 00:00:00,"P09-2022"
"P&V","THREE MILLS","PREMISES RELATED EXPENDITURE","GM NON MAIN CONT UNSCHEDULED","2147","P115363-SERVICE-Annual Playground Equipment Inspection at Thr",6/12/2021 00:00:00,"256254",230,"PL0436","THE PLAY INSPECTION COMPANY",29/11/2021 00:00:00,26/12/2021 00:00:00,"P09-2022"
"P&V","NORTH AREA RANGERS","PREMISES RELATED EXPENDITURE","HABITAT MANAGEMENT WORKS","2149","P114417-SERVICE-Ditch Slough at Admiral Walk Lake",14/12/2021 00:00:00,"256294",850,"VE0004","PRINCIPAL TREES LTD",29/11/2021 00:00:00,26/12/2021 00:00:00,"P09-2022"
"P&V","NORTH AREA RANGERS","PREMISES RELATED EXPENDITURE","HABITAT MANAGEMENT WORKS","2149","P114999-SERVICE-Flailing Works - North of the Park",26/12/2021 00:00:00,"257276",8250,"RO0348","ROY P GREENALL AND SONS",29/11/2021 00:00:00,26/12/2021 00:00:00,"P09-2022"
"P&V","SOUTH AREA RANGERS","PREMISES RELATED EXPENDITURE","HABITAT MANAGEMENT WORKS","2149","P115180-SERVICE-Ditch Works at Walthamstow Marsh",14/12/2021 00:00:00,"256600",1100,"BU0090","BUSH WHEELER SERVICES LTD",29/11/2021 00:00:00,26/12/2021 00:00:00,"P09-2022"
"P&V","SOUTH AREA RANGERS","PREMISES RELATED EXPENDITURE","HABITAT MANAGEMENT WORKS","2149","P115463-SERVICE-Tree Works - WaterWorks Field",26/12/2021 00:00:00,"257219",850,"PA0222","PARKIN & PARKER TREE SPECIALISTS",29/11/2021 00:00:00,26/12/2021 00:00:00,"P09-2022"
"P&V","SOUTH AREA RANGERS","PREMISES RELATED EXPENDITURE","HABITAT MANAGEMENT WORKS","2149","P115432-SERVICE-Tree Works at LV Ice Centre",21/12/2021 00:00:00,"257222",350,"PA0222","PARKIN & PARKER TREE SPECIALISTS",29/11/2021 00:00:00,26/12/2021 00:00:00,"P09-2022"
"P&V","SOUTH AREA RANGERS","PREMISES RELATED EXPENDITURE","HABITAT MANAGEMENT WORKS","2149","P115432-SERVICE-Tree Works at LV Ice Centre",21/12/2021 00:00:00,"257222",50,"PA0222","PARKIN & PARKER TREE SPECIALISTS",29/11/2021 00:00:00,26/12/2021 00:00:00,"P09-2022"
"P&V","GUNPOWDER PARK","PREMISES RELATED EXPENDITURE","HABITAT MANAGEMENT WORKS","2149","P112356-SERVICE-Japanese Knotweed at Rammey Marsh",7/12/2021 00:00:00,"256559",225,"GO0044","S.H.GOSS & CO LTD",29/11/2021 00:00:00,26/12/2021 00:00:00,"P09-2022"
,"LEE VALLEY RIDING CENTRE","PREMISES RELATED EXPENDITURE","CESSPOOL EMPTYING","2210","P111895-SERVICE-quarterly visits plus tanker",13/12/2021 00:00:00,"256631",1750,"HY0042","HYDRO DRAINS LTD",29/11/2021 00:00:00,26/12/2021 00:00:00,"P09-2022"
,"LEE VALLEY MARINA SPRINGFIELD","PREMISES RELATED EXPENDITURE","GENERAL WASTE","2211","P115394-SERVICE-Nov,Dec, General waste & Recyling",7/12/2021 00:00:00,"256574",1246.96,"CL0037","VEOLIA ES (UK) LTD",29/11/2021 00:00:00,26/12/2021 00:00:00,"P09-2022"
,"LEE VALLEY MARINA STANSTEAD","PREMISES RELATED EXPENDITURE","GENERAL WASTE","2211","P112012-SERVICE-Annual waste removal RH &SA moorings",6/12/2021 00:00:00,"256488",196.8,"CL0037","VEOLIA ES (UK) LTD",29/11/2021 00:00:00,26/12/2021 00:00:00,"P09-2022"
,"LEE VALLEY MARINA STANSTEAD","PREMISES RELATED EXPENDITURE","GENERAL WASTE","2211","P112012-SERVICE-Annual waste removal RH &SA moorings",6/12/2021 00:00:00,"256489",375.04,"CL0037","VEOLIA ES (UK) LTD",29/11/2021 00:00:00,26/12/2021 00:00:00,"P09-2022"
,"LEE VALLEY MARINA STANSTEAD","PREMISES RELATED EXPENDITURE","GENERAL WASTE","2211","P112012-SERVICE-Annual waste removal RH &SA moorings",13/12/2021 00:00:00,"256490",305.61,"CL0037","VEOLIA ES (UK) LTD",29/11/2021 00:00:00,26/12/2021 00:00:00,"P09-2022"
"P&V","LEE VALLEY FARM HOLYFIELDHALL","PREMISES RELATED EXPENDITURE","GENERAL WASTE","2211","P115572-SERVICE-Waste for Incineration",13/12/2021 00:00:00,"256656",365.49,"BY0049","BYWATERS (LEYTON) LTD",29/11/2021 00:00:00,26/12/2021 00:00:00,"P09-2022"
,"LEE VALLEY CAMPSITE","PREMISES RELATED EXPENDITURE","GENERAL WASTE","2211","P115558-SERVICE-Skip Collection Nov 21",8/12/2021 00:00:00,"256487",662.82,"CL0037","VEOLIA ES (UK) LTD",29/11/2021 00:00:00,26/12/2021 00:00:00,"P09-2022"
,"LEE VALLEY CARAVAN PARK","PREMISES RELATED EXPENDITURE","GENERAL WASTE","2211","P115502-SERVICE-Monthly skip hire",6/12/2021 00:00:00,"256492",1153.66,"CL0037","VEOLIA ES (UK) LTD",29/11/2021 00:00:00,26/12/2021 00:00:00,"P09-2022"
"P&V","SOUTH AREA RANGERS","PREMISES RELATED EXPENDITURE","GENERAL WASTE","2211","P114549-SERVICE-Skip at WaterWorks Centre",21/12/2021 00:00:00,"257259",280,"GB0239","GBN SERVICES LTD",29/11/2021 00:00:00,26/12/2021 00:00:00,"P09-2022"
"P&V","RIVER LEE COUNTRY PARK","PREMISES RELATED EXPENDITURE","GENERAL WASTE","2211","P115183-SERVICE-12yd General Rubbish Skip at Holyfield Hall F",14/12/2021 00:00:00,"256319",280,"GB0239","GBN SERVICES LTD",29/11/2021 00:00:00,26/12/2021 00:00:00,"P09-2022"
"P&V","RIVER LEE COUNTRY PARK","PREMISES RELATED EXPENDITURE","GENERAL WASTE","2211","P115183-SERVICE-Matteress x 2",14/12/2021 00:00:00,"256319",70,"GB0239","GBN SERVICES LTD",29/11/2021 00:00:00,26/12/2021 00:00:00,"P09-2022"
"P&V","RIVER LEE COUNTRY PARK","PREMISES RELATED EXPENDITURE","GENERAL WASTE","2211","P115183-SERVICE-12yd General Rubbish Skip at Holyfield Hall F",14/12/2021 00:00:00,"256844",280,"GB0239","GBN SERVICES LTD",29/11/2021 00:00:00,26/12/2021 00:00:00,"P09-2022"
"P&V","RIVER LEE COUNTRY PARK","PREMISES RELATED EXPENDITURE","GENERAL WASTE","2211","P115183-SERVICE-12yd General Rubbish Skip at Holyfield Hall F",21/12/2021 00:00:00,"256942",280,"GB0239","GBN SERVICES LTD",29/11/2021 00:00:00,26/12/2021 00:00:00,"P09-2022"
,"LEE VALLEY VELOPARK","PREMISES RELATED EXPENDITURE","GENERAL WASTE","2211","P115506-SERVICE-Waste Disosal and Sanitary Products",6/12/2021 00:00:00,"256349",285.27,"PE0015","PHS GROUP PLC",29/11/2021 00:00:00,26/12/2021 00:00:00,"P09-2022"
,"LEE VALLEY VELOPARK","PREMISES RELATED EXPENDITURE","GENERAL WASTE","2211","P115755-SERVICE-Waste Disposal",20/12/2021 00:00:00,"256575",574.65,"CL0037","VEOLIA ES (UK) LTD",29/11/2021 00:00:00,26/12/2021 00:00:00,"P09-2022"
,"LV HOCKEY AND TENNIS CENTRE","PREMISES RELATED EXPENDITURE","GENERAL WASTE","2211","P113890-SERVICE-waste removal and duty of care",7/12/2021 00:00:00,"256573",434.36,"CL0037","VEOLIA ES (UK) LTD",29/11/2021 00:00:00,26/12/2021 00:00:00,"P09-2022"
,"LEE VALLEY RIDING CENTRE","PREMISES RELATED EXPENDITURE","GENERAL WASTE","2211","P112045-SERVICE-Recycling waste & compactor",13/12/2021 00:00:00,"256633",1311.59,"BY0049","BYWATERS (LEYTON) LTD",29/11/2021 00:00:00,26/12/2021 00:00:00,"P09-2022"
,"LEE VALLEY RIDING CENTRE","PREMISES RELATED EXPENDITURE","GENERAL WASTE","2211","P112045-SERVICE-Recycling waste & compactor",13/12/2021 00:00:00,"256634",657.9,"BY0049","BYWATERS (LEYTON) LTD",29/11/2021 00:00:00,26/12/2021 00:00:00,"P09-2022"
,"LV LEISURE CENTRE CAMPSITE","PREMISES RELATED EXPENDITURE","GENERAL WASTE","2211","P115528-SERVICE-Duty of Care empty",8/12/2021 00:00:00,"256491",1027.99,"CL0037","VEOLIA ES (UK) LTD",29/11/2021 00:00:00,26/12/2021 00:00:00,"P09-2022"
,"LV LEISURE CENTRE CAMPSITE","PREMISES RELATED EXPENDITURE","GENERAL WASTE","2211","P115685-SERVICE-Waste Services",16/12/2021 00:00:00,"256636",238.68,"BY0049","BYWATERS (LEYTON) LTD",29/11/2021 00:00:00,26/12/2021 00:00:00,"P09-2022"
,"LEE VALLEY WHITE WATER CENTRE","PREMISES RELATED EXPENDITURE","GENERAL WASTE","2211","P114687-SERVICE-Oct to Mar Refuse collection",15/12/2021 00:00:00,"256635",1322.08,"BY0049","BYWATERS (LEYTON) LTD",29/11/2021 00:00:00,26/12/2021 00:00:00,"P09-2022"
,"LEE VALLEY ICE CENTRE","PREMISES RELATED EXPENDITURE","HAZARDOUS WASTE DISPOSAL","2212","P112958-SERVICE-Sanitary 25/4/21-24/5/21",7/12/2021 00:00:00,"256157",32.17,"PE0015","PHS GROUP PLC",29/11/2021 00:00:00,26/12/2021 00:00:00,"P09-2022"
,"LEE VALLEY ICE CENTRE","PREMISES RELATED EXPENDITURE","HAZARDOUS WASTE DISPOSAL","2212","P112958-SERVICE-Sanitary 25/4/21-24/5/21",7/12/2021 00:00:00,"256158",-32.17,"PE0015","PHS GROUP PLC",29/11/2021 00:00:00,26/12/2021 00:00:00,"P09-2022"
"P&V","MYDDELTON HOUSE","PREMISES RELATED EXPENDITURE","RECYCLING","2214","P113574-SERVICE-Recycling",13/12/2021 00:00:00,"256827",103.92,"CA0341","F & R CAWLEY LTD",29/11/2021 00:00:00,26/12/2021 00:00:00,"P09-2022"
"P&V","MYDDELTON HOUSE","PREMISES RELATED EXPENDITURE","BUILDING SERVICE AGREEMENTS","2220","P114366-SERVICE-Sanitary Services",7/12/2021 00:00:00,"256276",22.52,"PE0015","PHS GROUP PLC",29/11/2021 00:00:00,26/12/2021 00:00:00,"P09-2022"
"P&V","MYDDELTON HOUSE","PREMISES RELATED EXPENDITURE","BUILDING SERVICE AGREEMENTS","2220","P114366-SERVICE-Sanitary Services",7/12/2021 00:00:00,"256277",166.18,"PE0015","PHS GROUP PLC",29/11/2021 00:00:00,26/12/2021 00:00:00,"P09-2022"
"P&V","MYDDELTON HOUSE","PREMISES RELATED EXPENDITURE","BUILDING SERVICE AGREEMENTS","2220","P114366-SERVICE-Sanitary Services",7/12/2021 00:00:00,"256278",8.25,"PE0015","PHS GROUP PLC",29/11/2021 00:00:00,26/12/2021 00:00:00,"P09-2022"
,"LEE VALLEY WATERWORKS CENTRE","PREMISES RELATED EXPENDITURE","BUILDING SERVICE AGREEMENTS","2220","P115581-SERVICE-Monthly MPG Chekcs September Waterworks",14/12/2021 00:00:00,"256660",507.07,"CO0199","ENGIE FM LIMITED",29/11/2021 00:00:00,26/12/2021 00:00:00,"P09-2022"
,"LEE VALLEY WATERWORKS CENTRE","PREMISES RELATED EXPENDITURE","BUILDING SERVICE AGREEMENTS","2220","P115583-SERVICE-Monthly MPG Chekcs October Waterworks",14/12/2021 00:00:00,"256661",760.9,"CO0199","ENGIE FM LIMITED",29/11/2021 00:00:00,26/12/2021 00:00:00,"P09-2022"
,"LEE VALLEY WATERWORKS CENTRE","PREMISES RELATED EXPENDITURE","BUILDING SERVICE AGREEMENTS","2220","P115584-SERVICE-Monthly MPG Chekcs November Waterworks",14/12/2021 00:00:00,"256662",67.64,"CO0199","ENGIE FM LIMITED",29/11/2021 00:00:00,26/12/2021 00:00:00,"P09-2022"
,"LEE VALLEY WATERWORKS CENTRE","PREMISES RELATED EXPENDITURE","BUILDING SERVICE AGREEMENTS","2220","P115585-SERVICE-Lighting Protection Test WaterWorks Centre",14/12/2021 00:00:00,"256663",120.54,"CO0199","ENGIE FM LIMITED",29/11/2021 00:00:00,26/12/2021 00:00:00,"P09-2022"
,"LEE VALLEY CAMPSITE","PREMISES RELATED EXPENDITURE","BUILDING SERVICE AGREEMENTS","2220","P115603-SERVICE-Annual renewal Intruder Alarm Managers House",13/12/2021 00:00:00,"256338",167.64,"AC0012","SCUTUM SOUTH EAST LTD (frmly Active Security)",29/11/2021 00:00:00,26/12/2021 00:00:00,"P09-2022"
,"LEE VALLEY CAMPSITE","PREMISES RELATED EXPENDITURE","BUILDING SERVICE AGREEMENTS","2220","P115649-SERVICE-B Block Heating Repairs",20/12/2021 00:00:00,"257215",240,"SO0400","SOUTHERN GREEN SERVICES LIMITED",29/11/2021 00:00:00,26/12/2021 00:00:00,"P09-2022"
,"LEE VALLEY CAMPSITE","PREMISES RELATED EXPENDITURE","BUILDING SERVICE AGREEMENTS","2220","P115649-SERVICE-B Block Heating Repairs",20/12/2021 00:00:00,"257216",120,"SO0400","SOUTHERN GREEN SERVICES LIMITED",29/11/2021 00:00:00,26/12/2021 00:00:00,"P09-2022"
,"LEE VALLEY CAMPSITE","PREMISES RELATED EXPENDITURE","BUILDING SERVICE AGREEMENTS","2220","P115653-SERVICE-A Block New Boiler",20/12/2021 00:00:00,"257217",2025,"SO0400","SOUTHERN GREEN SERVICES LIMITED",29/11/2021 00:00:00,26/12/2021 00:00:00,"P09-2022"
"P&V","NORTH AREA RANGERS","PREMISES RELATED EXPENDITURE","BUILDING SERVICE AGREEMENTS","2220","P111201-SERVICE-Sanitary Disposal - Old Mill & Meadows Toilet",26/12/2021 00:00:00,"257307",17.58,"PE0015","PHS GROUP PLC",29/11/2021 00:00:00,26/12/2021 00:00:00,"P09-2022"
"P&V","SOUTH AREA RANGERS","PREMISES RELATED EXPENDITURE","BUILDING SERVICE AGREEMENTS","2220","P113617-SERVICE-Lea Bridge Underpass Service Inspection x 2",6/12/2021 00:00:00,"256325",646.78,"CO0199","ENGIE FM LIMITED",29/11/2021 00:00:00,26/12/2021 00:00:00,"P09-2022"
"P&V","GUNPOWDER PARK","PREMISES RELATED EXPENDITURE","BUILDING SERVICE AGREEMENTS","2220","P111200-SERVICE-Sanitary Disposal - Gunpowder Park - Public T",14/12/2021 00:00:00,"255692",16.9,"PE0015","PHS GROUP PLC",29/11/2021 00:00:00,26/12/2021 00:00:00,"P09-2022"
"P&V","GUNPOWDER PARK","PREMISES RELATED EXPENDITURE","BUILDING SERVICE AGREEMENTS","2220","P111199-SERVICE-Sanitary Disposal - Gunpowder Park Office Toi",6/12/2021 00:00:00,"256275",2.7,"PE0015","PHS GROUP PLC",29/11/2021 00:00:00,26/12/2021 00:00:00,"P09-2022"
"P&V","GUNPOWDER PARK","PREMISES RELATED EXPENDITURE","BUILDING SERVICE AGREEMENTS","2220","P111200-SERVICE-Sanitary Disposal - Gunpowder Park - Public T",14/12/2021 00:00:00,"256836",8.45,"PE0015","PHS GROUP PLC",29/11/2021 00:00:00,26/12/2021 00:00:00,"P09-2022"
"P&V","GUNPOWDER PARK","PREMISES RELATED EXPENDITURE","BUILDING SERVICE AGREEMENTS","2220","P111200-SERVICE-Sanitary Disposal - Gunpowder Park - Public T",14/12/2021 00:00:00,"256837",-11.05,"PE0015","PHS GROUP PLC",29/11/2021 00:00:00,26/12/2021 00:00:00,"P09-2022"
"P&V","GUNPOWDER PARK","PREMISES RELATED EXPENDITURE","BUILDING SERVICE AGREEMENTS","2220","P111200-SERVICE-Sanitary Disposal - Gunpowder Park - Public T",21/12/2021 00:00:00,"256905",14.3,"PE0015","PHS GROUP PLC",29/11/2021 00:00:00,26/12/2021 00:00:00,"P09-2022"
"P&V","RIVER LEE COUNTRY PARK","PREMISES RELATED EXPENDITURE","BUILDING SERVICE AGREEMENTS","2220","P112774-SERVICE-Sharps Container - Ranger Farm Office",26/12/2021 00:00:00,"256279",5.88,"PE0015","PHS GROUP PLC",29/11/2021 00:00:00,26/12/2021 00:00:00,"P09-2022"
"P&V","RIVER LEE COUNTRY PARK","PREMISES RELATED EXPENDITURE","BUILDING SERVICE AGREEMENTS","2220","P115672-SERVICE-PAT Testing - WDC",15/12/2021 00:00:00,"256364",75,"BR0018","BRADSHAW ELECTRICAL LIMITED",29/11/2021 00:00:00,26/12/2021 00:00:00,"P09-2022"
"P&V","RIVER LEE COUNTRY PARK","PREMISES RELATED EXPENDITURE","BUILDING SERVICE AGREEMENTS","2220","P115672-SERVICE-Emergency Lighting Testing - WDC",15/12/2021 00:00:00,"256364",120,"BR0018","BRADSHAW ELECTRICAL LIMITED",29/11/2021 00:00:00,26/12/2021 00:00:00,"P09-2022"
"P&V","RIVER LEE COUNTRY PARK","PREMISES RELATED EXPENDITURE","BUILDING SERVICE AGREEMENTS","2220","P111202-SERVICE-Sanitary Disposal - Fishers Green Toilets",8/12/2021 00:00:00,"256649",11.37,"PE0015","PHS GROUP PLC",29/11/2021 00:00:00,26/12/2021 00:00:00,"P09-2022"
"P&V","RIVER LEE COUNTRY PARK","PREMISES RELATED EXPENDITURE","BUILDING SERVICE AGREEMENTS","2220","P111202-SERVICE-Sanitary Disposal - Fishers Green Toilets",21/12/2021 00:00:00,"256904",11.37,"PE0015","PHS GROUP PLC",29/11/2021 00:00:00,26/12/2021 00:00:00,"P09-2022"
,"LEE VALLEY VELOPARK","PREMISES RELATED EXPENDITURE","BUILDING SERVICE AGREEMENTS","2220","P114624-SERVICE-Scaffolding",14/12/2021 00:00:00,"256527",650,"VA0080","VANDERWEELE & SONS SCAFFOLDING SERVICES LTD",29/11/2021 00:00:00,26/12/2021 00:00:00,"P09-2022"
,"LEE VALLEY VELOPARK","PREMISES RELATED EXPENDITURE","BUILDING SERVICE AGREEMENTS","2220","KENDALL & SONS LIMITED",20/12/2021 00:00:00,"256630",1020,"KE0023","KENDALL & SONS LIMITED",29/11/2021 00:00:00,26/12/2021 00:00:00,"P09-2022"
,"LEE VALLEY VELOPARK","PREMISES RELATED EXPENDITURE","BUILDING SERVICE AGREEMENTS","2220","P114246-SERVICE-Site Maintenance",20/12/2021 00:00:00,"256630",7120,"KE0023","KENDALL & SONS LIMITED",29/11/2021 00:00:00,26/12/2021 00:00:00,"P09-2022"
,"LEE VALLEY VELOPARK","PREMISES RELATED EXPENDITURE","BUILDING SERVICE AGREEMENTS","2220","KENDALL & SONS LIMITED",20/12/2021 00:00:00,"256630",6100,"KE0023","KENDALL & SONS LIMITED",29/11/2021 00:00:00,26/12/2021 00:00:00,"P09-2022"
,"LEE VALLEY VELOPARK","PREMISES RELATED EXPENDITURE","BUILDING SERVICE AGREEMENTS","2220","KENDALL & SONS LIMITED",20/12/2021 00:00:00,"256630",-7120,"KE0023","KENDALL & SONS LIMITED",29/11/2021 00:00:00,26/12/2021 00:00:00,"P09-2022"
,"LEE VALLEY VELOPARK","PREMISES RELATED EXPENDITURE","BUILDING SERVICE AGREEMENTS","2220","P115122-SERVICE-Routine Inspection Visit",16/12/2021 00:00:00,"256862",454,"AD0015","ADT FIRE & SECURITY PLC",29/11/2021 00:00:00,26/12/2021 00:00:00,"P09-2022"
,"LV HOCKEY AND TENNIS CENTRE","PREMISES RELATED EXPENDITURE","BUILDING SERVICE AGREEMENTS","2220","P114217-SERVICE-service of slar interceptor alarm",6/12/2021 00:00:00,"256525",640,"DA0214","DARCY PRODUCTS LIMITED",29/11/2021 00:00:00,26/12/2021 00:00:00,"P09-2022"
,"LEE VALLEY RIDING CENTRE","PREMISES RELATED EXPENDITURE","BUILDING SERVICE AGREEMENTS","2220","P110519-SERVICE-Service Contract Renewal 2021-2022",13/12/2021 00:00:00,"256652",560,"GO0211","GOODWATER LTD",29/11/2021 00:00:00,26/12/2021 00:00:00,"P09-2022"
,"LV LEISURE CENTRE CAMPSITE","PREMISES RELATED EXPENDITURE","BUILDING SERVICE AGREEMENTS","2220","P112636-SERVICE-Play area",1/12/2021 00:00:00,"256359",236,"PL0107","PLAYSAFETY LTD",29/11/2021 00:00:00,26/12/2021 00:00:00,"P09-2022"
,"LV LEISURE CENTRE CAMPSITE","PREMISES RELATED EXPENDITURE","BUILDING SERVICE AGREEMENTS","2220","P115131-SERVICE-Fire Risk Assessments",13/12/2021 00:00:00,"256818",500,"RI0181","RD HEALTH & SAFETY LIMITED",29/11/2021 00:00:00,26/12/2021 00:00:00,"P09-2022"
,"LV LEISURE CENTRE CAMPSITE","PREMISES RELATED EXPENDITURE","BUILDING SERVICE AGREEMENTS","2220","P115825-SERVICE-Sanitary waste",22/12/2021 00:00:00,"256838",142.29,"PE0015","PHS GROUP PLC",29/11/2021 00:00:00,26/12/2021 00:00:00,"P09-2022"
,"LV LEISURE CENTRE CAMPSITE","PREMISES RELATED EXPENDITURE","BUILDING SERVICE AGREEMENTS","2220","P115203-SERVICE-Air vents filters in toilet blocks",26/12/2021 00:00:00,"257328",105,"PR0363","PRETTY COOL CUSTOMERS LTD",29/11/2021 00:00:00,26/12/2021 00:00:00,"P09-2022"
,"LEE VALLEY WHITE WATER CENTRE","PREMISES RELATED EXPENDITURE","BUILDING SERVICE AGREEMENTS","2220","P111254-SERVICE-Hygiene Services April 2021 to 2022",6/12/2021 00:00:00,"256280",169.07,"PE0015","PHS GROUP PLC",29/11/2021 00:00:00,26/12/2021 00:00:00,"P09-2022"
,"LEE VALLEY WHITE WATER CENTRE","PREMISES RELATED EXPENDITURE","BUILDING SERVICE AGREEMENTS","2220","P115593-SERVICE-Service on 16.11.21",13/12/2021 00:00:00,"256643",753,"GU0198","GUARDIAN INDUSTRIAL DOORS LIMITED",29/11/2021 00:00:00,26/12/2021 00:00:00,"P09-2022"
"CEO","RESIDENTIAL ACCOMMODATION","PREMISES RELATED EXPENDITURE","BUILDING REPAIRS & MAINTENANCE","2222","P115532-SERVICE-Work on Shower - 2 Bungalow",8/12/2021 00:00:00,"256014",70,"WA0315","PAUL WALLACE ESTATE AGENTS",29/11/2021 00:00:00,26/12/2021 00:00:00,"P09-2022"
"CEO","RESIDENTIAL ACCOMMODATION","PREMISES RELATED EXPENDITURE","BUILDING REPAIRS & MAINTENANCE","2222","P115534-SERVICE-Gatehouse Lighting",8/12/2021 00:00:00,"256147",260,"BR0018","BRADSHAW ELECTRICAL LIMITED",29/11/2021 00:00:00,26/12/2021 00:00:00,"P09-2022"
"CEO","COMMERCIAL ACCOMMODATION","PREMISES RELATED EXPENDITURE","BUILDING REPAIRS & MAINTENANCE","2222","P111994-SERVICE-2 x Stop blocks concrete Wharf road",7/12/2021 00:00:00,"256327",60,"NA0171","NAIVETTE SERVICES LTD",29/11/2021 00:00:00,26/12/2021 00:00:00,"P09-2022"
"CEO","COMMERCIAL ACCOMMODATION","PREMISES RELATED EXPENDITURE","BUILDING REPAIRS & MAINTENANCE","2222","P115595-SERVICE-EPC Boat Centre & Cycle Canoe Hire",20/12/2021 00:00:00,"257184",480,"ST0447","E R HERITAGE",29/11/2021 00:00:00,26/12/2021 00:00:00,"P09-2022"
,"LEE VALLEY MARINA SPRINGFIELD","PREMISES RELATED EXPENDITURE","BUILDING REPAIRS & MAINTENANCE","2222","P115515-SERVICE-To carry out PA test to 206 appliances",7/12/2021 00:00:00,"256253",1077.4,"BR0018","BRADSHAW ELECTRICAL LIMITED",29/11/2021 00:00:00,26/12/2021 00:00:00,"P09-2022"
,"LEE VALLEY MARINA SPRINGFIELD","PREMISES RELATED EXPENDITURE","BUILDING REPAIRS & MAINTENANCE","2222","P115173-SERVICE-Fire Risk Assessment on 30/11/21",13/12/2021 00:00:00,"256821",500,"RI0181","RD HEALTH & SAFETY LIMITED",29/11/2021 00:00:00,26/12/2021 00:00:00,"P09-2022"
,"LEE VALLEY MARINA SPRINGFIELD","PREMISES RELATED EXPENDITURE","BUILDING REPAIRS & MAINTENANCE","2222","P115630-SERVICE-Annual intruder Alarm Service",21/12/2021 00:00:00,"256880",193.33,"CH0088","CHUBB FIRE & SECURITY",29/11/2021 00:00:00,26/12/2021 00:00:00,"P09-2022"
,"LEE VALLEY MARINA SPRINGFIELD","PREMISES RELATED EXPENDITURE","BUILDING REPAIRS & MAINTENANCE","2222","P111828-SERVICE-To supply items as requsted",26/12/2021 00:00:00,"256907",46.9,"SC0057","SCREWFIX DIRECT LTD",29/11/2021 00:00:00,26/12/2021 00:00:00,"P09-2022"
,"LEE VALLEY MARINA SPRINGFIELD","PREMISES RELATED EXPENDITURE","BUILDING REPAIRS & MAINTENANCE","2222","P111828-SERVICE-To supply items as requsted",26/12/2021 00:00:00,"256908",59.74,"SC0057","SCREWFIX DIRECT LTD",29/11/2021 00:00:00,26/12/2021 00:00:00,"P09-2022"
,"LEE VALLEY MARINA SPRINGFIELD","PREMISES RELATED EXPENDITURE","BUILDING REPAIRS & MAINTENANCE","2222","P115476-SERVICE-To supply & Fit 4 x LED Flood lights",26/12/2021 00:00:00,"257318",1095,"BR0018","BRADSHAW ELECTRICAL LIMITED",29/11/2021 00:00:00,26/12/2021 00:00:00,"P09-2022"
,"LEE VALLEY MARINA STANSTEAD","PREMISES RELATED EXPENDITURE","BUILDING REPAIRS & MAINTENANCE","2222","P114774-SERVICE-fire extinguisher replacement",7/12/2021 00:00:00,"255017",524.41,"TJ0009","T.J.FIRE & SECURITY",29/11/2021 00:00:00,26/12/2021 00:00:00,"P09-2022"
,"LEE VALLEY MARINA STANSTEAD","PREMISES RELATED EXPENDITURE","BUILDING REPAIRS & MAINTENANCE","2222","P115499-SERVICE-screwfix signs and litter picker",13/12/2021 00:00:00,"256605",50.76,"SC0057","SCREWFIX DIRECT LTD",29/11/2021 00:00:00,26/12/2021 00:00:00,"P09-2022"
,"LEE VALLEY MARINA STANSTEAD","PREMISES RELATED EXPENDITURE","BUILDING REPAIRS & MAINTENANCE","2222","P114365-SERVICE-Fire Risk Assessment",14/12/2021 00:00:00,"256820",500,"RI0181","RD HEALTH & SAFETY LIMITED",29/11/2021 00:00:00,26/12/2021 00:00:00,"P09-2022"
,"LEE VALLEY MARINA STANSTEAD","PREMISES RELATED EXPENDITURE","BUILDING REPAIRS & MAINTENANCE","2222","P115788-SERVICE-Chubb annual contract charge intruder alarm",26/12/2021 00:00:00,"256879",327.26,"CH0088","CHUBB FIRE & SECURITY",29/11/2021 00:00:00,26/12/2021 00:00:00,"P09-2022"
,"LEE VALLEY MARINA STANSTEAD","PREMISES RELATED EXPENDITURE","BUILDING REPAIRS & MAINTENANCE","2222","P115599-SERVICE-batteries",20/12/2021 00:00:00,"257242",298.22,"EC0394","MANBAT LTD T/AS",29/11/2021 00:00:00,26/12/2021 00:00:00,"P09-2022"
,"LEE VALLEY MARINA STANSTEAD","PREMISES RELATED EXPENDITURE","BUILDING REPAIRS & MAINTENANCE","2222","P115354-SERVICE-Bradshaws fitting fans & disabled alarm",26/12/2021 00:00:00,"257317",520,"BR0018","BRADSHAW ELECTRICAL LIMITED",29/11/2021 00:00:00,26/12/2021 00:00:00,"P09-2022"
,"LEE VALLEY MARINA STANSTEAD","PREMISES RELATED EXPENDITURE","BUILDING REPAIRS & MAINTENANCE","2222","P115847-SERVICE-local exhaust ventilation LEV inspectn Dec 21",26/12/2021 00:00:00,"257474",1280,"CL0435","CLEAR THE AIR",29/11/2021 00:00:00,26/12/2021 00:00:00,"P09-2022"
,"LEE VALLEY MARINA STANSTEAD","PREMISES RELATED EXPENDITURE","BUILDING REPAIRS & MAINTENANCE","2222","P115846-SERVICE-PAT Testing UK Safety Mangmt Dec 21",26/12/2021 00:00:00,"257475",243.99,"UK0070","UK SAFETY MANAGEMENT LTD",29/11/2021 00:00:00,26/12/2021 00:00:00,"P09-2022"
,"LEE VALLEY WATERWORKS CENTRE","PREMISES RELATED EXPENDITURE","BUILDING REPAIRS & MAINTENANCE","2222","P113736-SERVICE-Clean Drains WaterWork's Car Park",14/12/2021 00:00:00,"256687",860,"AB0257","ABBEY DRAINS LTD",29/11/2021 00:00:00,26/12/2021 00:00:00,"P09-2022"
,"LEE VALLEY WATERWORKS CENTRE","PREMISES RELATED EXPENDITURE","BUILDING REPAIRS & MAINTENANCE","2222","P115661-SERVICE-Supply 20 Compact Lamps",26/12/2021 00:00:00,"256921",135.26,"CO0199","ENGIE FM LIMITED",29/11/2021 00:00:00,26/12/2021 00:00:00,"P09-2022"
,"LEE VALLEY WATERWORKS CENTRE","PREMISES RELATED EXPENDITURE","BUILDING REPAIRS & MAINTENANCE","2222","P113223-SERVICE-Light Repairs - WaterWorks",21/12/2021 00:00:00,"256922",127.86,"CO0199","ENGIE FM LIMITED",29/11/2021 00:00:00,26/12/2021 00:00:00,"P09-2022"
,"LEE VALLEY WATERWORKS CENTRE","PREMISES RELATED EXPENDITURE","BUILDING REPAIRS & MAINTENANCE","2222","P113764-SERVICE-Replacement Lights at WaterWorks",21/12/2021 00:00:00,"256923",648.59,"CO0199","ENGIE FM LIMITED",29/11/2021 00:00:00,26/12/2021 00:00:00,"P09-2022"
,"LV CAMPSITE CARAVAN SALES","PREMISES RELATED EXPENDITURE","BUILDING REPAIRS & MAINTENANCE","2222","P115631-SERVICE-Siting for plot 3 sewardstone",26/12/2021 00:00:00,"257152",2415,"MO0041","CAPSER",29/11/2021 00:00:00,26/12/2021 00:00:00,"P09-2022"
,"LV CAMPSITE CARAVAN SALES","PREMISES RELATED EXPENDITURE","BUILDING REPAIRS & MAINTENANCE","2222","CAPSER",26/12/2021 00:00:00,"257152",415,"MO0041","CAPSER",29/11/2021 00:00:00,26/12/2021 00:00:00,"P09-2022"
,"LV CAMPSITE CARAVAN SALES","PREMISES RELATED EXPENDITURE","BUILDING REPAIRS & MAINTENANCE","2222","CAPSER",26/12/2021 00:00:00,"257152",-2415,"MO0041","CAPSER",29/11/2021 00:00:00,26/12/2021 00:00:00,"P09-2022"
,"LV CAMPSITE CARAVAN SALES","PREMISES RELATED EXPENDITURE","BUILDING REPAIRS & MAINTENANCE","2222","CAPSER",26/12/2021 00:00:00,"257152",2000,"MO0041","CAPSER",29/11/2021 00:00:00,26/12/2021 00:00:00,"P09-2022"
,"LV CAMPSITE CARAVAN SALES","PREMISES RELATED EXPENDITURE","BUILDING REPAIRS & MAINTENANCE","2222","P115632-SERVICE-Plot 46 Siting Sewardstone",26/12/2021 00:00:00,"257154",815,"MO0041","CAPSER",29/11/2021 00:00:00,26/12/2021 00:00:00,"P09-2022"
,"LV CAMPSITE CARAVAN SALES","PREMISES RELATED EXPENDITURE","BUILDING REPAIRS & MAINTENANCE","2222","CAPSER",26/12/2021 00:00:00,"257154",-815,"MO0041","CAPSER",29/11/2021 00:00:00,26/12/2021 00:00:00,"P09-2022"
,"LV CAMPSITE CARAVAN SALES","PREMISES RELATED EXPENDITURE","BUILDING REPAIRS & MAINTENANCE","2222","CAPSER",26/12/2021 00:00:00,"257154",700,"MO0041","CAPSER",29/11/2021 00:00:00,26/12/2021 00:00:00,"P09-2022"
,"LV CAMPSITE CARAVAN SALES","PREMISES RELATED EXPENDITURE","BUILDING REPAIRS & MAINTENANCE","2222","CAPSER",26/12/2021 00:00:00,"257154",115,"MO0041","CAPSER",29/11/2021 00:00:00,26/12/2021 00:00:00,"P09-2022"
,"LV CAMPSITE CARAVAN SALES","PREMISES RELATED EXPENDITURE","BUILDING REPAIRS & MAINTENANCE","2222","P115633-SERVICE-Siting for plot 45 sewardstone",26/12/2021 00:00:00,"257155",815,"MO0041","CAPSER",29/11/2021 00:00:00,26/12/2021 00:00:00,"P09-2022"
,"LV CAMPSITE CARAVAN SALES","PREMISES RELATED EXPENDITURE","BUILDING REPAIRS & MAINTENANCE","2222","CAPSER",26/12/2021 00:00:00,"257155",-815,"MO0041","CAPSER",29/11/2021 00:00:00,26/12/2021 00:00:00,"P09-2022"
,"LV CAMPSITE CARAVAN SALES","PREMISES RELATED EXPENDITURE","BUILDING REPAIRS & MAINTENANCE","2222","CAPSER",26/12/2021 00:00:00,"257155",700,"MO0041","CAPSER",29/11/2021 00:00:00,26/12/2021 00:00:00,"P09-2022"
,"LV CAMPSITE CARAVAN SALES","PREMISES RELATED EXPENDITURE","BUILDING REPAIRS & MAINTENANCE","2222","CAPSER",26/12/2021 00:00:00,"257155",115,"MO0041","CAPSER",29/11/2021 00:00:00,26/12/2021 00:00:00,"P09-2022"
,"LV CAMPSITE CARAVAN SALES","PREMISES RELATED EXPENDITURE","BUILDING REPAIRS & MAINTENANCE","2222","CAPSER",26/12/2021 00:00:00,"257156",75,"MO0041","CAPSER",29/11/2021 00:00:00,26/12/2021 00:00:00,"P09-2022"
,"LV CAMPSITE CARAVAN SALES","PREMISES RELATED EXPENDITURE","BUILDING REPAIRS & MAINTENANCE","2222","P115634-SERVICE-Siting for plot 21 Sewardstone",26/12/2021 00:00:00,"257156",675,"MO0041","CAPSER",29/11/2021 00:00:00,26/12/2021 00:00:00,"P09-2022"
,"LV CAMPSITE CARAVAN SALES","PREMISES RELATED EXPENDITURE","BUILDING REPAIRS & MAINTENANCE","2222","CAPSER",26/12/2021 00:00:00,"257156",-675,"MO0041","CAPSER",29/11/2021 00:00:00,26/12/2021 00:00:00,"P09-2022"
,"LV CAMPSITE CARAVAN SALES","PREMISES RELATED EXPENDITURE","BUILDING REPAIRS & MAINTENANCE","2222","CAPSER",26/12/2021 00:00:00,"257156",600,"MO0041","CAPSER",29/11/2021 00:00:00,26/12/2021 00:00:00,"P09-2022"
,"LEE VALLEY CARAVAN PARK","PREMISES RELATED EXPENDITURE","BUILDING REPAIRS & MAINTENANCE","2222","P115151-SERVICE-10 ton of type 1 for Almost Wild Improvements",6/12/2021 00:00:00,"256272",400.32,"LE0012","LEASIDE TIMBER & BUILDERS MERCHANTS LTD",29/11/2021 00:00:00,26/12/2021 00:00:00,"P09-2022"
,"LEE VALLEY CARAVAN PARK","PREMISES RELATED EXPENDITURE","BUILDING REPAIRS & MAINTENANCE","2222","P113443-SERVICE-Timber, Ply, Top soil and Post Creat",6/12/2021 00:00:00,"256272",16.68,"LE0012","LEASIDE TIMBER & BUILDERS MERCHANTS LTD",29/11/2021 00:00:00,26/12/2021 00:00:00,"P09-2022"
,"LEE VALLEY VELOPARK","PREMISES RELATED EXPENDITURE","BUILDING REPAIRS & MAINTENANCE","2222","P115395-SERVICE-Planned August Maintenance",6/12/2021 00:00:00,"255970",770,"PH0319","SIGNIFY COMMERCIAL UK LIMITED (PHILIPS LIGHTI",29/11/2021 00:00:00,26/12/2021 00:00:00,"P09-2022"
,"LEE VALLEY VELOPARK","PREMISES RELATED EXPENDITURE","BUILDING REPAIRS & MAINTENANCE","2222","P115523-SERVICE-Comissioning Engineer",16/12/2021 00:00:00,"256285",625,"PH0319","SIGNIFY COMMERCIAL UK LIMITED (PHILIPS LIGHTI",29/11/2021 00:00:00,26/12/2021 00:00:00,"P09-2022"
,"LEE VALLEY VELOPARK","PREMISES RELATED EXPENDITURE","BUILDING REPAIRS & MAINTENANCE","2222","P115138-SERVICE-Louvre Maintenance",6/12/2021 00:00:00,"256293",810,"SC0470","SCS GROUP",29/11/2021 00:00:00,26/12/2021 00:00:00,"P09-2022"
,"LEE VALLEY VELOPARK","PREMISES RELATED EXPENDITURE","BUILDING REPAIRS & MAINTENANCE","2222","P114355-SERVICE-Scaffolding Inspection",14/12/2021 00:00:00,"256526",1372.5,"VA0080","VANDERWEELE & SONS SCAFFOLDING SERVICES LTD",29/11/2021 00:00:00,26/12/2021 00:00:00,"P09-2022"
,"LEE VALLEY VELOPARK","PREMISES RELATED EXPENDITURE","BUILDING REPAIRS & MAINTENANCE","2222","P115776-SERVICE-Fire System Maintenance",20/12/2021 00:00:00,"256536",770,"AD0015","ADT FIRE & SECURITY PLC",29/11/2021 00:00:00,26/12/2021 00:00:00,"P09-2022"
,"LEE VALLEY VELOPARK","PREMISES RELATED EXPENDITURE","BUILDING REPAIRS & MAINTENANCE","2222","P115751-SERVICE-Intruder System Maintenance",20/12/2021 00:00:00,"256537",332,"AD0015","ADT FIRE & SECURITY PLC",29/11/2021 00:00:00,26/12/2021 00:00:00,"P09-2022"
,"LEE VALLEY VELOPARK","PREMISES RELATED EXPENDITURE","BUILDING REPAIRS & MAINTENANCE","2222","P115648-SERVICE-Door Maintenance",20/12/2021 00:00:00,"256868",170,"SU0398","SUPREME DOOR SPRING CO",29/11/2021 00:00:00,26/12/2021 00:00:00,"P09-2022"
,"LEE VALLEY VELOPARK","PREMISES RELATED EXPENDITURE","BUILDING REPAIRS & MAINTENANCE","2222","P115837-SERVICE-Planned Maintenance 25 Nov",22/12/2021 00:00:00,"256918",1655.41,"GI0137","R & P GIBBS LIMITED",29/11/2021 00:00:00,26/12/2021 00:00:00,"P09-2022"
,"LEE VALLEY VELOPARK","PREMISES RELATED EXPENDITURE","BUILDING REPAIRS & MAINTENANCE","2222","P115840-SERVICE-Service Visit 8 Dec",22/12/2021 00:00:00,"256958",345,"GO0211","GOODWATER LTD",29/11/2021 00:00:00,26/12/2021 00:00:00,"P09-2022"
,"LEE VALLEY VELOPARK","PREMISES RELATED EXPENDITURE","BUILDING REPAIRS & MAINTENANCE","2222","P115860-SERVICE-Callout 3 Dec",26/12/2021 00:00:00,"256967",170,"SU0398","SUPREME DOOR SPRING CO",29/11/2021 00:00:00,26/12/2021 00:00:00,"P09-2022"
,"LEE VALLEY VELOPARK","PREMISES RELATED EXPENDITURE","BUILDING REPAIRS & MAINTENANCE","2222","P115771-SERVICE-Fire System Maintenance",20/12/2021 00:00:00,"257008",396.09,"AD0015","ADT FIRE & SECURITY PLC",29/11/2021 00:00:00,26/12/2021 00:00:00,"P09-2022"
,"LEE VALLEY VELOPARK","PREMISES RELATED EXPENDITURE","BUILDING REPAIRS & MAINTENANCE","2222","P115032-SERVICE-Air-Con Maintenance",22/12/2021 00:00:00,"257294",777.88,"PO0412","PROTOCOOL LIMITED",29/11/2021 00:00:00,26/12/2021 00:00:00,"P09-2022"
,"LV HOCKEY AND TENNIS CENTRE","PREMISES RELATED EXPENDITURE","BUILDING REPAIRS & MAINTENANCE","2222","P115362-SERVICE-labour and travel",6/12/2021 00:00:00,"256269",1621.25,"IR0149","IRRIGATION CONTROL LIMITED",29/11/2021 00:00:00,26/12/2021 00:00:00,"P09-2022"
,"LV HOCKEY AND TENNIS CENTRE","PREMISES RELATED EXPENDITURE","BUILDING REPAIRS & MAINTENANCE","2222","P115362-SERVICE-materials",6/12/2021 00:00:00,"256269",638.78,"IR0149","IRRIGATION CONTROL LIMITED",29/11/2021 00:00:00,26/12/2021 00:00:00,"P09-2022"
,"LV HOCKEY AND TENNIS CENTRE","PREMISES RELATED EXPENDITURE","BUILDING REPAIRS & MAINTENANCE","2222","P115377-SERVICE-tank irrigations",13/12/2021 00:00:00,"256822",800,"GO0211","GOODWATER LTD",29/11/2021 00:00:00,26/12/2021 00:00:00,"P09-2022"
,"LV HOCKEY AND TENNIS CENTRE","PREMISES RELATED EXPENDITURE","BUILDING REPAIRS & MAINTENANCE","2222","P115117-SERVICE-PAT testing",20/12/2021 00:00:00,"257250",188.8,"EL0258","ELECTRICO TESTING SERVICES LTD",29/11/2021 00:00:00,26/12/2021 00:00:00,"P09-2022"
,"LV HOCKEY AND TENNIS CENTRE","PREMISES RELATED EXPENDITURE","BUILDING REPAIRS & MAINTENANCE","2222","P115844-SERVICE-air con service",22/12/2021 00:00:00,"257293",2709.37,"PO0412","PROTOCOOL LIMITED",29/11/2021 00:00:00,26/12/2021 00:00:00,"P09-2022"
,"LV HOCKEY AND TENNIS CENTRE","PREMISES RELATED EXPENDITURE","BUILDING REPAIRS & MAINTENANCE","2222","P114615-SERVICE-replacement expanison vessel",22/12/2021 00:00:00,"257297",976.67,"GI0137","R & P GIBBS LIMITED",29/11/2021 00:00:00,26/12/2021 00:00:00,"P09-2022"
,"LEE VALLEY RIDING CENTRE","PREMISES RELATED EXPENDITURE","BUILDING REPAIRS & MAINTENANCE","2222","P112358-SERVICE-soap and sanitary dispensers and bins",6/12/2021 00:00:00,"256281",91.17,"PE0015","PHS GROUP PLC",29/11/2021 00:00:00,26/12/2021 00:00:00,"P09-2022"
,"LV LEISURE CENTRE CAMPSITE","PREMISES RELATED EXPENDITURE","BUILDING REPAIRS & MAINTENANCE","2222","P115540-SERVICE-2 Gas inspections and a gas connector",14/12/2021 00:00:00,"256609",270,"SO0400","SOUTHERN GREEN SERVICES LIMITED",29/11/2021 00:00:00,26/12/2021 00:00:00,"P09-2022"
,"LV LEISURE CENTRE CAMPSITE","PREMISES RELATED EXPENDITURE","BUILDING REPAIRS & MAINTENANCE","2222","KENDALL & SONS LIMITED",13/12/2021 00:00:00,"256653",210,"KE0023","KENDALL & SONS LIMITED",29/11/2021 00:00:00,26/12/2021 00:00:00,"P09-2022"
,"LV LEISURE CENTRE CAMPSITE","PREMISES RELATED EXPENDITURE","BUILDING REPAIRS & MAINTENANCE","2222","KENDALL & SONS LIMITED",13/12/2021 00:00:00,"256653",-1690,"KE0023","KENDALL & SONS LIMITED",29/11/2021 00:00:00,26/12/2021 00:00:00,"P09-2022"
,"LV LEISURE CENTRE CAMPSITE","PREMISES RELATED EXPENDITURE","BUILDING REPAIRS & MAINTENANCE","2222","P115288-SERVICE-Play area repairs",13/12/2021 00:00:00,"256653",1690,"KE0023","KENDALL & SONS LIMITED",29/11/2021 00:00:00,26/12/2021 00:00:00,"P09-2022"
,"LV LEISURE CENTRE CAMPSITE","PREMISES RELATED EXPENDITURE","BUILDING REPAIRS & MAINTENANCE","2222","KENDALL & SONS LIMITED",13/12/2021 00:00:00,"256653",1480,"KE0023","KENDALL & SONS LIMITED",29/11/2021 00:00:00,26/12/2021 00:00:00,"P09-2022"
,"LV LEISURE CENTRE CAMPSITE","PREMISES RELATED EXPENDITURE","BUILDING REPAIRS & MAINTENANCE","2222","P115686-SERVICE-Tanker and waste removal",16/12/2021 00:00:00,"256849",280,"CO0550","CONVERT WATER LTD",29/11/2021 00:00:00,26/12/2021 00:00:00,"P09-2022"
,"LV LEISURE CENTRE CAMPSITE","PREMISES RELATED EXPENDITURE","BUILDING REPAIRS & MAINTENANCE","2222","P115123-SERVICE-TNV valve supplied and installed",20/12/2021 00:00:00,"256919",535,"GI0137","R & P GIBBS LIMITED",29/11/2021 00:00:00,26/12/2021 00:00:00,"P09-2022"
,"LV LEISURE CENTRE CAMPSITE","PREMISES RELATED EXPENDITURE","BUILDING REPAIRS & MAINTENANCE","2222","P115539-SERVICE-Filter quote visit",20/12/2021 00:00:00,"256927",160,"RE0094","REACT 2 IT (BUILDING & REFURBISHMENT) LTD",29/11/2021 00:00:00,26/12/2021 00:00:00,"P09-2022"
,"LV LEISURE CENTRE CAMPSITE","PREMISES RELATED EXPENDITURE","BUILDING REPAIRS & MAINTENANCE","2222","P115613-SERVICE-Collapsed drain waste pumped and CCTV",20/12/2021 00:00:00,"256983",480,"CO0550","CONVERT WATER LTD",29/11/2021 00:00:00,26/12/2021 00:00:00,"P09-2022"
,"LEE VALLEY ATHLETICS CENTRE","PREMISES RELATED EXPENDITURE","BUILDING REPAIRS & MAINTENANCE","2222","P115488-SERVICE-LVAC REPAIRS TO AUTO DOORS",6/12/2021 00:00:00,"256328",290,"SU0398","SUPREME DOOR SPRING CO",29/11/2021 00:00:00,26/12/2021 00:00:00,"P09-2022"
,"LEE VALLEY ATHLETICS CENTRE","PREMISES RELATED EXPENDITURE","BUILDING REPAIRS & MAINTENANCE","2222","P115828-SERVICE-REF SDS4879 REPAIRS TO FRONT DOOR INV 4879",22/12/2021 00:00:00,"256632",290,"SU0398","SUPREME DOOR SPRING CO",29/11/2021 00:00:00,26/12/2021 00:00:00,"P09-2022"
,"LEE VALLEY ATHLETICS CENTRE","PREMISES RELATED EXPENDITURE","BUILDING REPAIRS & MAINTENANCE","2222","P115831-SERVICE-LVAC CALL OUT 10.12.21 INV 48812098 A/C 43076",22/12/2021 00:00:00,"257183",337,"AD0015","ADT FIRE & SECURITY PLC",29/11/2021 00:00:00,26/12/2021 00:00:00,"P09-2022"
,"LEE VALLEY ATHLETICS CENTRE","PREMISES RELATED EXPENDITURE","BUILDING REPAIRS & MAINTENANCE","2222","P115826-SERVICE-JOB A0006658 BLOCKED DRAIN AND TOILET 9.11.21",26/12/2021 00:00:00,"257468",95,"RE0094","REACT 2 IT (BUILDING & REFURBISHMENT) LTD",29/11/2021 00:00:00,26/12/2021 00:00:00,"P09-2022"
,"LEE VALLEY WHITE WATER CENTRE","PREMISES RELATED EXPENDITURE","BUILDING REPAIRS & MAINTENANCE","2222","P115112-SERVICE-AC and VRV system maintenance 15th and 16th N",20/12/2021 00:00:00,"256916",1350,"GI0137","R & P GIBBS LIMITED",29/11/2021 00:00:00,26/12/2021 00:00:00,"P09-2022"
,"LEE VALLEY WHITE WATER CENTRE","PREMISES RELATED EXPENDITURE","BUILDING REPAIRS & MAINTENANCE","2222","P115482-SERVICE-August Emergency lighting Test",20/12/2021 00:00:00,"256917",330,"GI0137","R & P GIBBS LIMITED",29/11/2021 00:00:00,26/12/2021 00:00:00,"P09-2022"
,"LEE VALLEY WHITE WATER CENTRE","PREMISES RELATED EXPENDITURE","BUILDING REPAIRS & MAINTENANCE","2222","P115574-SERVICE-SCADA License Investigation",20/12/2021 00:00:00,"257150",1473,"CO0402","ACTEMIUM AUTOMATION UK",29/11/2021 00:00:00,26/12/2021 00:00:00,"P09-2022"
"CEO","LVLC SERVICE CHARGE","PREMISES RELATED EXPENDITURE","BUILDING REPAIRS & MAINTENANCE","2222","P115533-SERVICE-Picketts Lock Car Park - Reinstate Power to P",8/12/2021 00:00:00,"256146",160,"BR0018","BRADSHAW ELECTRICAL LIMITED",29/11/2021 00:00:00,26/12/2021 00:00:00,"P09-2022"
"CEO","LVLC SERVICE CHARGE","PREMISES RELATED EXPENDITURE","BUILDING REPAIRS & MAINTENANCE","2222","KENDALL & SONS LIMITED",16/12/2021 00:00:00,"256629",1010,"KE0023","KENDALL & SONS LIMITED",29/11/2021 00:00:00,26/12/2021 00:00:00,"P09-2022"
"CEO","LVLC SERVICE CHARGE","PREMISES RELATED EXPENDITURE","BUILDING REPAIRS & MAINTENANCE","2222","KENDALL & SONS LIMITED",16/12/2021 00:00:00,"256629",275,"KE0023","KENDALL & SONS LIMITED",29/11/2021 00:00:00,26/12/2021 00:00:00,"P09-2022"
"CEO","LVLC SERVICE CHARGE","PREMISES RELATED EXPENDITURE","BUILDING REPAIRS & MAINTENANCE","2222","KENDALL & SONS LIMITED",16/12/2021 00:00:00,"256629",-1285,"KE0023","KENDALL & SONS LIMITED",29/11/2021 00:00:00,26/12/2021 00:00:00,"P09-2022"
"CEO","LVLC SERVICE CHARGE","PREMISES RELATED EXPENDITURE","BUILDING REPAIRS & MAINTENANCE","2222","P114815-SERVICE-Picketts Lock Car Park Fence",16/12/2021 00:00:00,"256629",1285,"KE0023","KENDALL & SONS LIMITED",29/11/2021 00:00:00,26/12/2021 00:00:00,"P09-2022"
,"LEE VALLEY ATHLETICS CENTRE","PREMISES RELATED EXPENDITURE","ENGINEERING SERVICES CONTRACT","2223","P111652-SERVICE-LVAC ANNUAL SERVICE SCRUBMASTER 95.90 PER VI",6/12/2021 00:00:00,"256001",76.71,"HA0136","HAKO MACHINES LTD",29/11/2021 00:00:00,26/12/2021 00:00:00,"P09-2022"
,"LEE VALLEY ATHLETICS CENTRE","PREMISES RELATED EXPENDITURE","ENGINEERING SERVICES CONTRACT","2223","P111584-SERVICE-LVAC ANNUAL CONTRACT",6/12/2021 00:00:00,"256268",1986,"DA0075","D.A.T.A. CLEANING SERVICES",29/11/2021 00:00:00,26/12/2021 00:00:00,"P09-2022"
,"LEE VALLEY ATHLETICS CENTRE","PREMISES RELATED EXPENDITURE","ENGINEERING SERVICES CONTRACT","2223","P115485-SERVICE-LVAC INV P7177 GYM SERVICE & REPAIRS",6/12/2021 00:00:00,"256334",869,"PR0446","PRECISION GYM SERVICES LTD",29/11/2021 00:00:00,26/12/2021 00:00:00,"P09-2022"
,"LEE VALLEY ATHLETICS CENTRE","PREMISES RELATED EXPENDITURE","ENGINEERING SERVICES CONTRACT","2223","P111604-SERVICE-LVAC ANNUAL REFUSE COLLECTION 21/22",15/12/2021 00:00:00,"256598",459.47,"SI0659","SIMPLY WASTE SOLUTIONS",29/11/2021 00:00:00,26/12/2021 00:00:00,"P09-2022"
,"LEE VALLEY ATHLETICS CENTRE","PREMISES RELATED EXPENDITURE","ENGINEERING SERVICES CONTRACT","2223","P115615-SERVICE-lvac inv 48565661 mainy/mont intruder + trans",13/12/2021 00:00:00,"256640",690.21,"AD0015","ADT FIRE & SECURITY PLC",29/11/2021 00:00:00,26/12/2021 00:00:00,"P09-2022"
,"LEE VALLEY ATHLETICS CENTRE","PREMISES RELATED EXPENDITURE","ENGINEERING SERVICES CONTRACT","2223","P111755-SERVICE-LVAC ANNUAL MAINTENANCE 21/22",22/12/2021 00:00:00,"257270",1415,"KE0163","KERSHAW MECHANICAL SERVICES LTD",29/11/2021 00:00:00,26/12/2021 00:00:00,"P09-2022"
,"LEE VALLEY WHITE WATER CENTRE","PREMISES RELATED EXPENDITURE","ENGINEERING SERVICES CONTRACT","2223","P115480-SERVICE-Bi Annual maintenance of 1 tank ansul R102 Fi",6/12/2021 00:00:00,"256343",257.71,"GL0419","GLOBAL FIRE AND SECURITY SYSTEMS",29/11/2021 00:00:00,26/12/2021 00:00:00,"P09-2022"
,"LEE VALLEY WHITE WATER CENTRE","PREMISES RELATED EXPENDITURE","ENGINEERING SERVICES CONTRACT","2223","P115690-SERVICE-parts for quarterly service visits",20/12/2021 00:00:00,"257125",433.6,"BR0378","BROADWATER TECHNOLOGIES LTD",29/11/2021 00:00:00,26/12/2021 00:00:00,"P09-2022"
"P&V","NORTH AREA RANGERS","SUPPLIES AND SERVICES","FENCES/GATES ETC.","2231","P115594-SERVICE-20 Bags Post Mix",14/12/2021 00:00:00,"256637",95,"JW0004","J & W FENCING LIMITED",29/11/2021 00:00:00,26/12/2021 00:00:00,"P09-2022"
"P&V","NORTH AREA RANGERS","SUPPLIES AND SERVICES","FENCES/GATES ETC.","2231","P115594-SERVICE-27x Post Rails",14/12/2021 00:00:00,"256637",167.4,"JW0004","J & W FENCING LIMITED",29/11/2021 00:00:00,26/12/2021 00:00:00,"P09-2022"
"P&V","NORTH AREA RANGERS","SUPPLIES AND SERVICES","FENCES/GATES ETC.","2231","P115594-SERVICE-10K Gate Staples",14/12/2021 00:00:00,"256638",65,"JW0004","J & W FENCING LIMITED",29/11/2021 00:00:00,26/12/2021 00:00:00,"P09-2022"
"P&V","RIVER LEE COUNTRY PARK","SUPPLIES AND SERVICES","PARK SIGNS AND BOARDS","2236","P115292-SERVICE-Art Work - Clayton Hill Panel",20/12/2021 00:00:00,"257157",75,"TO0631","TOP FLOOR CREATIVE",29/11/2021 00:00:00,26/12/2021 00:00:00,"P09-2022"
"P&V","RIVER LEE COUNTRY PARK","SUPPLIES AND SERVICES","PARK SIGNS AND BOARDS","2236","P115292-SERVICE-Scans for the Artwork",20/12/2021 00:00:00,"257157",50,"TO0631","TOP FLOOR CREATIVE",29/11/2021 00:00:00,26/12/2021 00:00:00,"P09-2022"
"P&V","MYDDELTON HOUSE","PREMISES RELATED EXPENDITURE","ENERGY COSTS (ELECTRICITY)","2332","KENT COUNTY COUNCIL (KCS)",16/12/2021 00:00:00,"257135",264.93,"KE0007","KENT COUNTY COUNCIL (KCS)",29/11/2021 00:00:00,26/12/2021 00:00:00,"P09-2022"
"CEO","COMMERCIAL ACCOMMODATION","PREMISES RELATED EXPENDITURE","ENERGY COSTS (ELECTRICITY)","2332","E-ON NEXT ENERGY LTD",6/12/2021 00:00:00,"254120",32.85,"EO0398","E-ON NEXT ENERGY LTD",29/11/2021 00:00:00,26/12/2021 00:00:00,"P09-2022"
"CEO","COMMERCIAL ACCOMMODATION","PREMISES RELATED EXPENDITURE","ENERGY COSTS (ELECTRICITY)","2332","E-ON",8/12/2021 00:00:00,"255916",13.44,"PO0025","E-ON",29/11/2021 00:00:00,26/12/2021 00:00:00,"P09-2022"
"CEO","COMMERCIAL ACCOMMODATION","PREMISES RELATED EXPENDITURE","ENERGY COSTS (ELECTRICITY)","2332","E-ON NEXT ENERGY LTD",15/12/2021 00:00:00,"256859",71.23,"EO0398","E-ON NEXT ENERGY LTD",29/11/2021 00:00:00,26/12/2021 00:00:00,"P09-2022"
"CEO","COMMERCIAL ACCOMMODATION","PREMISES RELATED EXPENDITURE","ENERGY COSTS (ELECTRICITY)","2332","E-ON NEXT ENERGY LTD",15/12/2021 00:00:00,"256888",13.42,"EO0398","E-ON NEXT ENERGY LTD",29/11/2021 00:00:00,26/12/2021 00:00:00,"P09-2022"
,"LEE VALLEY MARINA SPRINGFIELD","PREMISES RELATED EXPENDITURE","ENERGY COSTS (ELECTRICITY)","2332","KENT COUNTY COUNCIL (KCS)",20/12/2021 00:00:00,"256997",3961.54,"KE0007","KENT COUNTY COUNCIL (KCS)",29/11/2021 00:00:00,26/12/2021 00:00:00,"P09-2022"
,"LEE VALLEY MARINA STANSTEAD","PREMISES RELATED EXPENDITURE","ENERGY COSTS (ELECTRICITY)","2332","KENT COUNTY COUNCIL (KCS)",20/12/2021 00:00:00,"257144",582.71,"KE0007","KENT COUNTY COUNCIL (KCS)",29/11/2021 00:00:00,26/12/2021 00:00:00,"P09-2022"
,"LEE VALLEY MARINA STANSTEAD","PREMISES RELATED EXPENDITURE","ENERGY COSTS (ELECTRICITY)","2332","KENT COUNTY COUNCIL (KCS)",20/12/2021 00:00:00,"257145",145.81,"KE0007","KENT COUNTY COUNCIL (KCS)",29/11/2021 00:00:00,26/12/2021 00:00:00,"P09-2022"
,"LEE VALLEY MARINA STANSTEAD","PREMISES RELATED EXPENDITURE","ENERGY COSTS (ELECTRICITY)","2332","KENT COUNTY COUNCIL (KCS)",26/12/2021 00:00:00,"257478",3067.26,"KE0007","KENT COUNTY COUNCIL (KCS)",29/11/2021 00:00:00,26/12/2021 00:00:00,"P09-2022"
,"LEE VALLEY WATERWORKS CENTRE","PREMISES RELATED EXPENDITURE","ENERGY COSTS (ELECTRICITY)","2332","NPOWER LIMITED",26/12/2021 00:00:00,"257195",994.65,"NP0123","NPOWER LIMITED",29/11/2021 00:00:00,26/12/2021 00:00:00,"P09-2022"
"P&V","LEE VALLEY FARM HOLYFIELDHALL","PREMISES RELATED EXPENDITURE","ENERGY COSTS (ELECTRICITY)","2332","KENT COUNTY COUNCIL (KCS)",16/12/2021 00:00:00,"257140",6563.25,"KE0007","KENT COUNTY COUNCIL (KCS)",29/11/2021 00:00:00,26/12/2021 00:00:00,"P09-2022"
,"LEE VALLEY CAMPSITE","PREMISES RELATED EXPENDITURE","ENERGY COSTS (ELECTRICITY)","2332","KENT COUNTY COUNCIL (KCS)",20/12/2021 00:00:00,"256998",2868.61,"KE0007","KENT COUNTY COUNCIL (KCS)",29/11/2021 00:00:00,26/12/2021 00:00:00,"P09-2022"
,"LEE VALLEY CAMPSITE","PREMISES RELATED EXPENDITURE","ENERGY COSTS (ELECTRICITY)","2332","KENT COUNTY COUNCIL (KCS)",20/12/2021 00:00:00,"256999",2889.26,"KE0007","KENT COUNTY COUNCIL (KCS)",29/11/2021 00:00:00,26/12/2021 00:00:00,"P09-2022"
,"LEE VALLEY CAMPSITE","PREMISES RELATED EXPENDITURE","ENERGY COSTS (ELECTRICITY)","2332","KENT COUNTY COUNCIL (KCS)",20/12/2021 00:00:00,"257186",564.07,"KE0007","KENT COUNTY COUNCIL (KCS)",29/11/2021 00:00:00,26/12/2021 00:00:00,"P09-2022"
,"LEE VALLEY CARAVAN PARK","PREMISES RELATED EXPENDITURE","ENERGY COSTS (ELECTRICITY)","2332","KENT COUNTY COUNCIL (KCS)",20/12/2021 00:00:00,"257000",9269.11,"KE0007","KENT COUNTY COUNCIL (KCS)",29/11/2021 00:00:00,26/12/2021 00:00:00,"P09-2022"
"P&V","EAST INDIA DOCK AND BOW CREEK","PREMISES RELATED EXPENDITURE","ENERGY COSTS (ELECTRICITY)","2332","KENT COUNTY COUNCIL (KCS)",16/12/2021 00:00:00,"257143",136.84,"KE0007","KENT COUNTY COUNCIL (KCS)",29/11/2021 00:00:00,26/12/2021 00:00:00,"P09-2022"
"P&V","RYE HOUSE GATEHOUSE","PREMISES RELATED EXPENDITURE","ENERGY COSTS (ELECTRICITY)","2332","KENT COUNTY COUNCIL (KCS)",21/12/2021 00:00:00,"257189",72.62,"KE0007","KENT COUNTY COUNCIL (KCS)",29/11/2021 00:00:00,26/12/2021 00:00:00,"P09-2022"
"P&V","NORTH AREA RANGERS","PREMISES RELATED EXPENDITURE","ENERGY COSTS (ELECTRICITY)","2332","KENT COUNTY COUNCIL (KCS)",16/12/2021 00:00:00,"257141",608.12,"KE0007","KENT COUNTY COUNCIL (KCS)",29/11/2021 00:00:00,26/12/2021 00:00:00,"P09-2022"
"P&V","NORTH AREA RANGERS","PREMISES RELATED EXPENDITURE","ENERGY COSTS (ELECTRICITY)","2332","KENT COUNTY COUNCIL (KCS)",26/12/2021 00:00:00,"257479",61.88,"KE0007","KENT COUNTY COUNCIL (KCS)",29/11/2021 00:00:00,26/12/2021 00:00:00,"P09-2022"
"P&V","NORTH AREA RANGERS","PREMISES RELATED EXPENDITURE","ENERGY COSTS (ELECTRICITY)","2332","KENT COUNTY COUNCIL (KCS)",26/12/2021 00:00:00,"257480",106.33,"KE0007","KENT COUNTY COUNCIL (KCS)",29/11/2021 00:00:00,26/12/2021 00:00:00,"P09-2022"
"P&V","SOUTH AREA RANGERS","PREMISES RELATED EXPENDITURE","ENERGY COSTS (ELECTRICITY)","2332","KENT COUNTY COUNCIL (KCS)",16/12/2021 00:00:00,"257139",239.82,"KE0007","KENT COUNTY COUNCIL (KCS)",29/11/2021 00:00:00,26/12/2021 00:00:00,"P09-2022"
"P&V","ABBEY GARDENS","PREMISES RELATED EXPENDITURE","ENERGY COSTS (ELECTRICITY)","2332","KENT COUNTY COUNCIL (KCS)",16/12/2021 00:00:00,"257148",766.52,"KE0007","KENT COUNTY COUNCIL (KCS)",29/11/2021 00:00:00,26/12/2021 00:00:00,"P09-2022"
"P&V","GUNPOWDER PARK","PREMISES RELATED EXPENDITURE","ENERGY COSTS (ELECTRICITY)","2332","KENT COUNTY COUNCIL (KCS)",6/12/2021 00:00:00,"255974",272.71,"KE0007","KENT COUNTY COUNCIL (KCS)",29/11/2021 00:00:00,26/12/2021 00:00:00,"P09-2022"
"P&V","GUNPOWDER PARK","PREMISES RELATED EXPENDITURE","ENERGY COSTS (ELECTRICITY)","2332","KENT COUNTY COUNCIL (KCS)",16/12/2021 00:00:00,"257147",306.23,"KE0007","KENT COUNTY COUNCIL (KCS)",29/11/2021 00:00:00,26/12/2021 00:00:00,"P09-2022"
"P&V","GUNPOWDER PARK","PREMISES RELATED EXPENDITURE","ENERGY COSTS (ELECTRICITY)","2332","KENT COUNTY COUNCIL (KCS)",21/12/2021 00:00:00,"257191",62.91,"KE0007","KENT COUNTY COUNCIL (KCS)",29/11/2021 00:00:00,26/12/2021 00:00:00,"P09-2022"
"P&V","RIVER LEE COUNTRY PARK","PREMISES RELATED EXPENDITURE","ENERGY COSTS (ELECTRICITY)","2332","KENT COUNTY COUNCIL (KCS)",16/12/2021 00:00:00,"257142",337.27,"KE0007","KENT COUNTY COUNCIL (KCS)",29/11/2021 00:00:00,26/12/2021 00:00:00,"P09-2022"
"P&V","RIVER LEE COUNTRY PARK","PREMISES RELATED EXPENDITURE","ENERGY COSTS (ELECTRICITY)","2332","KENT COUNTY COUNCIL (KCS)",20/12/2021 00:00:00,"257181",87.38,"KE0007","KENT COUNTY COUNCIL (KCS)",29/11/2021 00:00:00,26/12/2021 00:00:00,"P09-2022"
"P&V","CAR PARK INCOME","PREMISES RELATED EXPENDITURE","ENERGY COSTS (ELECTRICITY)","2332","NPOWER LIMITED",21/12/2021 00:00:00,"257196",28.29,"NP0123","NPOWER LIMITED",29/11/2021 00:00:00,26/12/2021 00:00:00,"P09-2022"
"P&V","CAR PARK INCOME","PREMISES RELATED EXPENDITURE","ENERGY COSTS (ELECTRICITY)","2332","NPOWER LIMITED",21/12/2021 00:00:00,"257197",31.64,"NP0123","NPOWER LIMITED",29/11/2021 00:00:00,26/12/2021 00:00:00,"P09-2022"
"P&V","CAR PARK INCOME","PREMISES RELATED EXPENDITURE","ENERGY COSTS (ELECTRICITY)","2332","NPOWER LIMITED",21/12/2021 00:00:00,"257198",32.96,"NP0123","NPOWER LIMITED",29/11/2021 00:00:00,26/12/2021 00:00:00,"P09-2022"
"P&V","CAR PARK INCOME","PREMISES RELATED EXPENDITURE","ENERGY COSTS (ELECTRICITY)","2332","NPOWER LIMITED",21/12/2021 00:00:00,"257199",26.02,"NP0123","NPOWER LIMITED",29/11/2021 00:00:00,26/12/2021 00:00:00,"P09-2022"
"P&V","CAR PARK INCOME","PREMISES RELATED EXPENDITURE","ENERGY COSTS (ELECTRICITY)","2332","NPOWER LIMITED",21/12/2021 00:00:00,"257200",27.13,"NP0123","NPOWER LIMITED",29/11/2021 00:00:00,26/12/2021 00:00:00,"P09-2022"
"P&V","CAR PARK INCOME","PREMISES RELATED EXPENDITURE","ENERGY COSTS (ELECTRICITY)","2332","NPOWER LIMITED",21/12/2021 00:00:00,"257201",23.03,"NP0123","NPOWER LIMITED",29/11/2021 00:00:00,26/12/2021 00:00:00,"P09-2022"
,"LEE VALLEY VELOPARK","PREMISES RELATED EXPENDITURE","ENERGY COSTS (ELECTRICITY)","2332","EDF ENERGY CUSTOMERS PLC",6/12/2021 00:00:00,"256516",9.19,"ED0321","EDF ENERGY CUSTOMERS PLC",29/11/2021 00:00:00,26/12/2021 00:00:00,"P09-2022"
,"LEE VALLEY VELOPARK","PREMISES RELATED EXPENDITURE","ENERGY COSTS (ELECTRICITY)","2332","P115493-SERVICE-Heat Supply August",20/12/2021 00:00:00,"256581",445.4,"LO0410","(MAIN) LONDON LEGACY DEVELOPMENT CORPORATION",29/11/2021 00:00:00,26/12/2021 00:00:00,"P09-2022"
,"LEE VALLEY VELOPARK","PREMISES RELATED EXPENDITURE","ENERGY COSTS (ELECTRICITY)","2332","P115493-SERVICE-Heat Supply September",20/12/2021 00:00:00,"256581",13696.29,"LO0410","(MAIN) LONDON LEGACY DEVELOPMENT CORPORATION",29/11/2021 00:00:00,26/12/2021 00:00:00,"P09-2022"
,"LEE VALLEY VELOPARK","PREMISES RELATED EXPENDITURE","ENERGY COSTS (ELECTRICITY)","2332","P115493-SERVICE-Heat Supply June",20/12/2021 00:00:00,"256581",476.38,"LO0410","(MAIN) LONDON LEGACY DEVELOPMENT CORPORATION",29/11/2021 00:00:00,26/12/2021 00:00:00,"P09-2022"
,"LEE VALLEY VELOPARK","PREMISES RELATED EXPENDITURE","ENERGY COSTS (ELECTRICITY)","2332","KENT COUNTY COUNCIL (KCS)",20/12/2021 00:00:00,"257001",0.99,"KE0007","KENT COUNTY COUNCIL (KCS)",29/11/2021 00:00:00,26/12/2021 00:00:00,"P09-2022"
,"LEE VALLEY VELOPARK","PREMISES RELATED EXPENDITURE","ENERGY COSTS (ELECTRICITY)","2332","KENT COUNTY COUNCIL (KCS)",20/12/2021 00:00:00,"257001",91.08,"KE0007","KENT COUNTY COUNCIL (KCS)",29/11/2021 00:00:00,26/12/2021 00:00:00,"P09-2022"
,"LEE VALLEY VELOPARK","PREMISES RELATED EXPENDITURE","ENERGY COSTS (ELECTRICITY)","2332","KENT COUNTY COUNCIL (KCS)",20/12/2021 00:00:00,"257136",40.68,"KE0007","KENT COUNTY COUNCIL (KCS)",29/11/2021 00:00:00,26/12/2021 00:00:00,"P09-2022"
,"LEE VALLEY VELOPARK","PREMISES RELATED EXPENDITURE","ENERGY COSTS (ELECTRICITY)","2332","KENT COUNTY COUNCIL (KCS)",20/12/2021 00:00:00,"257137",101.32,"KE0007","KENT COUNTY COUNCIL (KCS)",29/11/2021 00:00:00,26/12/2021 00:00:00,"P09-2022"
,"LEE VALLEY VELOPARK","PREMISES RELATED EXPENDITURE","ENERGY COSTS (ELECTRICITY)","2332","KENT COUNTY COUNCIL (KCS)",20/12/2021 00:00:00,"257138",999.78,"KE0007","KENT COUNTY COUNCIL (KCS)",29/11/2021 00:00:00,26/12/2021 00:00:00,"P09-2022"
,"LEE VALLEY VELOPARK","PREMISES RELATED EXPENDITURE","ENERGY COSTS (ELECTRICITY)","2332","KENT COUNTY COUNCIL (KCS)",20/12/2021 00:00:00,"257149",196.15,"KE0007","KENT COUNTY COUNCIL (KCS)",29/11/2021 00:00:00,26/12/2021 00:00:00,"P09-2022"
,"LEE VALLEY VELOPARK","PREMISES RELATED EXPENDITURE","ENERGY COSTS (ELECTRICITY)","2332","NPOWER LIMITED",22/12/2021 00:00:00,"257202",13342.65,"NP0123","NPOWER LIMITED",29/11/2021 00:00:00,26/12/2021 00:00:00,"P09-2022"
,"LEE VALLEY VELOPARK","PREMISES RELATED EXPENDITURE","ENERGY COSTS (ELECTRICITY)","2332","NPOWER LIMITED",22/12/2021 00:00:00,"257203",14196.87,"NP0123","NPOWER LIMITED",29/11/2021 00:00:00,26/12/2021 00:00:00,"P09-2022"
,"LEE VALLEY VELOPARK","PREMISES RELATED EXPENDITURE","ENERGY COSTS (ELECTRICITY)","2332","NPOWER LIMITED",22/12/2021 00:00:00,"257204",13573.69,"NP0123","NPOWER LIMITED",29/11/2021 00:00:00,26/12/2021 00:00:00,"P09-2022"
,"LEE VALLEY VELOPARK","PREMISES RELATED EXPENDITURE","ENERGY COSTS (ELECTRICITY)","2332","EDF ENERGY CUSTOMERS PLC",22/12/2021 00:00:00,"257231",474.2,"ED0321","EDF ENERGY CUSTOMERS PLC",29/11/2021 00:00:00,26/12/2021 00:00:00,"P09-2022"
,"LV HOCKEY AND TENNIS CENTRE","PREMISES RELATED EXPENDITURE","ENERGY COSTS (ELECTRICITY)","2332","P115708-SERVICE-July 21",16/12/2021 00:00:00,"256580",266.08,"LO0410","(MAIN) LONDON LEGACY DEVELOPMENT CORPORATION",29/11/2021 00:00:00,26/12/2021 00:00:00,"P09-2022"
,"LV HOCKEY AND TENNIS CENTRE","PREMISES RELATED EXPENDITURE","ENERGY COSTS (ELECTRICITY)","2332","P115708-SERVICE-August 21",16/12/2021 00:00:00,"256580",244.77,"LO0410","(MAIN) LONDON LEGACY DEVELOPMENT CORPORATION",29/11/2021 00:00:00,26/12/2021 00:00:00,"P09-2022"
,"LV HOCKEY AND TENNIS CENTRE","PREMISES RELATED EXPENDITURE","ENERGY COSTS (ELECTRICITY)","2332","P115708-SERVICE-September 21",16/12/2021 00:00:00,"256580",7262.67,"LO0410","(MAIN) LONDON LEGACY DEVELOPMENT CORPORATION",29/11/2021 00:00:00,26/12/2021 00:00:00,"P09-2022"
,"LV HOCKEY AND TENNIS CENTRE","PREMISES RELATED EXPENDITURE","ENERGY COSTS (ELECTRICITY)","2332","KENT COUNTY COUNCIL (KCS)",20/12/2021 00:00:00,"257146",186.06,"KE0007","KENT COUNTY COUNCIL (KCS)",29/11/2021 00:00:00,26/12/2021 00:00:00,"P09-2022"
,"LV HOCKEY AND TENNIS CENTRE","PREMISES RELATED EXPENDITURE","ENERGY COSTS (ELECTRICITY)","2332","NPOWER LIMITED",20/12/2021 00:00:00,"257193",14104.26,"NP0123","NPOWER LIMITED",29/11/2021 00:00:00,26/12/2021 00:00:00,"P09-2022"
,"LEE VALLEY RIDING CENTRE","PREMISES RELATED EXPENDITURE","ENERGY COSTS (ELECTRICITY)","2332","NPOWER LIMITED",20/12/2021 00:00:00,"257192",952.74,"NP0123","NPOWER LIMITED",29/11/2021 00:00:00,26/12/2021 00:00:00,"P09-2022"
,"LEE VALLEY RIDING CENTRE","PREMISES RELATED EXPENDITURE","ENERGY COSTS (ELECTRICITY)","2332","EDF ENERGY 1 LIMITED",20/12/2021 00:00:00,"257230",97.1,"ED0077","EDF ENERGY 1 LIMITED",29/11/2021 00:00:00,26/12/2021 00:00:00,"P09-2022"
,"LV LEISURE CENTRE CAMPSITE","PREMISES RELATED EXPENDITURE","ENERGY COSTS (ELECTRICITY)","2332","NPOWER LIMITED",22/12/2021 00:00:00,"257194",6088.53,"NP0123","NPOWER LIMITED",29/11/2021 00:00:00,26/12/2021 00:00:00,"P09-2022"
,"LEE VALLEY WHITE WATER CENTRE","PREMISES RELATED EXPENDITURE","ENERGY COSTS (ELECTRICITY)","2332","NPOWER LIMITED",20/12/2021 00:00:00,"257205",15962.36,"NP0123","NPOWER LIMITED",29/11/2021 00:00:00,26/12/2021 00:00:00,"P09-2022"
,"LEE VALLEY WHITE WATER CENTRE","PREMISES RELATED EXPENDITURE","ENERGY COSTS (ELECTRICITY)","2332","NPOWER LIMITED",20/12/2021 00:00:00,"257206",15001.1,"NP0123","NPOWER LIMITED",29/11/2021 00:00:00,26/12/2021 00:00:00,"P09-2022"
,"LEE VALLEY WHITE WATER CENTRE","PREMISES RELATED EXPENDITURE","ENERGY COSTS (ELECTRICITY)","2332","NPOWER LIMITED",20/12/2021 00:00:00,"257207",11113.18,"NP0123","NPOWER LIMITED",29/11/2021 00:00:00,26/12/2021 00:00:00,"P09-2022"
,"LEE VALLEY WHITE WATER CENTRE","PREMISES RELATED EXPENDITURE","ENERGY COSTS (ELECTRICITY)","2332","NPOWER LIMITED",20/12/2021 00:00:00,"257208",13216.28,"NP0123","NPOWER LIMITED",29/11/2021 00:00:00,26/12/2021 00:00:00,"P09-2022"
,"LEE VALLEY WHITE WATER CENTRE","PREMISES RELATED EXPENDITURE","ENERGY COSTS (ELECTRICITY)","2332","NPOWER LIMITED",20/12/2021 00:00:00,"257209",12512.91,"NP0123","NPOWER LIMITED",29/11/2021 00:00:00,26/12/2021 00:00:00,"P09-2022"
,"LEE VALLEY WHITE WATER CENTRE","PREMISES RELATED EXPENDITURE","ENERGY COSTS (ELECTRICITY)","2332","NPOWER LIMITED",20/12/2021 00:00:00,"257210",8605.36,"NP0123","NPOWER LIMITED",29/11/2021 00:00:00,26/12/2021 00:00:00,"P09-2022"
,"LEE VALLEY WHITE WATER CENTRE","PREMISES RELATED EXPENDITURE","ENERGY COSTS (ELECTRICITY)","2332","NPOWER LIMITED",20/12/2021 00:00:00,"257211",21266.86,"NP0123","NPOWER LIMITED",29/11/2021 00:00:00,26/12/2021 00:00:00,"P09-2022"
,"LEE VALLEY WHITE WATER CENTRE","PREMISES RELATED EXPENDITURE","ENERGY COSTS (ELECTRICITY)","2332","NPOWER LIMITED",20/12/2021 00:00:00,"257212",531.99,"NP0123","NPOWER LIMITED",29/11/2021 00:00:00,26/12/2021 00:00:00,"P09-2022"
"P&V","MYDDELTON HOUSE","PREMISES RELATED EXPENDITURE","ENERGY COSTS (GAS)","2333","KENT COUNTY COUNCIL (KCS)",20/12/2021 00:00:00,"256901",-508.73,"KE0007","KENT COUNTY COUNCIL (KCS)",29/11/2021 00:00:00,26/12/2021 00:00:00,"P09-2022"
"P&V","MYDDELTON HOUSE","PREMISES RELATED EXPENDITURE","ENERGY COSTS (GAS)","2333","KENT COUNTY COUNCIL (KCS)",20/12/2021 00:00:00,"256902",393.86,"KE0007","KENT COUNTY COUNCIL (KCS)",29/11/2021 00:00:00,26/12/2021 00:00:00,"P09-2022"
"P&V","MYDDELTON HOUSE","PREMISES RELATED EXPENDITURE","ENERGY COSTS (GAS)","2333","KENT COUNTY COUNCIL (KCS)",20/12/2021 00:00:00,"256903",479.31,"KE0007","KENT COUNTY COUNCIL (KCS)",29/11/2021 00:00:00,26/12/2021 00:00:00,"P09-2022"
,"LEE VALLEY MARINA SPRINGFIELD","PREMISES RELATED EXPENDITURE","ENERGY COSTS (GAS)","2333","KENT COUNTY COUNCIL (KCS)",13/12/2021 00:00:00,"256893",453.13,"KE0007","KENT COUNTY COUNCIL (KCS)",29/11/2021 00:00:00,26/12/2021 00:00:00,"P09-2022"
,"LEE VALLEY MARINA STANSTEAD","PREMISES RELATED EXPENDITURE","ENERGY COSTS (GAS)","2333","KENT COUNTY COUNCIL (KCS)",13/12/2021 00:00:00,"256894",322.47,"KE0007","KENT COUNTY COUNCIL (KCS)",29/11/2021 00:00:00,26/12/2021 00:00:00,"P09-2022"
,"LEE VALLEY MARINA STANSTEAD","PREMISES RELATED EXPENDITURE","ENERGY COSTS (GAS)","2333","KENT COUNTY COUNCIL (KCS)",13/12/2021 00:00:00,"256895",101.5,"KE0007","KENT COUNTY COUNCIL (KCS)",29/11/2021 00:00:00,26/12/2021 00:00:00,"P09-2022"
,"LEE VALLEY WATERWORKS CENTRE","PREMISES RELATED EXPENDITURE","ENERGY COSTS (GAS)","2333","KENT COUNTY COUNCIL (KCS)",14/12/2021 00:00:00,"256892",345.06,"KE0007","KENT COUNTY COUNCIL (KCS)",29/11/2021 00:00:00,26/12/2021 00:00:00,"P09-2022"
,"LEE VALLEY CAMPSITE","PREMISES RELATED EXPENDITURE","ENERGY COSTS (GAS)","2333","KENT COUNTY COUNCIL (KCS)",15/12/2021 00:00:00,"256896",491.34,"KE0007","KENT COUNTY COUNCIL (KCS)",29/11/2021 00:00:00,26/12/2021 00:00:00,"P09-2022"
,"LEE VALLEY CARAVAN PARK","PREMISES RELATED EXPENDITURE","ENERGY COSTS (GAS)","2333","P115723-SERVICE-re-fill gas tanks",20/12/2021 00:00:00,"256842",5514.63,"AV0327","AVANTI GAS LIMITED",29/11/2021 00:00:00,26/12/2021 00:00:00,"P09-2022"
"P&V","GUNPOWDER PARK","PREMISES RELATED EXPENDITURE","ENERGY COSTS (GAS)","2333","KENT COUNTY COUNCIL (KCS)",6/12/2021 00:00:00,"255681",59.02,"KE0007","KENT COUNTY COUNCIL (KCS)",29/11/2021 00:00:00,26/12/2021 00:00:00,"P09-2022"
"P&V","GUNPOWDER PARK","PREMISES RELATED EXPENDITURE","ENERGY COSTS (GAS)","2333","KENT COUNTY COUNCIL (KCS)",21/12/2021 00:00:00,"256900",-59.02,"KE0007","KENT COUNTY COUNCIL (KCS)",29/11/2021 00:00:00,26/12/2021 00:00:00,"P09-2022"
"P&V","GUNPOWDER PARK","PREMISES RELATED EXPENDITURE","ENERGY COSTS (GAS)","2333","KENT COUNTY COUNCIL (KCS)",21/12/2021 00:00:00,"256972",-51.43,"KE0007","KENT COUNTY COUNCIL (KCS)",29/11/2021 00:00:00,26/12/2021 00:00:00,"P09-2022"
"P&V","GUNPOWDER PARK","PREMISES RELATED EXPENDITURE","ENERGY COSTS (GAS)","2333","KENT COUNTY COUNCIL (KCS)",21/12/2021 00:00:00,"256973",47.33,"KE0007","KENT COUNTY COUNCIL (KCS)",29/11/2021 00:00:00,26/12/2021 00:00:00,"P09-2022"
"P&V","GUNPOWDER PARK","PREMISES RELATED EXPENDITURE","ENERGY COSTS (GAS)","2333","KENT COUNTY COUNCIL (KCS)",21/12/2021 00:00:00,"256974",-47.32,"KE0007","KENT COUNTY COUNCIL (KCS)",29/11/2021 00:00:00,26/12/2021 00:00:00,"P09-2022"
"P&V","GUNPOWDER PARK","PREMISES RELATED EXPENDITURE","ENERGY COSTS (GAS)","2333","KENT COUNTY COUNCIL (KCS)",21/12/2021 00:00:00,"256975",46.54,"KE0007","KENT COUNTY COUNCIL (KCS)",29/11/2021 00:00:00,26/12/2021 00:00:00,"P09-2022"
"P&V","GUNPOWDER PARK","PREMISES RELATED EXPENDITURE","ENERGY COSTS (GAS)","2333","KENT COUNTY COUNCIL (KCS)",21/12/2021 00:00:00,"256976",-48.21,"KE0007","KENT COUNTY COUNCIL (KCS)",29/11/2021 00:00:00,26/12/2021 00:00:00,"P09-2022"
"P&V","GUNPOWDER PARK","PREMISES RELATED EXPENDITURE","ENERGY COSTS (GAS)","2333","KENT COUNTY COUNCIL (KCS)",21/12/2021 00:00:00,"256977",44.88,"KE0007","KENT COUNTY COUNCIL (KCS)",29/11/2021 00:00:00,26/12/2021 00:00:00,"P09-2022"
"P&V","GUNPOWDER PARK","PREMISES RELATED EXPENDITURE","ENERGY COSTS (GAS)","2333","KENT COUNTY COUNCIL (KCS)",21/12/2021 00:00:00,"256978",46.54,"KE0007","KENT COUNTY COUNCIL (KCS)",29/11/2021 00:00:00,26/12/2021 00:00:00,"P09-2022"
"P&V","GUNPOWDER PARK","PREMISES RELATED EXPENDITURE","ENERGY COSTS (GAS)","2333","KENT COUNTY COUNCIL (KCS)",21/12/2021 00:00:00,"256979",45.08,"KE0007","KENT COUNTY COUNCIL (KCS)",29/11/2021 00:00:00,26/12/2021 00:00:00,"P09-2022"
,"LEE VALLEY RIDING CENTRE","PREMISES RELATED EXPENDITURE","ENERGY COSTS (GAS)","2333","KENT COUNTY COUNCIL (KCS)",13/12/2021 00:00:00,"256591",-79.29,"KE0007","KENT COUNTY COUNCIL (KCS)",29/11/2021 00:00:00,26/12/2021 00:00:00,"P09-2022"
,"LEE VALLEY RIDING CENTRE","PREMISES RELATED EXPENDITURE","ENERGY COSTS (GAS)","2333","KENT COUNTY COUNCIL (KCS)",13/12/2021 00:00:00,"256592",79.29,"KE0007","KENT COUNTY COUNCIL (KCS)",29/11/2021 00:00:00,26/12/2021 00:00:00,"P09-2022"
,"LEE VALLEY RIDING CENTRE","PREMISES RELATED EXPENDITURE","ENERGY COSTS (GAS)","2333","TOTALENERGIES GAS & POWER LIMI",20/12/2021 00:00:00,"256941",204.3,"TO0168","TOTALENERGIES GAS & POWER LIMITED",29/11/2021 00:00:00,26/12/2021 00:00:00,"P09-2022"
,"LV LEISURE CENTRE CAMPSITE","PREMISES RELATED EXPENDITURE","ENERGY COSTS (GAS)","2333","KENT COUNTY COUNCIL (KCS)",14/12/2021 00:00:00,"256891",1461.95,"KE0007","KENT COUNTY COUNCIL (KCS)",29/11/2021 00:00:00,26/12/2021 00:00:00,"P09-2022"
,"LEE VALLEY MARINA SPRINGFIELD","PREMISES RELATED EXPENDITURE","RENT (EXTERNAL)","2442","THAMES WATER UTILITIES LIMITED",6/12/2021 00:00:00,"256011",2618.75,"TH0020","THAMES WATER UTILITIES LIMITED-  SAVILLS",29/11/2021 00:00:00,26/12/2021 00:00:00,"P09-2022"
"P&V","NORTH AREA RANGERS","PREMISES RELATED EXPENDITURE","RENT (EXTERNAL)","2442","THAMES WATER UTILITIES LIMITED",26/12/2021 00:00:00,"257299",68.75,"TH0020","THAMES WATER UTILITIES LIMITED-  SAVILLS",29/11/2021 00:00:00,26/12/2021 00:00:00,"P09-2022"
"CEO","RESIDENTIAL ACCOMMODATION","PREMISES RELATED EXPENDITURE","PROPERTY MANAGEMT/LETTING FEES","2447","P115536-SERVICE-Landlord Warranty - 7 Picketts Lock Lane",8/12/2021 00:00:00,"256312",244.8,"CA0165","CASTLES",29/11/2021 00:00:00,26/12/2021 00:00:00,"P09-2022"
"CEO","RESIDENTIAL ACCOMMODATION","PREMISES RELATED EXPENDITURE","PROPERTY MANAGEMT/LETTING FEES","2447","P115535-SERVICE-Landlord Fees - 7 Picketts Lock Lane",8/12/2021 00:00:00,"256313",1440,"CA0165","CASTLES",29/11/2021 00:00:00,26/12/2021 00:00:00,"P09-2022"
,"LEE VALLEY MARINA STANSTEAD","PREMISES RELATED EXPENDITURE","WATER","2555","CASTLE WATER LIMITED",1/12/2021 00:00:00,"256247",121.19,"CA0625","CASTLE WATER LIMITED",29/11/2021 00:00:00,26/12/2021 00:00:00,"P09-2022"
,"LEE VALLEY MARINA STANSTEAD","PREMISES RELATED EXPENDITURE","WATER","2555","CASTLE WATER LIMITED",1/12/2021 00:00:00,"256247",126.8,"CA0625","CASTLE WATER LIMITED",29/11/2021 00:00:00,26/12/2021 00:00:00,"P09-2022"
,"LEE VALLEY MARINA STANSTEAD","PREMISES RELATED EXPENDITURE","WATER","2555","CASTLE WATER LIMITED",1/12/2021 00:00:00,"256249",849.26,"CA0625","CASTLE WATER LIMITED",29/11/2021 00:00:00,26/12/2021 00:00:00,"P09-2022"
,"LEE VALLEY MARINA STANSTEAD","PREMISES RELATED EXPENDITURE","WATER","2555","CASTLE WATER LIMITED",7/12/2021 00:00:00,"256289",-121.19,"CA0625","CASTLE WATER LIMITED",29/11/2021 00:00:00,26/12/2021 00:00:00,"P09-2022"
,"LEE VALLEY MARINA STANSTEAD","PREMISES RELATED EXPENDITURE","WATER","2555","CASTLE WATER LIMITED",7/12/2021 00:00:00,"256289",-126.8,"CA0625","CASTLE WATER LIMITED",29/11/2021 00:00:00,26/12/2021 00:00:00,"P09-2022"
,"LEE VALLEY MARINA STANSTEAD","PREMISES RELATED EXPENDITURE","WATER","2555","CASTLE WATER LIMITED",15/12/2021 00:00:00,"256290",80.83,"CA0625","CASTLE WATER LIMITED",29/11/2021 00:00:00,26/12/2021 00:00:00,"P09-2022"
,"LEE VALLEY MARINA STANSTEAD","PREMISES RELATED EXPENDITURE","WATER","2555","CASTLE WATER LIMITED",15/12/2021 00:00:00,"256290",75.68,"CA0625","CASTLE WATER LIMITED",29/11/2021 00:00:00,26/12/2021 00:00:00,"P09-2022"
"P&V","RIVER LEE COUNTRY PARK","PREMISES RELATED EXPENDITURE","WATER","2555","CASTLE WATER LIMITED",1/12/2021 00:00:00,"255996",108.23,"CA0625","CASTLE WATER LIMITED",29/11/2021 00:00:00,26/12/2021 00:00:00,"P09-2022"
,"LEE VALLEY MARINA SPRINGFIELD","PREMISES RELATED EXPENDITURE","CLEANING & DOMESTIC SUPPLIES","2666","P114471-SERVICE-Site cleaning for Sept,Oct,Nov & Dec 2021",6/12/2021 00:00:00,"256314",912.33,"MA0015","MAYFAIR CLEANING COMPANY LIMITED",29/11/2021 00:00:00,26/12/2021 00:00:00,"P09-2022"
,"LEE VALLEY MARINA SPRINGFIELD","PREMISES RELATED EXPENDITURE","CLEANING & DOMESTIC SUPPLIES","2666","P115392-SERVICE-To supply items as requested",20/12/2021 00:00:00,"256944",255.23,"HY0043","HYGIENE SYSTEMS LTD",29/11/2021 00:00:00,26/12/2021 00:00:00,"P09-2022"
,"LEE VALLEY MARINA SPRINGFIELD","PREMISES RELATED EXPENDITURE","CLEANING & DOMESTIC SUPPLIES","2666","P114767-SERVICE-Sanitary Disposal/Dust Mats ect rental",26/12/2021 00:00:00,"257309",186.18,"PE0015","PHS GROUP PLC",29/11/2021 00:00:00,26/12/2021 00:00:00,"P09-2022"
,"LEE VALLEY WATERWORKS CENTRE","PREMISES RELATED EXPENDITURE","CLEANING & DOMESTIC SUPPLIES","2666","P115479-SERVICE-Cleaning WaterWorks Centre - Nov 2021",7/12/2021 00:00:00,"256308",526,"GL0214","GLENDALE GROUNDS MANAGEMENT LIMITED",29/11/2021 00:00:00,26/12/2021 00:00:00,"P09-2022"
,"LEE VALLEY CARAVAN PARK","PREMISES RELATED EXPENDITURE","CLEANING & DOMESTIC SUPPLIES","2666","P115344-SERVICE-Cleaning supplies",6/12/2021 00:00:00,"256322",560.34,"HY0043","HYGIENE SYSTEMS LTD",29/11/2021 00:00:00,26/12/2021 00:00:00,"P09-2022"
,"LEE VALLEY VELOPARK","PREMISES RELATED EXPENDITURE","CLEANING & DOMESTIC SUPPLIES","2666","P115013-SERVICE-Cleaning Products",16/12/2021 00:00:00,"256533",2238.16,"BR0025","BREEZE SOUTHERN LTD",29/11/2021 00:00:00,26/12/2021 00:00:00,"P09-2022"
,"LV HOCKEY AND TENNIS CENTRE","PREMISES RELATED EXPENDITURE","CLEANING & DOMESTIC SUPPLIES","2666","P113781-SERVICE-Hygiene prducts August - Dec 2021",7/12/2021 00:00:00,"256348",364.82,"PE0015","PHS GROUP PLC",29/11/2021 00:00:00,26/12/2021 00:00:00,"P09-2022"
,"LV HOCKEY AND TENNIS CENTRE","PREMISES RELATED EXPENDITURE","CLEANING & DOMESTIC SUPPLIES","2666","P115141-SERVICE-cleaning supplies until March 2022",13/12/2021 00:00:00,"256529",266.26,"BR0025","BREEZE SOUTHERN LTD",29/11/2021 00:00:00,26/12/2021 00:00:00,"P09-2022"
,"LV HOCKEY AND TENNIS CENTRE","PREMISES RELATED EXPENDITURE","CLEANING & DOMESTIC SUPPLIES","2666","P115141-SERVICE-cleaning supplies until March 2022",13/12/2021 00:00:00,"256530",299.3,"BR0025","BREEZE SOUTHERN LTD",29/11/2021 00:00:00,26/12/2021 00:00:00,"P09-2022"
,"LV HOCKEY AND TENNIS CENTRE","PREMISES RELATED EXPENDITURE","CLEANING & DOMESTIC SUPPLIES","2666","P115141-SERVICE-cleaning supplies until March 2022",13/12/2021 00:00:00,"256531",76.37,"BR0025","BREEZE SOUTHERN LTD",29/11/2021 00:00:00,26/12/2021 00:00:00,"P09-2022"
,"LEE VALLEY RIDING CENTRE","PREMISES RELATED EXPENDITURE","CLEANING & DOMESTIC SUPPLIES","2666","P107357-SERVICE-SUPPLIES AND SERVICES FOR TOILETS",6/12/2021 00:00:00,"256282",132.94,"PE0015","PHS GROUP PLC",29/11/2021 00:00:00,26/12/2021 00:00:00,"P09-2022"
,"LV LEISURE CENTRE CAMPSITE","PREMISES RELATED EXPENDITURE","CLEANING & DOMESTIC SUPPLIES","2666","P115660-SERVICE-cLEANING SUPPLIES",20/12/2021 00:00:00,"257182",310.32,"HY0043","HYGIENE SYSTEMS LTD",29/11/2021 00:00:00,26/12/2021 00:00:00,"P09-2022"
,"LEE VALLEY ATHLETICS CENTRE","PREMISES RELATED EXPENDITURE","CLEANING & DOMESTIC SUPPLIES","2666","P115487-SERVICE-LVAC ORDER EMAILED 2.12.21 A.BEACON",13/12/2021 00:00:00,"256711",157.93,"HY0043","HYGIENE SYSTEMS LTD",29/11/2021 00:00:00,26/12/2021 00:00:00,"P09-2022"
,"LEE VALLEY ATHLETICS CENTRE","PREMISES RELATED EXPENDITURE","CLEANING & DOMESTIC SUPPLIES","2666","P115111-SERVICE-STOCK REF: EMALI AMBER BEACON 11.11.21",26/12/2021 00:00:00,"256956",4.26,"HY0043","HYGIENE SYSTEMS LTD",29/11/2021 00:00:00,26/12/2021 00:00:00,"P09-2022"
,"LEE VALLEY WHITE WATER CENTRE","PREMISES RELATED EXPENDITURE","CLEANING & DOMESTIC SUPPLIES","2666","P114328-SERVICE-Cleaning supplies",6/12/2021 00:00:00,"256217",50.9,"SU0595","SUMMIT HYGIENE LTD",29/11/2021 00:00:00,26/12/2021 00:00:00,"P09-2022"
,"LEE VALLEY WHITE WATER CENTRE","PREMISES RELATED EXPENDITURE","CLEANING & DOMESTIC SUPPLIES","2666","P115258-SERVICE-Cleaning supplies",6/12/2021 00:00:00,"256218",110.26,"SU0595","SUMMIT HYGIENE LTD",29/11/2021 00:00:00,26/12/2021 00:00:00,"P09-2022"
,"LEE VALLEY WHITE WATER CENTRE","PREMISES RELATED EXPENDITURE","CLEANING & DOMESTIC SUPPLIES","2666","P115483-SERVICE-Cleaning supplies",15/12/2021 00:00:00,"256615",214.48,"SU0595","SUMMIT HYGIENE LTD",29/11/2021 00:00:00,26/12/2021 00:00:00,"P09-2022"
,"LEE VALLEY WHITE WATER CENTRE","PREMISES RELATED EXPENDITURE","CLEANING & DOMESTIC SUPPLIES","2666","P115721-SERVICE-Mop and pads",20/12/2021 00:00:00,"257120",7.49,"AM0406","AMAZON PAYMENTS UK LIMITED",29/11/2021 00:00:00,26/12/2021 00:00:00,"P09-2022"
,"LEE VALLEY WHITE WATER CENTRE","PREMISES RELATED EXPENDITURE","CLEANING & DOMESTIC SUPPLIES","2666","P115721-SERVICE-Mop and pads",20/12/2021 00:00:00,"257173",10,"AM0406","AMAZON PAYMENTS UK LIMITED",29/11/2021 00:00:00,26/12/2021 00:00:00,"P09-2022"
,"LEE VALLEY WHITE WATER CENTRE","PREMISES RELATED EXPENDITURE","CLEANING & DOMESTIC SUPPLIES","2666","P115721-SERVICE-Lobby brush and dustpan",20/12/2021 00:00:00,"257173",2.87,"AM0406","AMAZON PAYMENTS UK LIMITED",29/11/2021 00:00:00,26/12/2021 00:00:00,"P09-2022"
,"LEE VALLEY WHITE WATER CENTRE","PREMISES RELATED EXPENDITURE","CLEANING & DOMESTIC SUPPLIES","2666","P115721-SERVICE-Lobby brush and dustpan",20/12/2021 00:00:00,"257174",12.87,"AM0406","AMAZON PAYMENTS UK LIMITED",29/11/2021 00:00:00,26/12/2021 00:00:00,"P09-2022"
,"LEE VALLEY WHITE WATER CENTRE","PREMISES RELATED EXPENDITURE","CLEANING & DOMESTIC SUPPLIES","2666","P115721-SERVICE-Lobby brush and dustpan",20/12/2021 00:00:00,"257175",10,"AM0406","AMAZON PAYMENTS UK LIMITED",29/11/2021 00:00:00,26/12/2021 00:00:00,"P09-2022"
"P&V","LEE VALLEY FARM HOLYFIELDHALL","TRANSPORT RELATED EXPENDITURE","TRANSPORT RUNNING EXPENSES","3333","P113482-SERVICE-Parts",26/12/2021 00:00:00,"253209",806.75,"OL0059","OLIVER LANDPOWER LIMITED",29/11/2021 00:00:00,26/12/2021 00:00:00,"P09-2022"
"P&V","LEE VALLEY FARM HOLYFIELDHALL","TRANSPORT RELATED EXPENDITURE","TRANSPORT RUNNING EXPENSES","3333","P111473-SERVICE-Tractor Spares",7/12/2021 00:00:00,"256292",88,"OL0001","OLIVER AGRICULTURE LTD",29/11/2021 00:00:00,26/12/2021 00:00:00,"P09-2022"
"P&V","LEE VALLEY FARM HOLYFIELDHALL","TRANSPORT RELATED EXPENDITURE","TRANSPORT RUNNING EXPENSES","3333","P111468-SERVICE-Hose Repair/Sundries",7/12/2021 00:00:00,"256320",211.36,"HU0003","ALLIANCE AUTOMOTIVE UK CV LIMITED T/A",29/11/2021 00:00:00,26/12/2021 00:00:00,"P09-2022"
"P&V","LEE VALLEY FARM HOLYFIELDHALL","TRANSPORT RELATED EXPENDITURE","TRANSPORT RUNNING EXPENSES","3333","P114431-SERVICE-Chains & Belts",7/12/2021 00:00:00,"256499",53.87,"BE0066","BEARINGS AND DRIVES",29/11/2021 00:00:00,26/12/2021 00:00:00,"P09-2022"
"P&V","LEE VALLEY FARM HOLYFIELDHALL","TRANSPORT RELATED EXPENDITURE","TRANSPORT RUNNING EXPENSES","3333","P111465-SERVICE-Workshop Sundries",7/12/2021 00:00:00,"256511",166.85,"GR0022","GROUP COMPONENTS LIMITED",29/11/2021 00:00:00,26/12/2021 00:00:00,"P09-2022"
"P&V","LEE VALLEY FARM HOLYFIELDHALL","TRANSPORT RELATED EXPENDITURE","TRANSPORT RUNNING EXPENSES","3333","P115737-SERVICE-Hose/BSP Female-Male/Ferrule",20/12/2021 00:00:00,"256863",104.4,"HY0447","J W HYDRAULICS LTD",29/11/2021 00:00:00,26/12/2021 00:00:00,"P09-2022"
"P&V","LEE VALLEY FARM HOLYFIELDHALL","TRANSPORT RELATED EXPENDITURE","TRANSPORT RUNNING EXPENSES","3333","P111468-SERVICE-Hose Repair/Sundries",22/12/2021 00:00:00,"257264",202.83,"HU0003","ALLIANCE AUTOMOTIVE UK CV LIMITED T/A",29/11/2021 00:00:00,26/12/2021 00:00:00,"P09-2022"
"P&V","LEE VALLEY FARM HOLYFIELDHALL","TRANSPORT RELATED EXPENDITURE","TRANSPORT RUNNING EXPENSES","3333","P115833-SERVICE-Parts",22/12/2021 00:00:00,"257264",148.86,"HU0003","ALLIANCE AUTOMOTIVE UK CV LIMITED T/A",29/11/2021 00:00:00,26/12/2021 00:00:00,"P09-2022"
"P&V","LEE VALLEY FARM HOLYFIELDHALL","TRANSPORT RELATED EXPENDITURE","TRANSPORT RUNNING EXPENSES","3333","P115833-SERVICE-Parts",22/12/2021 00:00:00,"257265",72.88,"HU0003","ALLIANCE AUTOMOTIVE UK CV LIMITED T/A",29/11/2021 00:00:00,26/12/2021 00:00:00,"P09-2022"
"P&V","LEE VALLEY FARM HOLYFIELDHALL","TRANSPORT RELATED EXPENDITURE","TRANSPORT RUNNING EXPENSES","3333","P111465-SERVICE-Workshop Sundries",26/12/2021 00:00:00,"257292",22.6,"GR0022","GROUP COMPONENTS LIMITED",29/11/2021 00:00:00,26/12/2021 00:00:00,"P09-2022"
"P&V","LEE VALLEY FARM HOLYFIELDHALL","TRANSPORT RELATED EXPENDITURE","TRANSPORT RUNNING EXPENSES","3333","P114237-SERVICE-Parts",26/12/2021 00:00:00,"257312",48,"SP0034","SPALDINGS (UK) LIMITED",29/11/2021 00:00:00,26/12/2021 00:00:00,"P09-2022"
"P&V","LEE VALLEY FARM HOLYFIELDHALL","TRANSPORT RELATED EXPENDITURE","TRANSPORT RUNNING EXPENSES","3333","P114935-SERVICE-Parts",26/12/2021 00:00:00,"257320",170.93,"OL0001","OLIVER AGRICULTURE LTD",29/11/2021 00:00:00,26/12/2021 00:00:00,"P09-2022"
"P&V","LEE VALLEY FARM HOLYFIELDHALL","TRANSPORT RELATED EXPENDITURE","TRANSPORT RUNNING EXPENSES","3333","P113482-SERVICE-Parts",26/12/2021 00:00:00,"257482",-806.75,"OL0059","OLIVER LANDPOWER LIMITED",29/11/2021 00:00:00,26/12/2021 00:00:00,"P09-2022"
,"LV LEISURE CENTRE GOLF COURSE","TRANSPORT RELATED EXPENDITURE","TRANSPORT RUNNING EXPENSES","3333","P115355-SERVICE-cushman bearing kit",14/12/2021 00:00:00,"256814",475.19,"CA0698","CAMBRIDGE GOLF COMPANY",29/11/2021 00:00:00,26/12/2021 00:00:00,"P09-2022"
"P&V","FISHERIES MANAGEMENT","TRANSPORT RELATED EXPENDITURE","VEHICLE FUEL","3335","ALLSTAR BUSINESS SOLUTIONS LTD",7/12/2021 00:00:00,"256371",148.64,"AR0035","ALLSTAR BUSINESS SOLUTIONS LTD",29/11/2021 00:00:00,26/12/2021 00:00:00,"P09-2022"
,"LEE VALLEY MARINA STANSTEAD","TRANSPORT RELATED EXPENDITURE","VEHICLE FUEL","3335","ALLSTAR BUSINESS SOLUTIONS LTD",7/12/2021 00:00:00,"256371",75.52,"AR0035","ALLSTAR BUSINESS SOLUTIONS LTD",29/11/2021 00:00:00,26/12/2021 00:00:00,"P09-2022"
"P&V","LEE VALLEY FARM HOLYFIELDHALL","TRANSPORT RELATED EXPENDITURE","VEHICLE FUEL","3335","ALLSTAR BUSINESS SOLUTIONS LTD",7/12/2021 00:00:00,"256371",180.47,"AR0035","ALLSTAR BUSINESS SOLUTIONS LTD",29/11/2021 00:00:00,26/12/2021 00:00:00,"P09-2022"
,"LEE VALLEY CAMPSITE","TRANSPORT RELATED EXPENDITURE","VEHICLE FUEL","3335","ALLSTAR BUSINESS SOLUTIONS LTD",7/12/2021 00:00:00,"256371",13.42,"AR0035","ALLSTAR BUSINESS SOLUTIONS LTD",29/11/2021 00:00:00,26/12/2021 00:00:00,"P09-2022"
,"LEE VALLEY CARAVAN PARK","TRANSPORT RELATED EXPENDITURE","VEHICLE FUEL","3335","ALLSTAR BUSINESS SOLUTIONS LTD",7/12/2021 00:00:00,"256371",279.65,"AR0035","ALLSTAR BUSINESS SOLUTIONS LTD",29/11/2021 00:00:00,26/12/2021 00:00:00,"P09-2022"
"P&V","NORTH AREA RANGERS","TRANSPORT RELATED EXPENDITURE","VEHICLE FUEL","3335","ALLSTAR BUSINESS SOLUTIONS LTD",7/12/2021 00:00:00,"256371",140.31,"AR0035","ALLSTAR BUSINESS SOLUTIONS LTD",29/11/2021 00:00:00,26/12/2021 00:00:00,"P09-2022"
"P&V","SOUTH AREA RANGERS","TRANSPORT RELATED EXPENDITURE","VEHICLE FUEL","3335","ALLSTAR BUSINESS SOLUTIONS LTD",7/12/2021 00:00:00,"256371",288.01,"AR0035","ALLSTAR BUSINESS SOLUTIONS LTD",29/11/2021 00:00:00,26/12/2021 00:00:00,"P09-2022"
"P&V","RIVER LEE COUNTRY PARK","TRANSPORT RELATED EXPENDITURE","VEHICLE FUEL","3335","ALLSTAR BUSINESS SOLUTIONS LTD",7/12/2021 00:00:00,"256371",73.15,"AR0035","ALLSTAR BUSINESS SOLUTIONS LTD",29/11/2021 00:00:00,26/12/2021 00:00:00,"P09-2022"
"P&V","RIVER LEE COUNTRY PARK","TRANSPORT RELATED EXPENDITURE","VEHICLE FUEL","3335","ALLSTAR BUSINESS SOLUTIONS LTD",7/12/2021 00:00:00,"256371",139.25,"AR0035","ALLSTAR BUSINESS SOLUTIONS LTD",29/11/2021 00:00:00,26/12/2021 00:00:00,"P09-2022"
,"LV HOCKEY AND TENNIS CENTRE","TRANSPORT RELATED EXPENDITURE","VEHICLE FUEL","3335","ALLSTAR BUSINESS SOLUTIONS LTD",7/12/2021 00:00:00,"256371",17.67,"AR0035","ALLSTAR BUSINESS SOLUTIONS LTD",29/11/2021 00:00:00,26/12/2021 00:00:00,"P09-2022"
,"LEE VALLEY RIDING CENTRE","TRANSPORT RELATED EXPENDITURE","VEHICLE FUEL","3335","ALLSTAR BUSINESS SOLUTIONS LTD",7/12/2021 00:00:00,"256370",135.8,"AR0035","ALLSTAR BUSINESS SOLUTIONS LTD",29/11/2021 00:00:00,26/12/2021 00:00:00,"P09-2022"
"P&V","SOUTH AREA RANGERS","TRANSPORT RELATED EXPENDITURE","VEHICLE REPAIRS & MAINTENANCE","3338","P115423-SERVICE-Supply and  Fit Lee Valley Logos to Vehicle o",26/12/2021 00:00:00,"257163",196,"TO0314","TOTALLY DYNAMIC NORTH LONDON",29/11/2021 00:00:00,26/12/2021 00:00:00,"P09-2022"
,"LEE VALLEY MARINA SPRINGFIELD","SUPPLIES AND SERVICES","EQUIPMENT & MATERIALS","4111","P111795-SERVICE-BOC Welding Consumables",6/12/2021 00:00:00,"256471",231.95,"BO0015","BOC LTD",29/11/2021 00:00:00,26/12/2021 00:00:00,"P09-2022"
,"LEE VALLEY MARINA SPRINGFIELD","SUPPLIES AND SERVICES","EQUIPMENT & MATERIALS","4111","P111829-SERVICE-To supply items as requested",7/12/2021 00:00:00,"256498",130.77,"SA0008","SAFETEC DIRECT LTD",29/11/2021 00:00:00,26/12/2021 00:00:00,"P09-2022"
,"LEE VALLEY MARINA SPRINGFIELD","SUPPLIES AND SERVICES","EQUIPMENT & MATERIALS","4111","P111829-SERVICE-To supply items as requested",26/12/2021 00:00:00,"257469",63.2,"SA0008","SAFETEC DIRECT LTD",29/11/2021 00:00:00,26/12/2021 00:00:00,"P09-2022"
,"STANSTEAD RECHARGEABLE WORKS","SUPPLIES AND SERVICES","EQUIPMENT & MATERIALS","4111","P115530-SERVICE-blacking",14/12/2021 00:00:00,"256870",1752,"SM0658","SML PAINTS AND COATINGS",29/11/2021 00:00:00,26/12/2021 00:00:00,"P09-2022"
,"LEE VALLEY CAMPSITE","SUPPLIES AND SERVICES","EQUIPMENT & MATERIALS","4111","P115128-SERVICE-amazon supplies",14/12/2021 00:00:00,"255721",16.91,"AM0406","AMAZON PAYMENTS UK LIMITED",29/11/2021 00:00:00,26/12/2021 00:00:00,"P09-2022"
,"LEE VALLEY CAMPSITE","SUPPLIES AND SERVICES","EQUIPMENT & MATERIALS","4111","P115471-SERVICE-Amazon supplies",14/12/2021 00:00:00,"256485",33.32,"AM0406","AMAZON PAYMENTS UK LIMITED",29/11/2021 00:00:00,26/12/2021 00:00:00,"P09-2022"
,"LEE VALLEY CAMPSITE","SUPPLIES AND SERVICES","EQUIPMENT & MATERIALS","4111","P115471-SERVICE-Amazon supplies",14/12/2021 00:00:00,"256514",11.39,"AM0406","AMAZON PAYMENTS UK LIMITED",29/11/2021 00:00:00,26/12/2021 00:00:00,"P09-2022"
,"LEE VALLEY CAMPSITE","SUPPLIES AND SERVICES","EQUIPMENT & MATERIALS","4111","P115600-SERVICE-lights for sewardstone",14/12/2021 00:00:00,"256839",14.07,"AM0406","AMAZON PAYMENTS UK LIMITED",29/11/2021 00:00:00,26/12/2021 00:00:00,"P09-2022"
,"LEE VALLEY CARAVAN PARK","SUPPLIES AND SERVICES","EQUIPMENT & MATERIALS","4111","P115495-SERVICE-New barrier system",6/12/2021 00:00:00,"256344",3380,"AU0245","AUTO-MATE SYSTEMS LIMITED",29/11/2021 00:00:00,26/12/2021 00:00:00,"P09-2022"
,"LEE VALLEY CARAVAN PARK","SUPPLIES AND SERVICES","EQUIPMENT & MATERIALS","4111","P115527-SERVICE-descalers for kettle",14/12/2021 00:00:00,"256618",26.68,"AM0406","AMAZON PAYMENTS UK LIMITED",29/11/2021 00:00:00,26/12/2021 00:00:00,"P09-2022"
,"LEE VALLEY CARAVAN PARK","SUPPLIES AND SERVICES","EQUIPMENT & MATERIALS","4111","P115762-SERVICE-Building maintenance equipment",21/12/2021 00:00:00,"256855",17.28,"SC0057","SCREWFIX DIRECT LTD",29/11/2021 00:00:00,26/12/2021 00:00:00,"P09-2022"
,"LEE VALLEY CARAVAN PARK","SUPPLIES AND SERVICES","EQUIPMENT & MATERIALS","4111","P115767-SERVICE-maintenance equipment",21/12/2021 00:00:00,"256856",-9.99,"SC0057","SCREWFIX DIRECT LTD",29/11/2021 00:00:00,26/12/2021 00:00:00,"P09-2022"
,"LEE VALLEY CARAVAN PARK","SUPPLIES AND SERVICES","EQUIPMENT & MATERIALS","4111","P115767-SERVICE-maintenance equipment",21/12/2021 00:00:00,"256857",69.28,"SC0057","SCREWFIX DIRECT LTD",29/11/2021 00:00:00,26/12/2021 00:00:00,"P09-2022"
,"LEE VALLEY CARAVAN PARK","SUPPLIES AND SERVICES","EQUIPMENT & MATERIALS","4111","P115768-SERVICE-maintenance equipment",21/12/2021 00:00:00,"256858",16.66,"SC0057","SCREWFIX DIRECT LTD",29/11/2021 00:00:00,26/12/2021 00:00:00,"P09-2022"
,"LEE VALLEY CARAVAN PARK","SUPPLIES AND SERVICES","EQUIPMENT & MATERIALS","4111","P115873-SERVICE-Repair of dryer",26/12/2021 00:00:00,"257300",42.53,"AL0434","ALLSOP & FRANCIS",29/11/2021 00:00:00,26/12/2021 00:00:00,"P09-2022"
"P&V","NORTH AREA RANGERS","SUPPLIES AND SERVICES","EQUIPMENT & MATERIALS","4111","P111485-SERVICE-Equipment & Materials as and when required",6/12/2021 00:00:00,"255416",31.98,"JE0011","SAINT-GOBAIN BUILDING DISTRIBUTION",29/11/2021 00:00:00,26/12/2021 00:00:00,"P09-2022"
"P&V","NORTH AREA RANGERS","SUPPLIES AND SERVICES","EQUIPMENT & MATERIALS","4111","P115343-SERVICE-3x Stihl SynthPlus 5 litre Chain Oil",14/12/2021 00:00:00,"256841",49.71,"AP0245","APS LIMITED",29/11/2021 00:00:00,26/12/2021 00:00:00,"P09-2022"
"P&V","NORTH AREA RANGERS","SUPPLIES AND SERVICES","EQUIPMENT & MATERIALS","4111","P115343-SERVICE-3x Stihl Function Chainsaw Gloves",14/12/2021 00:00:00,"256841",104.97,"AP0245","APS LIMITED",29/11/2021 00:00:00,26/12/2021 00:00:00,"P09-2022"
"P&V","NORTH AREA RANGERS","SUPPLIES AND SERVICES","EQUIPMENT & MATERIALS","4111","P115346-SERVICE-Rigger Gloves",26/12/2021 00:00:00,"257305",169.5,"GR0020","GREENHAM TRADING LIMITED",29/11/2021 00:00:00,26/12/2021 00:00:00,"P09-2022"
"P&V","SOUTH AREA RANGERS","SUPPLIES AND SERVICES","EQUIPMENT & MATERIALS","4111","P115646-SERVICE-1x 5L Stihl Chain Oil Plus",21/12/2021 00:00:00,"257281",26.25,"AP0245","APS LIMITED",29/11/2021 00:00:00,26/12/2021 00:00:00,"P09-2022"
"P&V","SOUTH AREA RANGERS","SUPPLIES AND SERVICES","EQUIPMENT & MATERIALS","4111","P115646-SERVICE-4x Clearing Saw Blades",21/12/2021 00:00:00,"257281",136.68,"AP0245","APS LIMITED",29/11/2021 00:00:00,26/12/2021 00:00:00,"P09-2022"
"P&V","RIVER LEE COUNTRY PARK","SUPPLIES AND SERVICES","EQUIPMENT & MATERIALS","4111","P115735-SERVICE-1x Sanding Belt Unpunched - 227PG",26/12/2021 00:00:00,"257471",3.58,"SC0057","SCREWFIX DIRECT LTD",29/11/2021 00:00:00,26/12/2021 00:00:00,"P09-2022"
"P&V","RIVER LEE COUNTRY PARK","SUPPLIES AND SERVICES","EQUIPMENT & MATERIALS","4111","P115735-SERVICE-1x Belt Sander 110V - 98606",26/12/2021 00:00:00,"257471",208.33,"SC0057","SCREWFIX DIRECT LTD",29/11/2021 00:00:00,26/12/2021 00:00:00,"P09-2022"
"P&V","EVENTS MANAGEMENT (PR)","SUPPLIES AND SERVICES","EQUIPMENT & MATERIALS","4111","P114453-SERVICE-Events fire extinguisher service",6/12/2021 00:00:00,"255467",41.69,"TJ0009","T.J.FIRE & SECURITY",29/11/2021 00:00:00,26/12/2021 00:00:00,"P09-2022"
,"LEE VALLEY VELOPARK","SUPPLIES AND SERVICES","EQUIPMENT & MATERIALS","4111","P115397-SERVICE-50mm Wr Combi Padlock",6/12/2021 00:00:00,"256154",85.47,"SC0057","SCREWFIX DIRECT LTD",29/11/2021 00:00:00,26/12/2021 00:00:00,"P09-2022"
,"LEE VALLEY VELOPARK","SUPPLIES AND SERVICES","EQUIPMENT & MATERIALS","4111","P115511-SERVICE-Suremix 60 Size V",6/12/2021 00:00:00,"256470",51.3,"BO0015","BOC LTD",29/11/2021 00:00:00,26/12/2021 00:00:00,"P09-2022"
,"LEE VALLEY VELOPARK","SUPPLIES AND SERVICES","EQUIPMENT & MATERIALS","4111","P115275-SERVICE-Battery Sweeper",16/12/2021 00:00:00,"256532",125.58,"BR0025","BREEZE SOUTHERN LTD",29/11/2021 00:00:00,26/12/2021 00:00:00,"P09-2022"
,"LEE VALLEY VELOPARK","SUPPLIES AND SERVICES","EQUIPMENT & MATERIALS","4111","P115753-SERVICE-Pressure Washer",20/12/2021 00:00:00,"256568",166.66,"SC0057","SCREWFIX DIRECT LTD",29/11/2021 00:00:00,26/12/2021 00:00:00,"P09-2022"
,"LEE VALLEY VELOPARK","SUPPLIES AND SERVICES","EQUIPMENT & MATERIALS","4111","P115754-SERVICE-40mm Eye",20/12/2021 00:00:00,"256569",9.48,"SC0057","SCREWFIX DIRECT LTD",29/11/2021 00:00:00,26/12/2021 00:00:00,"P09-2022"
,"LEE VALLEY VELOPARK","SUPPLIES AND SERVICES","EQUIPMENT & MATERIALS","4111","P115270-SERVICE-Full Face Helmets",20/12/2021 00:00:00,"256966",1657.98,"IS0153","ISON DISTRIBUTION LIMITED",29/11/2021 00:00:00,26/12/2021 00:00:00,"P09-2022"
,"LV HOCKEY AND TENNIS CENTRE","SUPPLIES AND SERVICES","EQUIPMENT & MATERIALS","4111","P115412-SERVICE-part for ball machine",6/12/2021 00:00:00,"256332",36,"AP0483","APOLLO LEISURE SPORTS SUPPLIES LTD",29/11/2021 00:00:00,26/12/2021 00:00:00,"P09-2022"
,"LV HOCKEY AND TENNIS CENTRE","SUPPLIES AND SERVICES","EQUIPMENT & MATERIALS","4111","P114147-SERVICE-suremix",6/12/2021 00:00:00,"256469",16.8,"BO0015","BOC LTD",29/11/2021 00:00:00,26/12/2021 00:00:00,"P09-2022"
,"LV HOCKEY AND TENNIS CENTRE","SUPPLIES AND SERVICES","EQUIPMENT & MATERIALS","4111","P115197-SERVICE-usb flash drive x2 163058",13/12/2021 00:00:00,"256877",11,"EA0385","EASTERN SHIRE PURCHASING ORGANISATION (ESPO)",29/11/2021 00:00:00,26/12/2021 00:00:00,"P09-2022"
,"LV HOCKEY AND TENNIS CENTRE","SUPPLIES AND SERVICES","EQUIPMENT & MATERIALS","4111","P115695-SERVICE-x80 lamps",20/12/2021 00:00:00,"257131",123.2,"IN0159","INTERNATIONAL LAMPS LTD",29/11/2021 00:00:00,26/12/2021 00:00:00,"P09-2022"
,"LV HOCKEY AND TENNIS CENTRE","SUPPLIES AND SERVICES","EQUIPMENT & MATERIALS","4111","P114799-SERVICE-court sweeper brushes",20/12/2021 00:00:00,"257178",251.76,"BR0025","BREEZE SOUTHERN LTD",29/11/2021 00:00:00,26/12/2021 00:00:00,"P09-2022"
,"LV HOCKEY AND TENNIS CENTRE","SUPPLIES AND SERVICES","EQUIPMENT & MATERIALS","4111","P113854-SERVICE-balls and equipment for use",20/12/2021 00:00:00,"257213",48.94,"HE0386","HEAD UK LTD",29/11/2021 00:00:00,26/12/2021 00:00:00,"P09-2022"
,"LEE VALLEY RIDING CENTRE","SUPPLIES AND SERVICES","EQUIPMENT & MATERIALS","4111","P115628-SERVICE-Oregon chainsaw oil 5 litre",20/12/2021 00:00:00,"256906",20.83,"SC0057","SCREWFIX DIRECT LTD",29/11/2021 00:00:00,26/12/2021 00:00:00,"P09-2022"
,"LEE VALLEY RIDING CENTRE","SUPPLIES AND SERVICES","EQUIPMENT & MATERIALS","4111","P113008-SERVICE-hat disenfectant x 2",20/12/2021 00:00:00,"257179",59.5,"BR0025","BREEZE SOUTHERN LTD",29/11/2021 00:00:00,26/12/2021 00:00:00,"P09-2022"
,"LEE VALLEY VELOPARK CATERING","SUPPLIES AND SERVICES","EQUIPMENT & MATERIALS","4111","P115827-SERVICE-Stack Cups",21/12/2021 00:00:00,"257291",4752,"ST0672","STACK-CUP UK LTD",29/11/2021 00:00:00,26/12/2021 00:00:00,"P09-2022"
,"LEE VALLEY VELOPARK CATERING","SUPPLIES AND SERVICES","EQUIPMENT & MATERIALS","4111","P115830-SERVICE-Stack Cup Delivery",21/12/2021 00:00:00,"257291",280,"ST0672","STACK-CUP UK LTD",29/11/2021 00:00:00,26/12/2021 00:00:00,"P09-2022"
,"LV LEISURE CENTRE CAMPSITE","SUPPLIES AND SERVICES","EQUIPMENT & MATERIALS","4111","P115473-SERVICE-stationary for office",14/12/2021 00:00:00,"256483",4.87,"AM0406","AMAZON PAYMENTS UK LIMITED",29/11/2021 00:00:00,26/12/2021 00:00:00,"P09-2022"
,"LV LEISURE CENTRE CAMPSITE","SUPPLIES AND SERVICES","EQUIPMENT & MATERIALS","4111","P115473-SERVICE-stationary for office",14/12/2021 00:00:00,"256484",2.91,"AM0406","AMAZON PAYMENTS UK LIMITED",29/11/2021 00:00:00,26/12/2021 00:00:00,"P09-2022"
,"LV LEISURE CENTRE CAMPSITE","SUPPLIES AND SERVICES","EQUIPMENT & MATERIALS","4111","P115473-SERVICE-stationary for office",14/12/2021 00:00:00,"256512",4.66,"AM0406","AMAZON PAYMENTS UK LIMITED",29/11/2021 00:00:00,26/12/2021 00:00:00,"P09-2022"
,"LV LEISURE CENTRE CAMPSITE","SUPPLIES AND SERVICES","EQUIPMENT & MATERIALS","4111","P115477-SERVICE-ink for edmonton",14/12/2021 00:00:00,"256524",15.93,"AM0406","AMAZON PAYMENTS UK LIMITED",29/11/2021 00:00:00,26/12/2021 00:00:00,"P09-2022"
,"LV LEISURE CENTRE CAMPSITE","SUPPLIES AND SERVICES","EQUIPMENT & MATERIALS","4111","P115682-SERVICE-Maintenance supplies",16/12/2021 00:00:00,"256607",66.23,"SC0057","SCREWFIX DIRECT LTD",29/11/2021 00:00:00,26/12/2021 00:00:00,"P09-2022"
,"LV LEISURE CENTRE CAMPSITE","SUPPLIES AND SERVICES","EQUIPMENT & MATERIALS","4111","P115473-SERVICE-stationary for office",14/12/2021 00:00:00,"256620",7.47,"AM0406","AMAZON PAYMENTS UK LIMITED",29/11/2021 00:00:00,26/12/2021 00:00:00,"P09-2022"
,"LV LEISURE CENTRE CAMPSITE","SUPPLIES AND SERVICES","EQUIPMENT & MATERIALS","4111","P115473-SERVICE-stationary for office",14/12/2021 00:00:00,"256622",8.88,"AM0406","AMAZON PAYMENTS UK LIMITED",29/11/2021 00:00:00,26/12/2021 00:00:00,"P09-2022"
,"LV LEISURE CENTRE CAMPSITE","SUPPLIES AND SERVICES","EQUIPMENT & MATERIALS","4111","P115473-SERVICE-stationary for office",14/12/2021 00:00:00,"256871",20.96,"AM0406","AMAZON PAYMENTS UK LIMITED",29/11/2021 00:00:00,26/12/2021 00:00:00,"P09-2022"
,"LV LEISURE CENTRE GOLF COURSE","SUPPLIES AND SERVICES","EQUIPMENT & MATERIALS","4111","P115472-SERVICE-signs for edmonton",14/12/2021 00:00:00,"256522",2.49,"AM0406","AMAZON PAYMENTS UK LIMITED",29/11/2021 00:00:00,26/12/2021 00:00:00,"P09-2022"
,"LV LEISURE CENTRE GOLF COURSE","SUPPLIES AND SERVICES","EQUIPMENT & MATERIALS","4111","P115472-SERVICE-signs for edmonton",14/12/2021 00:00:00,"256523",7.49,"AM0406","AMAZON PAYMENTS UK LIMITED",29/11/2021 00:00:00,26/12/2021 00:00:00,"P09-2022"
,"LV LEISURE CENTRE GOLF COURSE","SUPPLIES AND SERVICES","EQUIPMENT & MATERIALS","4111","P115229-SERVICE-X20 mot",14/12/2021 00:00:00,"256719",705,"MR0420","MR AMENITY LTD",29/11/2021 00:00:00,26/12/2021 00:00:00,"P09-2022"
,"LV LEISURE CENTRE GOLF COURSE","SUPPLIES AND SERVICES","EQUIPMENT & MATERIALS","4111","P115709-SERVICE-amazon supplies",26/12/2021 00:00:00,"257124",13.71,"AM0406","AMAZON PAYMENTS UK LIMITED",29/11/2021 00:00:00,26/12/2021 00:00:00,"P09-2022"
,"LEE VALLEY ATHLETICS CENTRE","SUPPLIES AND SERVICES","EQUIPMENT & MATERIALS","4111","P115442-SERVICE-ORDER 286727 BUMPER PLATES, FIT BALL+ MED BAL",13/12/2021 00:00:00,"256587",1042.77,"JO0158","JORDAN FITNESS LTD",29/11/2021 00:00:00,26/12/2021 00:00:00,"P09-2022"
,"LEE VALLEY ATHLETICS CENTRE","SUPPLIES AND SERVICES","EQUIPMENT & MATERIALS","4111","P115742-SERVICE-LVAC EQUIPMENT AS PER EMAIL PMANSON",22/12/2021 00:00:00,"257185",171.46,"PR0133","PROATHLETICS",29/11/2021 00:00:00,26/12/2021 00:00:00,"P09-2022"
,"LEE VALLEY WHITE WATER CENTRE","SUPPLIES AND SERVICES","EQUIPMENT & MATERIALS","4111","P114560-SERVICE-Blanket Order for mats and Equipment",20/12/2021 00:00:00,"256207",4.98,"AM0406","AMAZON PAYMENTS UK LIMITED",29/11/2021 00:00:00,26/12/2021 00:00:00,"P09-2022"
,"LEE VALLEY WHITE WATER CENTRE","SUPPLIES AND SERVICES","EQUIPMENT & MATERIALS","4111","P115587-SERVICE-i-phone cable",13/12/2021 00:00:00,"256713",7.07,"AM0406","AMAZON PAYMENTS UK LIMITED",29/11/2021 00:00:00,26/12/2021 00:00:00,"P09-2022"
,"LEE VALLEY WHITE WATER CENTRE","SUPPLIES AND SERVICES","EQUIPMENT & MATERIALS","4111","P115596-SERVICE-Artificial grass",20/12/2021 00:00:00,"256825",18.33,"AM0406","AMAZON PAYMENTS UK LIMITED",29/11/2021 00:00:00,26/12/2021 00:00:00,"P09-2022"
,"LEE VALLEY WHITE WATER CENTRE","SUPPLIES AND SERVICES","EQUIPMENT & MATERIALS","4111","P115596-SERVICE-Artificial grass",15/12/2021 00:00:00,"256873",25,"AM0406","AMAZON PAYMENTS UK LIMITED",29/11/2021 00:00:00,26/12/2021 00:00:00,"P09-2022"
,"LEE VALLEY WHITE WATER CENTRE","SUPPLIES AND SERVICES","EQUIPMENT & MATERIALS","4111","P115625-SERVICE-2 x Charger Leads",20/12/2021 00:00:00,"256915",14.14,"AM0406","AMAZON PAYMENTS UK LIMITED",29/11/2021 00:00:00,26/12/2021 00:00:00,"P09-2022"
,"LEE VALLEY WHITE WATER CENTRE","SUPPLIES AND SERVICES","EQUIPMENT & MATERIALS","4111","P115597-SERVICE-Mats and Equipment blanket order",20/12/2021 00:00:00,"257003",29.16,"AM0406","AMAZON PAYMENTS UK LIMITED",29/11/2021 00:00:00,26/12/2021 00:00:00,"P09-2022"
,"LEE VALLEY WHITE WATER CENTRE","SUPPLIES AND SERVICES","EQUIPMENT & MATERIALS","4111","P115597-SERVICE-Mats and Equipment blanket order",20/12/2021 00:00:00,"257121",14.98,"AM0406","AMAZON PAYMENTS UK LIMITED",29/11/2021 00:00:00,26/12/2021 00:00:00,"P09-2022"
,"LEE VALLEY WHITE WATER CENTRE","SUPPLIES AND SERVICES","EQUIPMENT & MATERIALS","4111","P115625-SERVICE-2 x Charger Leads",20/12/2021 00:00:00,"257123",-14.14,"AM0406","AMAZON PAYMENTS UK LIMITED",29/11/2021 00:00:00,26/12/2021 00:00:00,"P09-2022"
,"LEE VALLEY CAMPSITE","SUPPLIES AND SERVICES","EQUIPMENT MAINTENANCE","4112","P114110-SERVICE-Fire risk Asessment",15/12/2021 00:00:00,"256819",500,"RI0181","RD HEALTH & SAFETY LIMITED",29/11/2021 00:00:00,26/12/2021 00:00:00,"P09-2022"
,"LEE VALLEY CARAVAN PARK","SUPPLIES AND SERVICES","EQUIPMENT MAINTENANCE","4112","P115698-SERVICE-Dryer not heating",15/12/2021 00:00:00,"256712",171.41,"AL0434","ALLSOP & FRANCIS",29/11/2021 00:00:00,26/12/2021 00:00:00,"P09-2022"
,"LEE VALLEY CARAVAN PARK","SUPPLIES AND SERVICES","EQUIPMENT MAINTENANCE","4112","P114011-SERVICE-Health & safety",15/12/2021 00:00:00,"256817",500,"RI0181","RD HEALTH & SAFETY LIMITED",29/11/2021 00:00:00,26/12/2021 00:00:00,"P09-2022"
,"LEE VALLEY CARAVAN PARK","SUPPLIES AND SERVICES","EQUIPMENT MAINTENANCE","4112","P115864-SERVICE-Attention to Lamppost - Replacement lamp pods",26/12/2021 00:00:00,"257321",120,"BR0018","BRADSHAW ELECTRICAL LIMITED",29/11/2021 00:00:00,26/12/2021 00:00:00,"P09-2022"
,"LV LEISURE CENTRE GOLF COURSE","SUPPLIES AND SERVICES","EQUIPMENT MAINTENANCE","4112","P115002-SERVICE-cushman trickstar",14/12/2021 00:00:00,"256642",129.91,"DO0027","ERNEST DOE & SONS LTD",29/11/2021 00:00:00,26/12/2021 00:00:00,"P09-2022"
,"LV LEISURE CENTRE GOLF COURSE","SUPPLIES AND SERVICES","EQUIPMENT MAINTENANCE","4112","P115358-SERVICE-oil seals and wheel bolts",14/12/2021 00:00:00,"256812",295.14,"CA0698","CAMBRIDGE GOLF COMPANY",29/11/2021 00:00:00,26/12/2021 00:00:00,"P09-2022"
,"LEE VALLEY WHITE WATER CENTRE","SUPPLIES AND SERVICES","EQUIPMENT MAINTENANCE","4112","P115427-SERVICE-Collection of Rafts",6/12/2021 00:00:00,"256468",700,"NW0224","NW RIBS LTD",29/11/2021 00:00:00,26/12/2021 00:00:00,"P09-2022"
"R&B","INFORMATION TECHNOLOGY","SUPPLIES AND SERVICES","IT CORE SYSTEMS","4113","P111362-SERVICE-Hosted Payroll May 21- March 22",6/12/2021 00:00:00,"256225",542.51,"PA0453","PAYROLL BUSINESS SOLUTIONS LTD",29/11/2021 00:00:00,26/12/2021 00:00:00,"P09-2022"
"R&B","INFORMATION TECHNOLOGY","SUPPLIES AND SERVICES","IT CORE SYSTEMS","4113","P115484-SERVICE-Parktracker base module - period Nov 2021 - N",6/12/2021 00:00:00,"256509",2000,"JA0050","JAMM SOLUTIONS LTD",29/11/2021 00:00:00,26/12/2021 00:00:00,"P09-2022"
"R&B","INFORMATION TECHNOLOGY","SUPPLIES AND SERVICES","IT CORE SYSTEMS","4113","P115766-SERVICE-Licence Fee efin agreement - qty 1",21/12/2021 00:00:00,"256561",75400,"CE0021","ADVANCED BUSINESS SOLUTIONS",29/11/2021 00:00:00,26/12/2021 00:00:00,"P09-2022"
"R&B","INFORMATION TECHNOLOGY","SUPPLIES AND SERVICES","IT CORE SYSTEMS","4113","P115697-SERVICE-Managed Fee 14 Feb - 13 Mar 22",20/12/2021 00:00:00,"256720",1246.24,"CE0021","ADVANCED BUSINESS SOLUTIONS",29/11/2021 00:00:00,26/12/2021 00:00:00,"P09-2022"
,"LSC INFORMATION TECHNOLOGY","SUPPLIES AND SERVICES","IT CORE SYSTEMS","4113","P113592-SERVICE-Software Licence & Support for Selima",16/12/2021 00:00:00,"251642",2955.12,"SE0251","ACCESS UK LTD (FRMLY SELIMA)",29/11/2021 00:00:00,26/12/2021 00:00:00,"P09-2022"
,"LSC INFORMATION TECHNOLOGY","SUPPLIES AND SERVICES","IT CORE SYSTEMS","4113","P110746-SERVICE-Clarity licenses and support",13/12/2021 00:00:00,"256500",17138.57,"CL0377","OMNICO GROUP UK LIMITED",29/11/2021 00:00:00,26/12/2021 00:00:00,"P09-2022"
,"LSC INFORMATION TECHNOLOGY","SUPPLIES AND SERVICES","IT CORE SYSTEMS","4113","P113592-SERVICE-Software Licence & Support for Selima",16/12/2021 00:00:00,"257170",-2190.95,"SE0251","ACCESS UK LTD (FRMLY SELIMA)",29/11/2021 00:00:00,26/12/2021 00:00:00,"P09-2022"
,"LSC INFORMATION TECHNOLOGY","SUPPLIES AND SERVICES","IT CORE SYSTEMS","4113","P113699-SERVICE-Page Band7 Payment - 12 Months - PAY-BA7-RET/",21/12/2021 00:00:00,"257253",375,"CO0440","VERIFONE SERVICES UK & IRELAND LTD",29/11/2021 00:00:00,26/12/2021 00:00:00,"P09-2022"
,"LSC INFORMATION TECHNOLOGY","SUPPLIES AND SERVICES","IT CORE SYSTEMS","4113","P113717-SERVICE-Verifone renewal for the ICP services for the",21/12/2021 00:00:00,"257254",652.31,"CO0440","VERIFONE SERVICES UK & IRELAND LTD",29/11/2021 00:00:00,26/12/2021 00:00:00,"P09-2022"
"R&B","INFORMATION TECHNOLOGY","SUPPLIES AND SERVICES","IT NETWORK & TELECOMS COSTS","4114","P111480-SERVICE-Monthly SIP Apr 21-Mar 22",6/12/2021 00:00:00,"256467",148.54,"FR0131","VOICEFLEX LTD",29/11/2021 00:00:00,26/12/2021 00:00:00,"P09-2022"
"R&B","INFORMATION TECHNOLOGY","SUPPLIES AND SERVICES","IT NETWORK & TELECOMS COSTS","4114","P115692-SERVICE-MPLS for all sites Dec 21",15/12/2021 00:00:00,"256602",11996.86,"PP0200","PPSNET LIMITED",29/11/2021 00:00:00,26/12/2021 00:00:00,"P09-2022"
,"LEE VALLEY CARAVAN PARK","SUPPLIES AND SERVICES","IT NETWORK & TELECOMS COSTS","4114","MY O2",7/12/2021 00:00:00,"256555",54,"O20134","MY O2",29/11/2021 00:00:00,26/12/2021 00:00:00,"P09-2022"
,"LEE VALLEY CARAVAN PARK","SUPPLIES AND SERVICES","EQUIPMENT HIRE","4115","EDWARDS PLANT & TOOL HIRE LIMI",14/12/2021 00:00:00,"256577",-544.62,"ED0011","EDWARDS PLANT & TOOL HIRE LIMITED",29/11/2021 00:00:00,26/12/2021 00:00:00,"P09-2022"
,"LEE VALLEY CARAVAN PARK","SUPPLIES AND SERVICES","EQUIPMENT HIRE","4115","EDWARDS PLANT & TOOL HIRE LIMI",14/12/2021 00:00:00,"256577",9,"ED0011","EDWARDS PLANT & TOOL HIRE LIMITED",29/11/2021 00:00:00,26/12/2021 00:00:00,"P09-2022"
,"LEE VALLEY CARAVAN PARK","SUPPLIES AND SERVICES","EQUIPMENT HIRE","4115","EDWARDS PLANT & TOOL HIRE LIMI",14/12/2021 00:00:00,"256577",535.62,"ED0011","EDWARDS PLANT & TOOL HIRE LIMITED",29/11/2021 00:00:00,26/12/2021 00:00:00,"P09-2022"
,"LEE VALLEY CARAVAN PARK","SUPPLIES AND SERVICES","EQUIPMENT HIRE","4115","P114921-SERVICE-Hire of Dumper and Wacker plate",14/12/2021 00:00:00,"256577",544.62,"ED0011","EDWARDS PLANT & TOOL HIRE LIMITED",29/11/2021 00:00:00,26/12/2021 00:00:00,"P09-2022"
,"LEE VALLEY CARAVAN PARK","SUPPLIES AND SERVICES","EQUIPMENT HIRE","4115","P115486-SERVICE-Various Equiment Hired for Almost Wild",14/12/2021 00:00:00,"256578",555,"ED0011","EDWARDS PLANT & TOOL HIRE LIMITED",29/11/2021 00:00:00,26/12/2021 00:00:00,"P09-2022"
,"LEE VALLEY CARAVAN PARK","SUPPLIES AND SERVICES","EQUIPMENT HIRE","4115","P115542-SERVICE-Hire of Drum Roller for AMW",13/12/2021 00:00:00,"256579",192,"ED0011","EDWARDS PLANT & TOOL HIRE LIMITED",29/11/2021 00:00:00,26/12/2021 00:00:00,"P09-2022"
"P&V","MYDDELTON HOUSE","SUPPLIES AND SERVICES","IT HARDWARE & SOFTWARE COSTS","4116","ZEN INTERNET LTD",6/12/2021 00:00:00,"256262",29.5,"ZE0007","ZEN INTERNET LTD",29/11/2021 00:00:00,26/12/2021 00:00:00,"P09-2022"
"P&V","MYDDELTON HOUSE","SUPPLIES AND SERVICES","IT HARDWARE & SOFTWARE COSTS","4116","ZEN INTERNET LTD",20/12/2021 00:00:00,"256911",42,"ZE0007","ZEN INTERNET LTD",29/11/2021 00:00:00,26/12/2021 00:00:00,"P09-2022"
"R&B","INFORMATION TECHNOLOGY","SUPPLIES AND SERVICES","IT HARDWARE & SOFTWARE COSTS","4116","P115239-SERVICE-Display port cables",6/12/2021 00:00:00,"255967",36.3,"CP0562","CPC LIMITED",29/11/2021 00:00:00,26/12/2021 00:00:00,"P09-2022"
"R&B","INFORMATION TECHNOLOGY","SUPPLIES AND SERVICES","IT HARDWARE & SOFTWARE COSTS","4116","P115239-SERVICE-Display port cables",6/12/2021 00:00:00,"256239",-36.3,"CP0562","CPC LIMITED",29/11/2021 00:00:00,26/12/2021 00:00:00,"P09-2022"
"R&B","INFORMATION TECHNOLOGY","SUPPLIES AND SERVICES","IT HARDWARE & SOFTWARE COSTS","4116","P115239-SERVICE-Display port cables",6/12/2021 00:00:00,"256260",36.3,"CP0562","CPC LIMITED",29/11/2021 00:00:00,26/12/2021 00:00:00,"P09-2022"
"R&B","INFORMATION TECHNOLOGY","SUPPLIES AND SERVICES","IT HARDWARE & SOFTWARE COSTS","4116","P115380-SERVICE-HF680-R0-1U SB Honeywell HF680 2D area Barcod",7/12/2021 00:00:00,"256560",154.86,"EL0404","ELECTRONIC READING SYSTEMS LTD",29/11/2021 00:00:00,26/12/2021 00:00:00,"P09-2022"
"R&B","INFORMATION TECHNOLOGY","SUPPLIES AND SERVICES","IT HARDWARE & SOFTWARE COSTS","4116","P115560-SERVICE-POE Extender",20/12/2021 00:00:00,"256715",17.56,"CP0562","CPC LIMITED",29/11/2021 00:00:00,26/12/2021 00:00:00,"P09-2022"
"R&B","INFORMATION TECHNOLOGY","SUPPLIES AND SERVICES","IT HARDWARE & SOFTWARE COSTS","4116","P115559-SERVICE-Shipping cost",15/12/2021 00:00:00,"256848",8,"EA0405","EARTEC EUROPE LTD",29/11/2021 00:00:00,26/12/2021 00:00:00,"P09-2022"
"R&B","INFORMATION TECHNOLOGY","SUPPLIES AND SERVICES","IT HARDWARE & SOFTWARE COSTS","4116","P111692-SERVICE-Email filtering & large Files",21/12/2021 00:00:00,"257273",738,"IQ0022","IQUAL",29/11/2021 00:00:00,26/12/2021 00:00:00,"P09-2022"
,"LEE VALLEY MARINA SPRINGFIELD","SUPPLIES AND SERVICES","IT HARDWARE & SOFTWARE COSTS","4116","ZEN INTERNET LTD",20/12/2021 00:00:00,"256910",38,"ZE0007","ZEN INTERNET LTD",29/11/2021 00:00:00,26/12/2021 00:00:00,"P09-2022"
,"LEE VALLEY MARINA STANSTEAD","SUPPLIES AND SERVICES","IT HARDWARE & SOFTWARE COSTS","4116","ZEN INTERNET LTD",20/12/2021 00:00:00,"256909",31.32,"ZE0007","ZEN INTERNET LTD",29/11/2021 00:00:00,26/12/2021 00:00:00,"P09-2022"
,"LEE VALLEY CARAVAN PARK","SUPPLIES AND SERVICES","IT HARDWARE & SOFTWARE COSTS","4116","P115688-SERVICE-Fibre connection Dec 2021",20/12/2021 00:00:00,"256601",835,"PP0200","PPSNET LIMITED",29/11/2021 00:00:00,26/12/2021 00:00:00,"P09-2022"
,"LV HOCKEY AND TENNIS CENTRE","SUPPLIES AND SERVICES","IT HARDWARE & SOFTWARE COSTS","4116","P115559-SERVICE-Avaya 1608-I IP Phone headset - EAR308 x 3",15/12/2021 00:00:00,"256848",104.85,"EA0405","EARTEC EUROPE LTD",29/11/2021 00:00:00,26/12/2021 00:00:00,"P09-2022"
,"LEE VALLEY RIDING CENTRE","SUPPLIES AND SERVICES","IT HARDWARE & SOFTWARE COSTS","4116","ZEN INTERNET LTD",15/12/2021 00:00:00,"256597",31.32,"ZE0007","ZEN INTERNET LTD",29/11/2021 00:00:00,26/12/2021 00:00:00,"P09-2022"
,"LEE VALLEY ATHLETICS CENTRE","SUPPLIES AND SERVICES","VENDING AGREEMENTS","4117","RIJO 42 INGREDIENTS LIMITED",6/12/2021 00:00:00,"256220",-512.93,"RI0176","RIJO 42 INGREDIENTS LIMITED",29/11/2021 00:00:00,26/12/2021 00:00:00,"P09-2022"
,"LEE VALLEY ATHLETICS CENTRE","SUPPLIES AND SERVICES","VENDING AGREEMENTS","4117","RIJO 42 INGREDIENTS LIMITED",6/12/2021 00:00:00,"256220",290.64,"RI0176","RIJO 42 INGREDIENTS LIMITED",29/11/2021 00:00:00,26/12/2021 00:00:00,"P09-2022"
,"LEE VALLEY ATHLETICS CENTRE","SUPPLIES AND SERVICES","VENDING AGREEMENTS","4117","RIJO 42 INGREDIENTS LIMITED",6/12/2021 00:00:00,"256220",222.29,"RI0176","RIJO 42 INGREDIENTS LIMITED",29/11/2021 00:00:00,26/12/2021 00:00:00,"P09-2022"
,"LEE VALLEY ATHLETICS CENTRE","SUPPLIES AND SERVICES","VENDING AGREEMENTS","4117","P115468-SERVICE-LVAC INV P962953",6/12/2021 00:00:00,"256220",512.93,"RI0176","RIJO 42 INGREDIENTS LIMITED",29/11/2021 00:00:00,26/12/2021 00:00:00,"P09-2022"
,"LEE VALLEY ATHLETICS CENTRE","SUPPLIES AND SERVICES","VENDING AGREEMENTS","4117","P115869-SERVICE-LVAC VENDING INV 9299462369 17.12.21",26/12/2021 00:00:00,"257278",245.73,"BR0019","BRAKE BROTHERS LIMITED",29/11/2021 00:00:00,26/12/2021 00:00:00,"P09-2022"
,"LEE VALLEY ATHLETICS CENTRE","SUPPLIES AND SERVICES","VENDING AGREEMENTS","4117","BRAKE BROTHERS LIMITED",26/12/2021 00:00:00,"257278",60.55,"BR0019","BRAKE BROTHERS LIMITED",29/11/2021 00:00:00,26/12/2021 00:00:00,"P09-2022"
,"LEE VALLEY ATHLETICS CENTRE","SUPPLIES AND SERVICES","VENDING AGREEMENTS","4117","BRAKE BROTHERS LIMITED",26/12/2021 00:00:00,"257278",185.18,"BR0019","BRAKE BROTHERS LIMITED",29/11/2021 00:00:00,26/12/2021 00:00:00,"P09-2022"
,"LEE VALLEY ATHLETICS CENTRE","SUPPLIES AND SERVICES","VENDING AGREEMENTS","4117","BRAKE BROTHERS LIMITED",26/12/2021 00:00:00,"257278",-245.73,"BR0019","BRAKE BROTHERS LIMITED",29/11/2021 00:00:00,26/12/2021 00:00:00,"P09-2022"
,"LEE VALLEY ATHLETICS CENTRE","SUPPLIES AND SERVICES","VENDING AGREEMENTS","4117","P115868-SERVICE-LVAC VENDING STOCK INV 9299462368 17.12.21",26/12/2021 00:00:00,"257279",189.92,"BR0019","BRAKE BROTHERS LIMITED",29/11/2021 00:00:00,26/12/2021 00:00:00,"P09-2022"
,"LEE VALLEY MARINA SPRINGFIELD","SUPPLIES AND SERVICES","IT MAINTENANCE AGREEMENTS","4119","P115684-SERVICE-Supply & Data Nov 21",15/12/2021 00:00:00,"256599",75.19,"CY0653","CYBERTILL",29/11/2021 00:00:00,26/12/2021 00:00:00,"P09-2022"
,"LEE VALLEY MARINA SPRINGFIELD","SUPPLIES AND SERVICES","IT MAINTENANCE AGREEMENTS","4119","P115684-SERVICE-Supply & Data Nov 21",15/12/2021 00:00:00,"256599",75.2,"CY0653","CYBERTILL",29/11/2021 00:00:00,26/12/2021 00:00:00,"P09-2022"
,"LEE VALLEY CAMPSITE","SUPPLIES AND SERVICES","IT MAINTENANCE AGREEMENTS","4119","P114755-SERVICE-Monthly Subscription Nov 21 - Apr 22",20/12/2021 00:00:00,"256990",145.5,"NE0218","NETGUIDES LIMITED",29/11/2021 00:00:00,26/12/2021 00:00:00,"P09-2022"
,"LEE VALLEY CARAVAN PARK","SUPPLIES AND SERVICES","IT MAINTENANCE AGREEMENTS","4119","P114755-SERVICE-Monthly Subscriptions Nov 21 - April 22 DW",20/12/2021 00:00:00,"256990",145.5,"NE0218","NETGUIDES LIMITED",29/11/2021 00:00:00,26/12/2021 00:00:00,"P09-2022"
"P&V","ALMOST WILD CAMPSITE","SUPPLIES AND SERVICES","IT MAINTENANCE AGREEMENTS","4119","P114755-SERVICE-Monthly Subscription Nov 21 - April 22 AWC",20/12/2021 00:00:00,"256990",145.5,"NE0218","NETGUIDES LIMITED",29/11/2021 00:00:00,26/12/2021 00:00:00,"P09-2022"
,"LV LEISURE CENTRE CAMPSITE","SUPPLIES AND SERVICES","IT MAINTENANCE AGREEMENTS","4119","P114755-SERVICE-Monthly Subscription Nov 21 - April 22",20/12/2021 00:00:00,"256990",145.5,"NE0218","NETGUIDES LIMITED",29/11/2021 00:00:00,26/12/2021 00:00:00,"P09-2022"
,"LV LEISURE CENTRE GOLF COURSE","SUPPLIES AND SERVICES","IT MAINTENANCE AGREEMENTS","4119","P115694-SERVICE-Digitickets Services Nov 2021",20/12/2021 00:00:00,"256616",515.66,"DI0304","DIGITAL TICKETING SYSTEMS LTD (DIGITICKETS)",29/11/2021 00:00:00,26/12/2021 00:00:00,"P09-2022"
"P&V","SOUTH AREA RANGERS","EXPENDITURE FROM RENEWALS FUND","EXPENDITURE FROM RENEWALS FUND","4121","P112835-SERVICE-3x Isuzu Vehicles",6/12/2021 00:00:00,"256005",27233,"OL0059","OLIVER LANDPOWER LIMITED",29/11/2021 00:00:00,26/12/2021 00:00:00,"P09-2022"
,"LEE VALLEY VELOPARK","EXPENDITURE FROM RENEWALS FUND","EXPENDITURE FROM RENEWALS FUND","4121","P114304-SERVICE-Velo- Rpl UPS Batteries",20/12/2021 00:00:00,"257009",42457.92,"BP0447","BPC ENERGY LIMITED",29/11/2021 00:00:00,26/12/2021 00:00:00,"P09-2022"
,"LEE VALLEY CAMPSITE","SUPPLIES AND SERVICES","MATERIALS (GROUNDS MAINT)","4125","P115654-SERVICE-Removal of branches overhanging  HH9",20/12/2021 00:00:00,"256952",150,"PA0222","PARKIN & PARKER TREE SPECIALISTS",29/11/2021 00:00:00,26/12/2021 00:00:00,"P09-2022"
,"LEE VALLEY CARAVAN PARK","SUPPLIES AND SERVICES","MATERIALS (GROUNDS MAINT)","4125","P115494-SERVICE-Maintenance materials",6/12/2021 00:00:00,"256264",33,"BQ0164","TRADE UK ACCOUNT",29/11/2021 00:00:00,26/12/2021 00:00:00,"P09-2022"
,"LEE VALLEY CARAVAN PARK","SUPPLIES AND SERVICES","MATERIALS (GROUNDS MAINT)","4125","P115505-SERVICE-building materials",6/12/2021 00:00:00,"256496",19.17,"BQ0164","TRADE UK ACCOUNT",29/11/2021 00:00:00,26/12/2021 00:00:00,"P09-2022"
,"LV LEISURE CENTRE CAMPSITE","SUPPLIES AND SERVICES","MATERIALS (GROUNDS MAINT)","4125","P115578-SERVICE-Maintenance supplies",13/12/2021 00:00:00,"256565",53.83,"BQ0164","TRADE UK ACCOUNT",29/11/2021 00:00:00,26/12/2021 00:00:00,"P09-2022"
,"LV LEISURE CENTRE CAMPSITE","SUPPLIES AND SERVICES","MATERIALS (GROUNDS MAINT)","4125","P115579-SERVICE-Maintenance supplies",13/12/2021 00:00:00,"256566",165.24,"BQ0164","TRADE UK ACCOUNT",29/11/2021 00:00:00,26/12/2021 00:00:00,"P09-2022"
,"LV LEISURE CENTRE CAMPSITE","SUPPLIES AND SERVICES","MATERIALS (GROUNDS MAINT)","4125","P115579-SERVICE-Maintenance supplies",16/12/2021 00:00:00,"256608",-36.25,"BQ0164","TRADE UK ACCOUNT",29/11/2021 00:00:00,26/12/2021 00:00:00,"P09-2022"
,"LV LEISURE CENTRE CAMPSITE","SUPPLIES AND SERVICES","MATERIALS (GROUNDS MAINT)","4125","P115714-SERVICE-reesink",26/12/2021 00:00:00,"257172",430.38,"LE0279","REESINK TURFCARE UK LIMITED",29/11/2021 00:00:00,26/12/2021 00:00:00,"P09-2022"
,"LV LEISURE CENTRE GOLF COURSE","SUPPLIES AND SERVICES","MATERIALS (GROUNDS MAINT)","4125","P115230-SERVICE-3l Medallie",14/12/2021 00:00:00,"256336",744.95,"MR0420","MR AMENITY LTD",29/11/2021 00:00:00,26/12/2021 00:00:00,"P09-2022"
,"LV LEISURE CENTRE GOLF COURSE","SUPPLIES AND SERVICES","MATERIALS (GROUNDS MAINT)","4125","P115357-SERVICE-iron feed 60-10",14/12/2021 00:00:00,"256813",684.32,"CA0698","CAMBRIDGE GOLF COMPANY",29/11/2021 00:00:00,26/12/2021 00:00:00,"P09-2022"
"P&V","MYDDELTON HOUSE GARDENS","SUPPLIES AND SERVICES","MATERIALS (PLANTS & SHRUBS)","4126","P114202-SERVICE-Seed order September 2021",6/12/2021 00:00:00,"256271",57.5,"TA0591","TAMAR ORGANICS",29/11/2021 00:00:00,26/12/2021 00:00:00,"P09-2022"
,"LEE VALLEY MARINA SPRINGFIELD","SUPPLIES AND SERVICES","MATERIALS (TOOLS & PLANT)","4127","P115517-SERVICE-To supply welding gas & citting/grinding disc",20/12/2021 00:00:00,"256945",169.2,"EL0281","ELTHAM WELDING SUPPLIES LIMITED",29/11/2021 00:00:00,26/12/2021 00:00:00,"P09-2022"
,"LEE VALLEY MARINA SPRINGFIELD","SUPPLIES AND SERVICES","MATERIALS (TOOLS & PLANT)","4127","P115517-SERVICE-To supply welding gas & citting/grinding disc",20/12/2021 00:00:00,"257190",204.6,"EL0281","ELTHAM WELDING SUPPLIES LIMITED",29/11/2021 00:00:00,26/12/2021 00:00:00,"P09-2022"
,"STANSTEAD RECHARGEABLE WORKS","SUPPLIES AND SERVICES","MATERIALS (TOOLS & PLANT)","4127","P114732-SERVICE-starter motor",14/12/2021 00:00:00,"254752",285,"EN0309","PRH ENGINEERING LIMITED",29/11/2021 00:00:00,26/12/2021 00:00:00,"P09-2022"
,"STANSTEAD RECHARGEABLE WORKS","SUPPLIES AND SERVICES","MATERIALS (TOOLS & PLANT)","4127","P115248-SERVICE-STARTER MOTOR",7/12/2021 00:00:00,"256155",615,"EN0309","PRH ENGINEERING LIMITED",29/11/2021 00:00:00,26/12/2021 00:00:00,"P09-2022"
,"STANSTEAD RECHARGEABLE WORKS","SUPPLIES AND SERVICES","MATERIALS (TOOLS & PLANT)","4127","P115450-SERVICE-Paul Welding- 2xalternator&water pump belts",7/12/2021 00:00:00,"256584",152.58,"EN0309","PRH ENGINEERING LIMITED",29/11/2021 00:00:00,26/12/2021 00:00:00,"P09-2022"
,"LEE VALLEY MARINA SPRINGFIELD","SUPPLIES AND SERVICES","MATERIALS (ENG OTHER)","4130","P114285-SERVICE-To supply items as reqeusted",6/12/2021 00:00:00,"256263",1.54,"BQ0164","TRADE UK ACCOUNT",29/11/2021 00:00:00,26/12/2021 00:00:00,"P09-2022"
,"STANSTEAD RECHARGEABLE WORKS","SUPPLIES AND SERVICES","MATERIALS (ENG OTHER)","4130","P115249-SERVICE-WELDING MASK",7/12/2021 00:00:00,"256156",497.5,"EN0309","PRH ENGINEERING LIMITED",29/11/2021 00:00:00,26/12/2021 00:00:00,"P09-2022"
,"STANSTEAD RECHARGEABLE WORKS","SUPPLIES AND SERVICES","MATERIALS (ENG OTHER)","4130","P115451-SERVICE-paul welder drop off repair inj pump&pick up",7/12/2021 00:00:00,"256583",485,"EN0309","PRH ENGINEERING LIMITED",29/11/2021 00:00:00,26/12/2021 00:00:00,"P09-2022"
,"STANSTEAD RECHARGEABLE WORKS","SUPPLIES AND SERVICES","MATERIALS (ENG OTHER)","4130","P115047-SERVICE-parts for workshop",8/12/2021 00:00:00,"256585",29.45,"EN0309","PRH ENGINEERING LIMITED",29/11/2021 00:00:00,26/12/2021 00:00:00,"P09-2022"
,"STANSTEAD RECHARGEABLE WORKS","SUPPLIES AND SERVICES","MATERIALS (ENG OTHER)","4130","P115048-SERVICE-weld hole in gas locker",8/12/2021 00:00:00,"256586",315,"EN0309","PRH ENGINEERING LIMITED",29/11/2021 00:00:00,26/12/2021 00:00:00,"P09-2022"
,"STANSTEAD RECHARGEABLE WORKS","SUPPLIES AND SERVICES","MATERIALS (ENG OTHER)","4130","P115223-SERVICE-screwfix misc bits for workshop + extrc fan",13/12/2021 00:00:00,"256854",82.88,"SC0057","SCREWFIX DIRECT LTD",29/11/2021 00:00:00,26/12/2021 00:00:00,"P09-2022"
,"LEE VALLEY WHITE WATER CENTRE","SUPPLIES AND SERVICES","MATERIALS (CHEMICALS)","4131","P113615-SERVICE-Chemicals",6/12/2021 00:00:00,"256324",383.83,"AL0074","BRENNTAG UK GROUP LIMITED",29/11/2021 00:00:00,26/12/2021 00:00:00,"P09-2022"
,"LEE VALLEY WHITE WATER CENTRE","SUPPLIES AND SERVICES","MATERIALS (CHEMICALS)","4131","P113615-SERVICE-Chemicals",6/12/2021 00:00:00,"256354",527.31,"AL0074","BRENNTAG UK GROUP LIMITED",29/11/2021 00:00:00,26/12/2021 00:00:00,"P09-2022"
,"LEE VALLEY WHITE WATER CENTRE","SUPPLIES AND SERVICES","MATERIALS (CHEMICALS)","4131","P113615-SERVICE-Chemicals",13/12/2021 00:00:00,"256546",383.83,"AL0074","BRENNTAG UK GROUP LIMITED",29/11/2021 00:00:00,26/12/2021 00:00:00,"P09-2022"
,"LEE VALLEY WHITE WATER CENTRE","SUPPLIES AND SERVICES","MATERIALS (CHEMICALS)","4131","P113615-SERVICE-Chemicals",20/12/2021 00:00:00,"256953",206.2,"AL0074","BRENNTAG UK GROUP LIMITED",29/11/2021 00:00:00,26/12/2021 00:00:00,"P09-2022"
,"LEE VALLEY WHITE WATER CENTRE","SUPPLIES AND SERVICES","MATERIALS (CHEMICALS)","4131","P113615-SERVICE-Chemicals",20/12/2021 00:00:00,"257126",383.83,"AL0074","BRENNTAG UK GROUP LIMITED",29/11/2021 00:00:00,26/12/2021 00:00:00,"P09-2022"
,"LEE VALLEY WHITE WATER CENTRE","SUPPLIES AND SERVICES","MATERIALS (CHEMICALS)","4131","P113615-SERVICE-Chemicals",20/12/2021 00:00:00,"257127",-21,"AL0074","BRENNTAG UK GROUP LIMITED",29/11/2021 00:00:00,26/12/2021 00:00:00,"P09-2022"
,"LEE VALLEY VELOPARK","SUPPLIES AND SERVICES","MATERIALS (MEDICAL)","4132","P115707-SERVICE-First Aid Supplies",22/12/2021 00:00:00,"257245",652.95,"FI0215","VALUE  PRODUCTS LTD",29/11/2021 00:00:00,26/12/2021 00:00:00,"P09-2022"
,"LEE VALLEY VELOPARK","SUPPLIES AND SERVICES","MATERIALS (MEDICAL)","4132","P115707-SERVICE-First Aid Supplies",22/12/2021 00:00:00,"257266",66.6,"FI0215","VALUE  PRODUCTS LTD",29/11/2021 00:00:00,26/12/2021 00:00:00,"P09-2022"
"P&V","LEE VALLEY FARM HOLYFIELDHALL","SUPPLIES AND SERVICES","FEED","4133","P115565-SERVICE-Super Beef",7/12/2021 00:00:00,"256299",4588.28,"HE0449","HEYGATES COUNTRY FEEDS LTD",29/11/2021 00:00:00,26/12/2021 00:00:00,"P09-2022"
"P&V","LEE VALLEY FARM HOLYFIELDHALL","SUPPLIES AND SERVICES","FEED","4133","P115566-SERVICE-Dairy Meal",7/12/2021 00:00:00,"256300",7307.8,"HE0449","HEYGATES COUNTRY FEEDS LTD",29/11/2021 00:00:00,26/12/2021 00:00:00,"P09-2022"
"P&V","LEE VALLEY FARM HOLYFIELDHALL","SUPPLIES AND SERVICES","FEED","4133","P115568-SERVICE-Optima 18",7/12/2021 00:00:00,"256494",3521.86,"BO0246","FOR FARMERS UK LTD",29/11/2021 00:00:00,26/12/2021 00:00:00,"P09-2022"
,"LEE VALLEY RIDING CENTRE","SUPPLIES AND SERVICES","FEED","4133","P113364-SERVICE-feed",6/12/2021 00:00:00,"256330",1005.74,"DO0029","M C DOWLING & SONS",29/11/2021 00:00:00,26/12/2021 00:00:00,"P09-2022"
,"LEE VALLEY RIDING CENTRE","SUPPLIES AND SERVICES","FEED","4133","P113364-SERVICE-feed",6/12/2021 00:00:00,"256345",982.35,"DO0029","M C DOWLING & SONS",29/11/2021 00:00:00,26/12/2021 00:00:00,"P09-2022"
,"LEE VALLEY RIDING CENTRE","SUPPLIES AND SERVICES","FEED","4133","P113364-SERVICE-feed",6/12/2021 00:00:00,"256570",2044.25,"DO0029","M C DOWLING & SONS",29/11/2021 00:00:00,26/12/2021 00:00:00,"P09-2022"
,"LEE VALLEY RIDING CENTRE","SUPPLIES AND SERVICES","FEED","4133","P113364-SERVICE-feed",13/12/2021 00:00:00,"256883",17.32,"DO0029","M C DOWLING & SONS",29/11/2021 00:00:00,26/12/2021 00:00:00,"P09-2022"
,"LEE VALLEY RIDING CENTRE","SUPPLIES AND SERVICES","FEED","4133","P113364-SERVICE-feed",13/12/2021 00:00:00,"256883",967.66,"DO0029","M C DOWLING & SONS",29/11/2021 00:00:00,26/12/2021 00:00:00,"P09-2022"
,"LEE VALLEY RIDING CENTRE","SUPPLIES AND SERVICES","BEDDING","4134","P113364-SERVICE-bedding",6/12/2021 00:00:00,"256330",1281.5,"DO0029","M C DOWLING & SONS",29/11/2021 00:00:00,26/12/2021 00:00:00,"P09-2022"
,"LEE VALLEY RIDING CENTRE","SUPPLIES AND SERVICES","BEDDING","4134","P113364-SERVICE-bedding",6/12/2021 00:00:00,"256345",1281.6,"DO0029","M C DOWLING & SONS",29/11/2021 00:00:00,26/12/2021 00:00:00,"P09-2022"
,"LEE VALLEY RIDING CENTRE","SUPPLIES AND SERVICES","BEDDING","4134","P113364-SERVICE-bedding",13/12/2021 00:00:00,"256883",605.62,"DO0029","M C DOWLING & SONS",29/11/2021 00:00:00,26/12/2021 00:00:00,"P09-2022"
,"LEE VALLEY RIDING CENTRE","SUPPLIES AND SERVICES","BEDDING","4134","P113364-SERVICE-bedding",13/12/2021 00:00:00,"256884",1135.28,"DO0029","M C DOWLING & SONS",29/11/2021 00:00:00,26/12/2021 00:00:00,"P09-2022"
,"LEE VALLEY RIDING CENTRE","SUPPLIES AND SERVICES","BEDDING","4134","P113364-SERVICE-bedding",13/12/2021 00:00:00,"256884",3544.72,"DO0029","M C DOWLING & SONS",29/11/2021 00:00:00,26/12/2021 00:00:00,"P09-2022"
"P&V","LEE VALLEY FARM HOLYFIELDHALL","SUPPLIES AND SERVICES","FERTILIZER","4137","P115569-SERVICE-Fibrophos",7/12/2021 00:00:00,"256510",2605.2,"HA0013","HARLOW AGRICULTURAL MERCHANTS",29/11/2021 00:00:00,26/12/2021 00:00:00,"P09-2022"
"P&V","LEE VALLEY FARM HOLYFIELDHALL","SUPPLIES AND SERVICES","DAIRY SUNDRIES","4138","P111471-SERVICE-Plumbing Fittings",16/12/2021 00:00:00,"255455",261.06,"WO0076","E J WOOLLARD LTD",29/11/2021 00:00:00,26/12/2021 00:00:00,"P09-2022"
"P&V","LEE VALLEY FARM HOLYFIELDHALL","SUPPLIES AND SERVICES","DAIRY SUNDRIES","4138","P114432-SERVICE-Dairy Sundries",7/12/2021 00:00:00,"256286",16.98,"FA0099","FARM & COUNTRY SUPPLIES LTD",29/11/2021 00:00:00,26/12/2021 00:00:00,"P09-2022"
"P&V","LEE VALLEY FARM HOLYFIELDHALL","SUPPLIES AND SERVICES","DAIRY SUNDRIES","4138","P115092-SERVICE-Dead Animal Removal",7/12/2021 00:00:00,"256298",58,"MA0074","W MARTIN & SON LIMITED",29/11/2021 00:00:00,26/12/2021 00:00:00,"P09-2022"
"P&V","LEE VALLEY FARM HOLYFIELDHALL","SUPPLIES AND SERVICES","DAIRY SUNDRIES","4138","P114294-SERVICE-Dairy Sundries",7/12/2021 00:00:00,"256340",117.25,"MI0023","MILL DAIRY SERVICES",29/11/2021 00:00:00,26/12/2021 00:00:00,"P09-2022"
"P&V","LEE VALLEY FARM HOLYFIELDHALL","SUPPLIES AND SERVICES","DAIRY SUNDRIES","4138","P114294-SERVICE-Dairy Sundries",7/12/2021 00:00:00,"256341",135.07,"MI0023","MILL DAIRY SERVICES",29/11/2021 00:00:00,26/12/2021 00:00:00,"P09-2022"
"P&V","LEE VALLEY FARM HOLYFIELDHALL","SUPPLIES AND SERVICES","DAIRY SUNDRIES","4138","P115092-SERVICE-Dead Animal Removal",7/12/2021 00:00:00,"256538",54,"MA0074","W MARTIN & SON LIMITED",29/11/2021 00:00:00,26/12/2021 00:00:00,"P09-2022"
"P&V","LEE VALLEY FARM HOLYFIELDHALL","SUPPLIES AND SERVICES","DAIRY SUNDRIES","4138","P115092-SERVICE-Dead Animal Removal",16/12/2021 00:00:00,"256646",58,"MA0074","W MARTIN & SON LIMITED",29/11/2021 00:00:00,26/12/2021 00:00:00,"P09-2022"
"P&V","LEE VALLEY FARM HOLYFIELDHALL","SUPPLIES AND SERVICES","DAIRY SUNDRIES","4138","P115092-SERVICE-Dead Animal Removal",16/12/2021 00:00:00,"256887",125,"MA0074","W MARTIN & SON LIMITED",29/11/2021 00:00:00,26/12/2021 00:00:00,"P09-2022"
"P&V","LEE VALLEY FARM HOLYFIELDHALL","SUPPLIES AND SERVICES","DAIRY SUNDRIES","4138","P115092-SERVICE-Dead Animal Removal",22/12/2021 00:00:00,"257238",58,"MA0074","W MARTIN & SON LIMITED",29/11/2021 00:00:00,26/12/2021 00:00:00,"P09-2022"
"P&V","LEE VALLEY FARM HOLYFIELDHALL","SUPPLIES AND SERVICES","DAIRY SUNDRIES","4138","P114432-SERVICE-Dairy Sundries",22/12/2021 00:00:00,"257284",125.52,"FA0099","FARM & COUNTRY SUPPLIES LTD",29/11/2021 00:00:00,26/12/2021 00:00:00,"P09-2022"
"P&V","MYDDLETON HSE HERITAGE CENTRE","SUPPLIES AND SERVICES","FOOD AND DRINK PURCHASES","4140","BIDFOOD",13/12/2021 00:00:00,"256352",24.78,"360001","BIDFOOD",29/11/2021 00:00:00,26/12/2021 00:00:00,"P09-2022"
"P&V","MYDDLETON HSE HERITAGE CENTRE","SUPPLIES AND SERVICES","FOOD AND DRINK PURCHASES","4140","P115464-SERVICE-food/drinks order w.b 29.11.21",13/12/2021 00:00:00,"256352",179.06,"360001","BIDFOOD",29/11/2021 00:00:00,26/12/2021 00:00:00,"P09-2022"
"P&V","MYDDLETON HSE HERITAGE CENTRE","SUPPLIES AND SERVICES","FOOD AND DRINK PURCHASES","4140","BIDFOOD",13/12/2021 00:00:00,"256352",-179.06,"360001","BIDFOOD",29/11/2021 00:00:00,26/12/2021 00:00:00,"P09-2022"
"P&V","MYDDLETON HSE HERITAGE CENTRE","SUPPLIES AND SERVICES","FOOD AND DRINK PURCHASES","4140","BIDFOOD",13/12/2021 00:00:00,"256352",154.28,"360001","BIDFOOD",29/11/2021 00:00:00,26/12/2021 00:00:00,"P09-2022"
"P&V","MYDDLETON HSE HERITAGE CENTRE","SUPPLIES AND SERVICES","FOOD AND DRINK PURCHASES","4140","P115464-SERVICE-food/drinks order w.b 29.11.21",16/12/2021 00:00:00,"256544",-10.67,"360001","BIDFOOD",29/11/2021 00:00:00,26/12/2021 00:00:00,"P09-2022"
"P&V","MYDDLETON HSE HERITAGE CENTRE","SUPPLIES AND SERVICES","FOOD AND DRINK PURCHASES","4140","P115305-SERVICE-food/drink order w/b/ 22.11.21",16/12/2021 00:00:00,"256612",18.77,"360001","BIDFOOD",29/11/2021 00:00:00,26/12/2021 00:00:00,"P09-2022"
"P&V","MYDDLETON HSE HERITAGE CENTRE","SUPPLIES AND SERVICES","FOOD AND DRINK PURCHASES","4140","BIDFOOD",16/12/2021 00:00:00,"256612",-131.61,"360001","BIDFOOD",29/11/2021 00:00:00,26/12/2021 00:00:00,"P09-2022"
"P&V","MYDDLETON HSE HERITAGE CENTRE","SUPPLIES AND SERVICES","FOOD AND DRINK PURCHASES","4140","BIDFOOD",16/12/2021 00:00:00,"256612",113.97,"360001","BIDFOOD",29/11/2021 00:00:00,26/12/2021 00:00:00,"P09-2022"
"P&V","MYDDLETON HSE HERITAGE CENTRE","SUPPLIES AND SERVICES","FOOD AND DRINK PURCHASES","4140","BIDFOOD",16/12/2021 00:00:00,"256612",17.64,"360001","BIDFOOD",29/11/2021 00:00:00,26/12/2021 00:00:00,"P09-2022"
"P&V","MYDDLETON HSE HERITAGE CENTRE","SUPPLIES AND SERVICES","FOOD AND DRINK PURCHASES","4140","P115464-SERVICE-food/drinks order w.b 29.11.21",16/12/2021 00:00:00,"256612",131.61,"360001","BIDFOOD",29/11/2021 00:00:00,26/12/2021 00:00:00,"P09-2022"
"P&V","MYDDLETON HSE HERITAGE CENTRE","SUPPLIES AND SERVICES","FOOD AND DRINK PURCHASES","4140","P115464-SERVICE-food/drinks order w.b 29.11.21",16/12/2021 00:00:00,"256846",-5.76,"360001","BIDFOOD",29/11/2021 00:00:00,26/12/2021 00:00:00,"P09-2022"
"P&V","MYDDLETON HSE HERITAGE CENTRE","SUPPLIES AND SERVICES","FOOD AND DRINK PURCHASES","4140","P115464-SERVICE-food/drinks order w.b 29.11.21",16/12/2021 00:00:00,"256847",-41.21,"360001","BIDFOOD",29/11/2021 00:00:00,26/12/2021 00:00:00,"P09-2022"
,"LEE VALLEY VELOPARK CATERING","SUPPLIES AND SERVICES","FOOD AND DRINK PURCHASES","4140","P115396-SERVICE-Food and Drink Order",6/12/2021 00:00:00,"255971",161.39,"SI0589","SIMPLY LUNCH LTD",29/11/2021 00:00:00,26/12/2021 00:00:00,"P09-2022"
,"LEE VALLEY VELOPARK CATERING","SUPPLIES AND SERVICES","FOOD AND DRINK PURCHASES","4140","ROMBOUTS COFFEE GB LIMITED",6/12/2021 00:00:00,"256172",-58.72,"RO0216","ROMBOUTS COFFEE GB LIMITED",29/11/2021 00:00:00,26/12/2021 00:00:00,"P09-2022"
,"LEE VALLEY VELOPARK CATERING","SUPPLIES AND SERVICES","FOOD AND DRINK PURCHASES","4140","ROMBOUTS COFFEE GB LIMITED",6/12/2021 00:00:00,"256172",34.92,"RO0216","ROMBOUTS COFFEE GB LIMITED",29/11/2021 00:00:00,26/12/2021 00:00:00,"P09-2022"
,"LEE VALLEY VELOPARK CATERING","SUPPLIES AND SERVICES","FOOD AND DRINK PURCHASES","4140","P115400-SERVICE-Coffee Products",6/12/2021 00:00:00,"256172",58.72,"RO0216","ROMBOUTS COFFEE GB LIMITED",29/11/2021 00:00:00,26/12/2021 00:00:00,"P09-2022"
,"LEE VALLEY VELOPARK CATERING","SUPPLIES AND SERVICES","FOOD AND DRINK PURCHASES","4140","ROMBOUTS COFFEE GB LIMITED",6/12/2021 00:00:00,"256172",23.8,"RO0216","ROMBOUTS COFFEE GB LIMITED",29/11/2021 00:00:00,26/12/2021 00:00:00,"P09-2022"
,"LEE VALLEY VELOPARK CATERING","SUPPLIES AND SERVICES","FOOD AND DRINK PURCHASES","4140","ROMBOUTS COFFEE GB LIMITED",6/12/2021 00:00:00,"256173",517.38,"RO0216","ROMBOUTS COFFEE GB LIMITED",29/11/2021 00:00:00,26/12/2021 00:00:00,"P09-2022"
,"LEE VALLEY VELOPARK CATERING","SUPPLIES AND SERVICES","FOOD AND DRINK PURCHASES","4140","ROMBOUTS COFFEE GB LIMITED",6/12/2021 00:00:00,"256173",-1824.62,"RO0216","ROMBOUTS COFFEE GB LIMITED",29/11/2021 00:00:00,26/12/2021 00:00:00,"P09-2022"
,"LEE VALLEY VELOPARK CATERING","SUPPLIES AND SERVICES","FOOD AND DRINK PURCHASES","4140","P115401-SERVICE-Coffee Poducts",6/12/2021 00:00:00,"256173",1824.62,"RO0216","ROMBOUTS COFFEE GB LIMITED",29/11/2021 00:00:00,26/12/2021 00:00:00,"P09-2022"
,"LEE VALLEY VELOPARK CATERING","SUPPLIES AND SERVICES","FOOD AND DRINK PURCHASES","4140","ROMBOUTS COFFEE GB LIMITED",6/12/2021 00:00:00,"256173",1307.24,"RO0216","ROMBOUTS COFFEE GB LIMITED",29/11/2021 00:00:00,26/12/2021 00:00:00,"P09-2022"
,"LEE VALLEY VELOPARK CATERING","SUPPLIES AND SERVICES","FOOD AND DRINK PURCHASES","4140","P115403-SERVICE-Food and Drink Order",6/12/2021 00:00:00,"256198",942.12,"360001","BIDFOOD",29/11/2021 00:00:00,26/12/2021 00:00:00,"P09-2022"
,"LEE VALLEY VELOPARK CATERING","SUPPLIES AND SERVICES","FOOD AND DRINK PURCHASES","4140","BIDFOOD",6/12/2021 00:00:00,"256198",484.9,"360001","BIDFOOD",29/11/2021 00:00:00,26/12/2021 00:00:00,"P09-2022"
,"LEE VALLEY VELOPARK CATERING","SUPPLIES AND SERVICES","FOOD AND DRINK PURCHASES","4140","BIDFOOD",6/12/2021 00:00:00,"256198",-942.12,"360001","BIDFOOD",29/11/2021 00:00:00,26/12/2021 00:00:00,"P09-2022"
,"LEE VALLEY VELOPARK CATERING","SUPPLIES AND SERVICES","FOOD AND DRINK PURCHASES","4140","BIDFOOD",6/12/2021 00:00:00,"256198",457.22,"360001","BIDFOOD",29/11/2021 00:00:00,26/12/2021 00:00:00,"P09-2022"
,"LEE VALLEY VELOPARK CATERING","SUPPLIES AND SERVICES","FOOD AND DRINK PURCHASES","4140","BIDFOOD",6/12/2021 00:00:00,"256200",-245.55,"360001","BIDFOOD",29/11/2021 00:00:00,26/12/2021 00:00:00,"P09-2022"
,"LEE VALLEY VELOPARK CATERING","SUPPLIES AND SERVICES","FOOD AND DRINK PURCHASES","4140","BIDFOOD",6/12/2021 00:00:00,"256200",16.35,"360001","BIDFOOD",29/11/2021 00:00:00,26/12/2021 00:00:00,"P09-2022"
,"LEE VALLEY VELOPARK CATERING","SUPPLIES AND SERVICES","FOOD AND DRINK PURCHASES","4140","P115404-SERVICE-Food and Drink Order",6/12/2021 00:00:00,"256200",245.55,"360001","BIDFOOD",29/11/2021 00:00:00,26/12/2021 00:00:00,"P09-2022"
,"LEE VALLEY VELOPARK CATERING","SUPPLIES AND SERVICES","FOOD AND DRINK PURCHASES","4140","BIDFOOD",6/12/2021 00:00:00,"256200",229.2,"360001","BIDFOOD",29/11/2021 00:00:00,26/12/2021 00:00:00,"P09-2022"
,"LEE VALLEY VELOPARK CATERING","SUPPLIES AND SERVICES","FOOD AND DRINK PURCHASES","4140","P115405-SERVICE-Food and Drink Order",6/12/2021 00:00:00,"256202",192.54,"360001","BIDFOOD",29/11/2021 00:00:00,26/12/2021 00:00:00,"P09-2022"
,"LEE VALLEY VELOPARK CATERING","SUPPLIES AND SERVICES","FOOD AND DRINK PURCHASES","4140","P115406-SERVICE-Food and Drink Order",6/12/2021 00:00:00,"256231",3882.41,"360001","BIDFOOD",29/11/2021 00:00:00,26/12/2021 00:00:00,"P09-2022"
,"LEE VALLEY VELOPARK CATERING","SUPPLIES AND SERVICES","FOOD AND DRINK PURCHASES","4140","BIDFOOD",6/12/2021 00:00:00,"256231",-3882.41,"360001","BIDFOOD",29/11/2021 00:00:00,26/12/2021 00:00:00,"P09-2022"
,"LEE VALLEY VELOPARK CATERING","SUPPLIES AND SERVICES","FOOD AND DRINK PURCHASES","4140","BIDFOOD",6/12/2021 00:00:00,"256231",799.88,"360001","BIDFOOD",29/11/2021 00:00:00,26/12/2021 00:00:00,"P09-2022"
,"LEE VALLEY VELOPARK CATERING","SUPPLIES AND SERVICES","FOOD AND DRINK PURCHASES","4140","BIDFOOD",6/12/2021 00:00:00,"256231",3082.53,"360001","BIDFOOD",29/11/2021 00:00:00,26/12/2021 00:00:00,"P09-2022"
,"LEE VALLEY VELOPARK CATERING","SUPPLIES AND SERVICES","FOOD AND DRINK PURCHASES","4140","P115407-SERVICE-Food and Drink Order",6/12/2021 00:00:00,"256251",169.82,"SI0589","SIMPLY LUNCH LTD",29/11/2021 00:00:00,26/12/2021 00:00:00,"P09-2022"
,"LEE VALLEY VELOPARK CATERING","SUPPLIES AND SERVICES","FOOD AND DRINK PURCHASES","4140","BIDFOOD",6/12/2021 00:00:00,"256257",-185.01,"360001","BIDFOOD",29/11/2021 00:00:00,26/12/2021 00:00:00,"P09-2022"
,"LEE VALLEY VELOPARK CATERING","SUPPLIES AND SERVICES","FOOD AND DRINK PURCHASES","4140","P115516-SERVICE-Food and Drinks Order",6/12/2021 00:00:00,"256257",185.01,"360001","BIDFOOD",29/11/2021 00:00:00,26/12/2021 00:00:00,"P09-2022"
,"LEE VALLEY VELOPARK CATERING","SUPPLIES AND SERVICES","FOOD AND DRINK PURCHASES","4140","BIDFOOD",6/12/2021 00:00:00,"256257",108.63,"360001","BIDFOOD",29/11/2021 00:00:00,26/12/2021 00:00:00,"P09-2022"
,"LEE VALLEY VELOPARK CATERING","SUPPLIES AND SERVICES","FOOD AND DRINK PURCHASES","4140","BIDFOOD",6/12/2021 00:00:00,"256257",76.38,"360001","BIDFOOD",29/11/2021 00:00:00,26/12/2021 00:00:00,"P09-2022"
,"LEE VALLEY VELOPARK CATERING","SUPPLIES AND SERVICES","FOOD AND DRINK PURCHASES","4140","P115519-SERVICE-Food Order",6/12/2021 00:00:00,"256259",69.35,"SO0412","THE SOHO SANDWICH COMPANY",29/11/2021 00:00:00,26/12/2021 00:00:00,"P09-2022"
,"LEE VALLEY VELOPARK CATERING","SUPPLIES AND SERVICES","FOOD AND DRINK PURCHASES","4140","ROMBOUTS COFFEE GB LIMITED",6/12/2021 00:00:00,"256261",726.98,"RO0216","ROMBOUTS COFFEE GB LIMITED",29/11/2021 00:00:00,26/12/2021 00:00:00,"P09-2022"
,"LEE VALLEY VELOPARK CATERING","SUPPLIES AND SERVICES","FOOD AND DRINK PURCHASES","4140","P115520-SERVICE-Coffee Products",6/12/2021 00:00:00,"256261",870.66,"RO0216","ROMBOUTS COFFEE GB LIMITED",29/11/2021 00:00:00,26/12/2021 00:00:00,"P09-2022"
,"LEE VALLEY VELOPARK CATERING","SUPPLIES AND SERVICES","FOOD AND DRINK PURCHASES","4140","ROMBOUTS COFFEE GB LIMITED",6/12/2021 00:00:00,"256261",-870.66,"RO0216","ROMBOUTS COFFEE GB LIMITED",29/11/2021 00:00:00,26/12/2021 00:00:00,"P09-2022"
,"LEE VALLEY VELOPARK CATERING","SUPPLIES AND SERVICES","FOOD AND DRINK PURCHASES","4140","ROMBOUTS COFFEE GB LIMITED",6/12/2021 00:00:00,"256261",143.68,"RO0216","ROMBOUTS COFFEE GB LIMITED",29/11/2021 00:00:00,26/12/2021 00:00:00,"P09-2022"
,"LEE VALLEY VELOPARK CATERING","SUPPLIES AND SERVICES","FOOD AND DRINK PURCHASES","4140","P115521-SERVICE-Chocolate Order",6/12/2021 00:00:00,"256267",655,"FO0286","FORTISSIMO CHOCOLATES LTD",29/11/2021 00:00:00,26/12/2021 00:00:00,"P09-2022"
,"LEE VALLEY VELOPARK CATERING","SUPPLIES AND SERVICES","FOOD AND DRINK PURCHASES","4140","P115316-SERVICE-Syrup & Consumables",6/12/2021 00:00:00,"256316",688,"NO0023","VIMTO (OUTOF HOME)LIMITED (FRMLY THE NOISY DR",29/11/2021 00:00:00,26/12/2021 00:00:00,"P09-2022"
,"LEE VALLEY VELOPARK CATERING","SUPPLIES AND SERVICES","FOOD AND DRINK PURCHASES","4140","P115316-SERVICE-Syrup & Consumables",6/12/2021 00:00:00,"256317",22,"NO0023","VIMTO (OUTOF HOME)LIMITED (FRMLY THE NOISY DR",29/11/2021 00:00:00,26/12/2021 00:00:00,"P09-2022"
,"LEE VALLEY VELOPARK CATERING","SUPPLIES AND SERVICES","FOOD AND DRINK PURCHASES","4140","P115501-SERVICE-Food and Drinks Order",6/12/2021 00:00:00,"256318",293.08,"360001","BIDFOOD",29/11/2021 00:00:00,26/12/2021 00:00:00,"P09-2022"
,"LEE VALLEY VELOPARK CATERING","SUPPLIES AND SERVICES","FOOD AND DRINK PURCHASES","4140","BIDFOOD",6/12/2021 00:00:00,"256318",21.84,"360001","BIDFOOD",29/11/2021 00:00:00,26/12/2021 00:00:00,"P09-2022"
,"LEE VALLEY VELOPARK CATERING","SUPPLIES AND SERVICES","FOOD AND DRINK PURCHASES","4140","BIDFOOD",6/12/2021 00:00:00,"256318",271.24,"360001","BIDFOOD",29/11/2021 00:00:00,26/12/2021 00:00:00,"P09-2022"
,"LEE VALLEY VELOPARK CATERING","SUPPLIES AND SERVICES","FOOD AND DRINK PURCHASES","4140","BIDFOOD",6/12/2021 00:00:00,"256318",-293.08,"360001","BIDFOOD",29/11/2021 00:00:00,26/12/2021 00:00:00,"P09-2022"
,"LEE VALLEY VELOPARK CATERING","SUPPLIES AND SERVICES","FOOD AND DRINK PURCHASES","4140","UNNU LTD",6/12/2021 00:00:00,"256329",-744.81,"UN0081","UNNU LTD",29/11/2021 00:00:00,26/12/2021 00:00:00,"P09-2022"
,"LEE VALLEY VELOPARK CATERING","SUPPLIES AND SERVICES","FOOD AND DRINK PURCHASES","4140","UNNU LTD",6/12/2021 00:00:00,"256329",180,"UN0081","UNNU LTD",29/11/2021 00:00:00,26/12/2021 00:00:00,"P09-2022"
,"LEE VALLEY VELOPARK CATERING","SUPPLIES AND SERVICES","FOOD AND DRINK PURCHASES","4140","P115503-SERVICE-Food and Drinks Order",6/12/2021 00:00:00,"256329",744.81,"UN0081","UNNU LTD",29/11/2021 00:00:00,26/12/2021 00:00:00,"P09-2022"
,"LEE VALLEY VELOPARK CATERING","SUPPLIES AND SERVICES","FOOD AND DRINK PURCHASES","4140","UNNU LTD",6/12/2021 00:00:00,"256329",564.81,"UN0081","UNNU LTD",29/11/2021 00:00:00,26/12/2021 00:00:00,"P09-2022"
,"LEE VALLEY VELOPARK CATERING","SUPPLIES AND SERVICES","FOOD AND DRINK PURCHASES","4140","ROMBOUTS COFFEE GB LIMITED",6/12/2021 00:00:00,"256346",-356.85,"RO0216","ROMBOUTS COFFEE GB LIMITED",29/11/2021 00:00:00,26/12/2021 00:00:00,"P09-2022"
,"LEE VALLEY VELOPARK CATERING","SUPPLIES AND SERVICES","FOOD AND DRINK PURCHASES","4140","P115504-SERVICE-Coffee Products",6/12/2021 00:00:00,"256346",356.85,"RO0216","ROMBOUTS COFFEE GB LIMITED",29/11/2021 00:00:00,26/12/2021 00:00:00,"P09-2022"
,"LEE VALLEY VELOPARK CATERING","SUPPLIES AND SERVICES","FOOD AND DRINK PURCHASES","4140","ROMBOUTS COFFEE GB LIMITED",6/12/2021 00:00:00,"256346",344.1,"RO0216","ROMBOUTS COFFEE GB LIMITED",29/11/2021 00:00:00,26/12/2021 00:00:00,"P09-2022"
,"LEE VALLEY VELOPARK CATERING","SUPPLIES AND SERVICES","FOOD AND DRINK PURCHASES","4140","ROMBOUTS COFFEE GB LIMITED",6/12/2021 00:00:00,"256346",12.75,"RO0216","ROMBOUTS COFFEE GB LIMITED",29/11/2021 00:00:00,26/12/2021 00:00:00,"P09-2022"
,"LEE VALLEY VELOPARK CATERING","SUPPLIES AND SERVICES","FOOD AND DRINK PURCHASES","4140","BIDFOOD",6/12/2021 00:00:00,"256350",645.2,"360001","BIDFOOD",29/11/2021 00:00:00,26/12/2021 00:00:00,"P09-2022"
,"LEE VALLEY VELOPARK CATERING","SUPPLIES AND SERVICES","FOOD AND DRINK PURCHASES","4140","P115508-SERVICE-Food and Drinks Order",6/12/2021 00:00:00,"256350",802.6,"360001","BIDFOOD",29/11/2021 00:00:00,26/12/2021 00:00:00,"P09-2022"
,"LEE VALLEY VELOPARK CATERING","SUPPLIES AND SERVICES","FOOD AND DRINK PURCHASES","4140","BIDFOOD",6/12/2021 00:00:00,"256350",-802.6,"360001","BIDFOOD",29/11/2021 00:00:00,26/12/2021 00:00:00,"P09-2022"
,"LEE VALLEY VELOPARK CATERING","SUPPLIES AND SERVICES","FOOD AND DRINK PURCHASES","4140","BIDFOOD",6/12/2021 00:00:00,"256350",157.4,"360001","BIDFOOD",29/11/2021 00:00:00,26/12/2021 00:00:00,"P09-2022"
,"LEE VALLEY VELOPARK CATERING","SUPPLIES AND SERVICES","FOOD AND DRINK PURCHASES","4140","P115749-SERVICE-Food and Drink Order",20/12/2021 00:00:00,"256351",381.66,"360001","BIDFOOD",29/11/2021 00:00:00,26/12/2021 00:00:00,"P09-2022"
,"LEE VALLEY VELOPARK CATERING","SUPPLIES AND SERVICES","FOOD AND DRINK PURCHASES","4140","BIDFOOD",6/12/2021 00:00:00,"256486",1122.09,"360001","BIDFOOD",29/11/2021 00:00:00,26/12/2021 00:00:00,"P09-2022"
,"LEE VALLEY VELOPARK CATERING","SUPPLIES AND SERVICES","FOOD AND DRINK PURCHASES","4140","BIDFOOD",6/12/2021 00:00:00,"256486",340.29,"360001","BIDFOOD",29/11/2021 00:00:00,26/12/2021 00:00:00,"P09-2022"
,"LEE VALLEY VELOPARK CATERING","SUPPLIES AND SERVICES","FOOD AND DRINK PURCHASES","4140","BIDFOOD",6/12/2021 00:00:00,"256486",-1462.38,"360001","BIDFOOD",29/11/2021 00:00:00,26/12/2021 00:00:00,"P09-2022"
,"LEE VALLEY VELOPARK CATERING","SUPPLIES AND SERVICES","FOOD AND DRINK PURCHASES","4140","P115512-SERVICE-Food and Drinks Order",6/12/2021 00:00:00,"256486",1462.38,"360001","BIDFOOD",29/11/2021 00:00:00,26/12/2021 00:00:00,"P09-2022"
,"LEE VALLEY VELOPARK CATERING","SUPPLIES AND SERVICES","FOOD AND DRINK PURCHASES","4140","P115514-SERVICE-Food Order",6/12/2021 00:00:00,"256493",345,"PE0356","PETERS FOOD SERVICE LTD",29/11/2021 00:00:00,26/12/2021 00:00:00,"P09-2022"
,"LEE VALLEY VELOPARK CATERING","SUPPLIES AND SERVICES","FOOD AND DRINK PURCHASES","4140","P115543-SERVICE-Coffee Products",16/12/2021 00:00:00,"256495",81,"RO0216","ROMBOUTS COFFEE GB LIMITED",29/11/2021 00:00:00,26/12/2021 00:00:00,"P09-2022"
,"LEE VALLEY VELOPARK CATERING","SUPPLIES AND SERVICES","FOOD AND DRINK PURCHASES","4140","BIDFOOD",20/12/2021 00:00:00,"256517",-2216.69,"360001","BIDFOOD",29/11/2021 00:00:00,26/12/2021 00:00:00,"P09-2022"
,"LEE VALLEY VELOPARK CATERING","SUPPLIES AND SERVICES","FOOD AND DRINK PURCHASES","4140","P115750-SERVICE-Food and Drink Order",20/12/2021 00:00:00,"256517",2216.69,"360001","BIDFOOD",29/11/2021 00:00:00,26/12/2021 00:00:00,"P09-2022"
,"LEE VALLEY VELOPARK CATERING","SUPPLIES AND SERVICES","FOOD AND DRINK PURCHASES","4140","BIDFOOD",20/12/2021 00:00:00,"256517",2027.67,"360001","BIDFOOD",29/11/2021 00:00:00,26/12/2021 00:00:00,"P09-2022"
,"LEE VALLEY VELOPARK CATERING","SUPPLIES AND SERVICES","FOOD AND DRINK PURCHASES","4140","BIDFOOD",20/12/2021 00:00:00,"256517",234.02,"360001","BIDFOOD",29/11/2021 00:00:00,26/12/2021 00:00:00,"P09-2022"
,"LEE VALLEY VELOPARK CATERING","SUPPLIES AND SERVICES","FOOD AND DRINK PURCHASES","4140","P115760-SERVICE-Food and Drink Order",20/12/2021 00:00:00,"256614",1714.32,"SI0589","SIMPLY LUNCH LTD",29/11/2021 00:00:00,26/12/2021 00:00:00,"P09-2022"
,"LEE VALLEY VELOPARK CATERING","SUPPLIES AND SERVICES","FOOD AND DRINK PURCHASES","4140","P115772-SERVICE-Food Order",20/12/2021 00:00:00,"256648",620.61,"PE0356","PETERS FOOD SERVICE LTD",29/11/2021 00:00:00,26/12/2021 00:00:00,"P09-2022"
,"LEE VALLEY VELOPARK CATERING","SUPPLIES AND SERVICES","FOOD AND DRINK PURCHASES","4140","P115520-SERVICE-Coffee Products",13/12/2021 00:00:00,"256885",-408.6,"RO0216","ROMBOUTS COFFEE GB LIMITED",29/11/2021 00:00:00,26/12/2021 00:00:00,"P09-2022"
,"LEE VALLEY VELOPARK CATERING","SUPPLIES AND SERVICES","FOOD AND DRINK PURCHASES","4140","P115769-SERVICE-Contract Catering",20/12/2021 00:00:00,"256886",485.45,"SH0256","SHARRONS EVENT CATERING COMPANY LTD",29/11/2021 00:00:00,26/12/2021 00:00:00,"P09-2022"
,"LEE VALLEY VELOPARK CATERING","SUPPLIES AND SERVICES","FOOD AND DRINK PURCHASES","4140","P115839-SERVICE-Food Order",26/12/2021 00:00:00,"256947",92.87,"SO0412","THE SOHO SANDWICH COMPANY",29/11/2021 00:00:00,26/12/2021 00:00:00,"P09-2022"
,"LEE VALLEY VELOPARK CATERING","SUPPLIES AND SERVICES","FOOD AND DRINK PURCHASES","4140","P115838-SERVICE-Food Order",26/12/2021 00:00:00,"256948",92.4,"SI0589","SIMPLY LUNCH LTD",29/11/2021 00:00:00,26/12/2021 00:00:00,"P09-2022"
,"LEE VALLEY VELOPARK CATERING","SUPPLIES AND SERVICES","FOOD AND DRINK PURCHASES","4140","TASTEBUDS VENDING LI MITED",20/12/2021 00:00:00,"257129",468,"TA0272","TASTEBUDS VENDING LI MITED",29/11/2021 00:00:00,26/12/2021 00:00:00,"P09-2022"
,"LEE VALLEY VELOPARK CATERING","SUPPLIES AND SERVICES","FOOD AND DRINK PURCHASES","4140","TASTEBUDS VENDING LI MITED",20/12/2021 00:00:00,"257129",-483,"TA0272","TASTEBUDS VENDING LI MITED",29/11/2021 00:00:00,26/12/2021 00:00:00,"P09-2022"
,"LEE VALLEY VELOPARK CATERING","SUPPLIES AND SERVICES","FOOD AND DRINK PURCHASES","4140","TASTEBUDS VENDING LI MITED",20/12/2021 00:00:00,"257129",15,"TA0272","TASTEBUDS VENDING LI MITED",29/11/2021 00:00:00,26/12/2021 00:00:00,"P09-2022"
,"LEE VALLEY VELOPARK CATERING","SUPPLIES AND SERVICES","FOOD AND DRINK PURCHASES","4140","P115774-SERVICE-Vending Machine",20/12/2021 00:00:00,"257129",483,"TA0272","TASTEBUDS VENDING LI MITED",29/11/2021 00:00:00,26/12/2021 00:00:00,"P09-2022"
,"LEE VALLEY VELOPARK CATERING","SUPPLIES AND SERVICES","FOOD AND DRINK PURCHASES","4140","P115841-SERVICE-Food and Drink Order",26/12/2021 00:00:00,"257223",153.56,"360001","BIDFOOD",29/11/2021 00:00:00,26/12/2021 00:00:00,"P09-2022"
,"LEE VALLEY VELOPARK CATERING","SUPPLIES AND SERVICES","FOOD AND DRINK PURCHASES","4140","P115841-SERVICE-Food and Drink Order",26/12/2021 00:00:00,"257224",-3.64,"360001","BIDFOOD",29/11/2021 00:00:00,26/12/2021 00:00:00,"P09-2022"
,"LV HOCKEY AND TENNIS CATERING","SUPPLIES AND SERVICES","FOOD AND DRINK PURCHASES","4140","P114249-SERVICE-food and drink",1/12/2021 00:00:00,"255770",802.6,"360001","BIDFOOD",29/11/2021 00:00:00,26/12/2021 00:00:00,"P09-2022"
,"LV HOCKEY AND TENNIS CATERING","SUPPLIES AND SERVICES","FOOD AND DRINK PURCHASES","4140","P114249-SERVICE-food and drink orders",1/12/2021 00:00:00,"255770",252.32,"360001","BIDFOOD",29/11/2021 00:00:00,26/12/2021 00:00:00,"P09-2022"
,"LV HOCKEY AND TENNIS CATERING","SUPPLIES AND SERVICES","FOOD AND DRINK PURCHASES","4140","P114249-SERVICE-food and drink",1/12/2021 00:00:00,"256199",808.9,"360001","BIDFOOD",29/11/2021 00:00:00,26/12/2021 00:00:00,"P09-2022"
,"LV HOCKEY AND TENNIS CATERING","SUPPLIES AND SERVICES","FOOD AND DRINK PURCHASES","4140","P114249-SERVICE-food and drink orders",1/12/2021 00:00:00,"256199",389.36,"360001","BIDFOOD",29/11/2021 00:00:00,26/12/2021 00:00:00,"P09-2022"
,"LV HOCKEY AND TENNIS CATERING","SUPPLIES AND SERVICES","FOOD AND DRINK PURCHASES","4140","BIDFOOD",21/12/2021 00:00:00,"256353",97.58,"360001","BIDFOOD",29/11/2021 00:00:00,26/12/2021 00:00:00,"P09-2022"
,"LV HOCKEY AND TENNIS CATERING","SUPPLIES AND SERVICES","FOOD AND DRINK PURCHASES","4140","BIDFOOD",21/12/2021 00:00:00,"256353",-320.24,"360001","BIDFOOD",29/11/2021 00:00:00,26/12/2021 00:00:00,"P09-2022"
,"LV HOCKEY AND TENNIS CATERING","SUPPLIES AND SERVICES","FOOD AND DRINK PURCHASES","4140","BIDFOOD",21/12/2021 00:00:00,"256353",222.66,"360001","BIDFOOD",29/11/2021 00:00:00,26/12/2021 00:00:00,"P09-2022"
,"LV HOCKEY AND TENNIS CATERING","SUPPLIES AND SERVICES","FOOD AND DRINK PURCHASES","4140","P114249-SERVICE-food and drink",21/12/2021 00:00:00,"256353",320.24,"360001","BIDFOOD",29/11/2021 00:00:00,26/12/2021 00:00:00,"P09-2022"
,"LV WHITE WATER CATERING","SUPPLIES AND SERVICES","FOOD AND DRINK PURCHASES","4140","P115178-SERVICE-kitchen food",1/12/2021 00:00:00,"255953",300,"360001","BIDFOOD",29/11/2021 00:00:00,26/12/2021 00:00:00,"P09-2022"
,"LV WHITE WATER CATERING","SUPPLIES AND SERVICES","FOOD AND DRINK PURCHASES","4140","P115137-SERVICE-front of house",1/12/2021 00:00:00,"255953",39.75,"360001","BIDFOOD",29/11/2021 00:00:00,26/12/2021 00:00:00,"P09-2022"
,"LV WHITE WATER CATERING","SUPPLIES AND SERVICES","FOOD AND DRINK PURCHASES","4140","P115302-SERVICE-kitchen food",1/12/2021 00:00:00,"255953",58.72,"360001","BIDFOOD",29/11/2021 00:00:00,26/12/2021 00:00:00,"P09-2022"
,"LV WHITE WATER CATERING","SUPPLIES AND SERVICES","FOOD AND DRINK PURCHASES","4140","P115096-SERVICE-kitchen food",1/12/2021 00:00:00,"255953",34.35,"360001","BIDFOOD",29/11/2021 00:00:00,26/12/2021 00:00:00,"P09-2022"
,"LV WHITE WATER CATERING","SUPPLIES AND SERVICES","FOOD AND DRINK PURCHASES","4140","P114984-SERVICE-froont of house food",1/12/2021 00:00:00,"255953",17.35,"360001","BIDFOOD",29/11/2021 00:00:00,26/12/2021 00:00:00,"P09-2022"
,"LV WHITE WATER CATERING","SUPPLIES AND SERVICES","FOOD AND DRINK PURCHASES","4140","P115095-SERVICE-fruit & veg",6/12/2021 00:00:00,"256004",93.84,"PA0362","P A SPARKS & SONS LTD",29/11/2021 00:00:00,26/12/2021 00:00:00,"P09-2022"
,"LV WHITE WATER CATERING","SUPPLIES AND SERVICES","FOOD AND DRINK PURCHASES","4140","P115178-SERVICE-kitchen food",1/12/2021 00:00:00,"256203",-31.92,"360001","BIDFOOD",29/11/2021 00:00:00,26/12/2021 00:00:00,"P09-2022"
,"LV WHITE WATER CATERING","SUPPLIES AND SERVICES","FOOD AND DRINK PURCHASES","4140","P115302-SERVICE-kitchen food",1/12/2021 00:00:00,"256244",341.28,"360001","BIDFOOD",29/11/2021 00:00:00,26/12/2021 00:00:00,"P09-2022"
,"LV WHITE WATER CATERING","SUPPLIES AND SERVICES","FOOD AND DRINK PURCHASES","4140","BIDFOOD",1/12/2021 00:00:00,"256244",-341.28,"360001","BIDFOOD",29/11/2021 00:00:00,26/12/2021 00:00:00,"P09-2022"
,"LV WHITE WATER CATERING","SUPPLIES AND SERVICES","FOOD AND DRINK PURCHASES","4140","BIDFOOD",1/12/2021 00:00:00,"256244",321,"360001","BIDFOOD",29/11/2021 00:00:00,26/12/2021 00:00:00,"P09-2022"
,"LV WHITE WATER CATERING","SUPPLIES AND SERVICES","FOOD AND DRINK PURCHASES","4140","BIDFOOD",1/12/2021 00:00:00,"256244",20.28,"360001","BIDFOOD",29/11/2021 00:00:00,26/12/2021 00:00:00,"P09-2022"
,"LV WHITE WATER CATERING","SUPPLIES AND SERVICES","FOOD AND DRINK PURCHASES","4140","P115622-SERVICE-coffee",13/12/2021 00:00:00,"256270",125.85,"RO0216","ROMBOUTS COFFEE GB LIMITED",29/11/2021 00:00:00,26/12/2021 00:00:00,"P09-2022"
,"LV WHITE WATER CATERING","SUPPLIES AND SERVICES","FOOD AND DRINK PURCHASES","4140","P115099-SERVICE-sandwiches we 071121",6/12/2021 00:00:00,"256297",259.25,"AN0324","ANCHOR CATERING",29/11/2021 00:00:00,26/12/2021 00:00:00,"P09-2022"
,"LV WHITE WATER CATERING","SUPPLIES AND SERVICES","FOOD AND DRINK PURCHASES","4140","BIDFOOD",13/12/2021 00:00:00,"256518",468.64,"360001","BIDFOOD",29/11/2021 00:00:00,26/12/2021 00:00:00,"P09-2022"
,"LV WHITE WATER CATERING","SUPPLIES AND SERVICES","FOOD AND DRINK PURCHASES","4140","BIDFOOD",13/12/2021 00:00:00,"256518",166.15,"360001","BIDFOOD",29/11/2021 00:00:00,26/12/2021 00:00:00,"P09-2022"
,"LV WHITE WATER CATERING","SUPPLIES AND SERVICES","FOOD AND DRINK PURCHASES","4140","BIDFOOD",13/12/2021 00:00:00,"256518",-634.79,"360001","BIDFOOD",29/11/2021 00:00:00,26/12/2021 00:00:00,"P09-2022"
,"LV WHITE WATER CATERING","SUPPLIES AND SERVICES","FOOD AND DRINK PURCHASES","4140","P115602-SERVICE-kitchen food",13/12/2021 00:00:00,"256518",634.79,"360001","BIDFOOD",29/11/2021 00:00:00,26/12/2021 00:00:00,"P09-2022"
,"LV WHITE WATER CATERING","SUPPLIES AND SERVICES","FOOD AND DRINK PURCHASES","4140","P115302-SERVICE-kitchen food",13/12/2021 00:00:00,"256519",-262.98,"360001","BIDFOOD",29/11/2021 00:00:00,26/12/2021 00:00:00,"P09-2022"
,"LV WHITE WATER CATERING","SUPPLIES AND SERVICES","FOOD AND DRINK PURCHASES","4140","P115623-SERVICE-cakes",13/12/2021 00:00:00,"256542",220.13,"360001","BIDFOOD",29/11/2021 00:00:00,26/12/2021 00:00:00,"P09-2022"
,"LV WHITE WATER CATERING","SUPPLIES AND SERVICES","FOOD AND DRINK PURCHASES","4140","P115621-SERVICE-cups",13/12/2021 00:00:00,"256554",225.07,"CA0585","CAFE CONNECTIONS",29/11/2021 00:00:00,26/12/2021 00:00:00,"P09-2022"
,"LV WHITE WATER CATERING","SUPPLIES AND SERVICES","FOOD AND DRINK PURCHASES","4140","P115340-SERVICE-sandwiches wc 29/11/21",8/12/2021 00:00:00,"256639",218.6,"AN0324","ANCHOR CATERING",29/11/2021 00:00:00,26/12/2021 00:00:00,"P09-2022"
,"LV WHITE WATER CATERING","SUPPLIES AND SERVICES","FOOD AND DRINK PURCHASES","4140","P114835-SERVICE-Catering for BC - 2nd Nov 25 x 9.95",13/12/2021 00:00:00,"256677",248.75,"SH0256","SHARRONS EVENT CATERING COMPANY LTD",29/11/2021 00:00:00,26/12/2021 00:00:00,"P09-2022"
,"LV WHITE WATER CATERING","SUPPLIES AND SERVICES","FOOD AND DRINK PURCHASES","4140","P114835-SERVICE-Catering for BC - 1st Nov 25 x 9.95",13/12/2021 00:00:00,"256677",248.75,"SH0256","SHARRONS EVENT CATERING COMPANY LTD",29/11/2021 00:00:00,26/12/2021 00:00:00,"P09-2022"
,"LV WHITE WATER CATERING","SUPPLIES AND SERVICES","FOOD AND DRINK PURCHASES","4140","P115624-SERVICE-kitchern foodm09112",13/12/2021 00:00:00,"256845",244.32,"360001","BIDFOOD",29/11/2021 00:00:00,26/12/2021 00:00:00,"P09-2022"
,"LV WHITE WATER CATERING","SUPPLIES AND SERVICES","FOOD AND DRINK PURCHASES","4140","P115706-SERVICE-coffee",20/12/2021 00:00:00,"257168",204.3,"RO0216","ROMBOUTS COFFEE GB LIMITED",29/11/2021 00:00:00,26/12/2021 00:00:00,"P09-2022"
,"LEE VALLEY CARAVAN PARK","SUPPLIES AND SERVICES","MISCELLANEOUS CARAVAN COSTS","4174","P115448-SERVICE-HH121 Double and single sockets - Willerby",14/12/2021 00:00:00,"256335",40.5,"PI0333","PIONEER CARAVANS",29/11/2021 00:00:00,26/12/2021 00:00:00,"P09-2022"
,"LEE VALLEY CARAVAN PARK","SUPPLIES AND SERVICES","MISCELLANEOUS CARAVAN COSTS","4174","P114486-SERVICE-Willerby - Socket Replacements x 18",7/12/2021 00:00:00,"256572",720,"BR0018","BRADSHAW ELECTRICAL LIMITED",29/11/2021 00:00:00,26/12/2021 00:00:00,"P09-2022"
,"LEE VALLEY CARAVAN PARK","SUPPLIES AND SERVICES","CONSUMABLES - LODGES","4181","P115525-SERVICE-Repair TV cable in The Country",7/12/2021 00:00:00,"256540",95,"AS0343","ASCENT AERIALS",29/11/2021 00:00:00,26/12/2021 00:00:00,"P09-2022"
,"LEE VALLEY MARINA STANSTEAD","SUPPLIES AND SERVICES","CLOTHING & UNIFORMS","4225","P114888-SERVICE-uniforms replacing returned stuff + additions",13/12/2021 00:00:00,"256674",167.5,"DI0017","DIRECT BOOT & SHOE SUPPLIES",29/11/2021 00:00:00,26/12/2021 00:00:00,"P09-2022"
,"LEE VALLEY MARINA STANSTEAD","SUPPLIES AND SERVICES","CLOTHING & UNIFORMS","4225","P115172-SERVICE-2 x replacement shoes (credit note DB66458)",13/12/2021 00:00:00,"256675",111.95,"DI0017","DIRECT BOOT & SHOE SUPPLIES",29/11/2021 00:00:00,26/12/2021 00:00:00,"P09-2022"
,"LEE VALLEY CAMPSITE","SUPPLIES AND SERVICES","CLOTHING & UNIFORMS","4225","P115551-SERVICE-GA Trousers",14/12/2021 00:00:00,"256824",58.24,"AM0406","AMAZON PAYMENTS UK LIMITED",29/11/2021 00:00:00,26/12/2021 00:00:00,"P09-2022"
"P&V","POLICY & PERFORMANCE (L&E)","SUPPLIES AND SERVICES","CLOTHING & UNIFORMS","4225","P115204-SERVICE-Embrodiery of uniform",14/12/2021 00:00:00,"255969",37.89,"DI0017","DIRECT BOOT & SHOE SUPPLIES",29/11/2021 00:00:00,26/12/2021 00:00:00,"P09-2022"
,"LV LEISURE CENTRE GOLF COURSE","SUPPLIES AND SERVICES","CLOTHING & UNIFORMS","4225","P115550-SERVICE-GA Trousers",14/12/2021 00:00:00,"256823",58.24,"AM0406","AMAZON PAYMENTS UK LIMITED",29/11/2021 00:00:00,26/12/2021 00:00:00,"P09-2022"
,"LEE VALLEY WHITE WATER CENTRE","SUPPLIES AND SERVICES","CLOTHING & UNIFORMS","4225","P115591-SERVICE-Trousers for Activities Team",15/12/2021 00:00:00,"256840",274.8,"AM0406","AMAZON PAYMENTS UK LIMITED",29/11/2021 00:00:00,26/12/2021 00:00:00,"P09-2022"
,"LEE VALLEY WHITE WATER CENTRE","SUPPLIES AND SERVICES","CLOTHING & UNIFORMS","4225","P115591-SERVICE-Trousers for Activities Team",20/12/2021 00:00:00,"256971",27.47,"AM0406","AMAZON PAYMENTS UK LIMITED",29/11/2021 00:00:00,26/12/2021 00:00:00,"P09-2022"
,"LEE VALLEY WHITE WATER CENTRE","SUPPLIES AND SERVICES","CLOTHING & UNIFORMS","4225","P115591-SERVICE-Trousers for Activities Team",20/12/2021 00:00:00,"256992",23.35,"AM0406","AMAZON PAYMENTS UK LIMITED",29/11/2021 00:00:00,26/12/2021 00:00:00,"P09-2022"
,"LEE VALLEY WHITE WATER CENTRE","SUPPLIES AND SERVICES","CLOTHING & UNIFORMS","4225","P115591-SERVICE-Trousers for Activities Team",20/12/2021 00:00:00,"257122",-27.47,"AM0406","AMAZON PAYMENTS UK LIMITED",29/11/2021 00:00:00,26/12/2021 00:00:00,"P09-2022"
"CEO","CHIEF EXECUTIVE","SUPPLIES AND SERVICES","OFFICE EXPENSES","4311","P115531-SERVICE-2 x HPCH562EE Black Cartridges",13/12/2021 00:00:00,"256685",36.94,"TH0008","JKL SOLUTIONS LTD",29/11/2021 00:00:00,26/12/2021 00:00:00,"P09-2022"
"CEO","CHIEF EXECUTIVE","SUPPLIES AND SERVICES","OFFICE EXPENSES","4311","P115531-SERVICE-2 x HPCH562EE Colour Cartridges",13/12/2021 00:00:00,"256685",38.88,"TH0008","JKL SOLUTIONS LTD",29/11/2021 00:00:00,26/12/2021 00:00:00,"P09-2022"
,"LEE VALLEY MARINA STANSTEAD","SUPPLIES AND SERVICES","OFFICE EXPENSES","4311","P114974-SERVICE-JKL stationery replacing first aid box items",6/12/2021 00:00:00,"256339",-26.89,"TH0008","JKL SOLUTIONS LTD",29/11/2021 00:00:00,26/12/2021 00:00:00,"P09-2022"
,"LEE VALLEY CAMPSITE","SUPPLIES AND SERVICES","OFFICE EXPENSES","4311","P115787-SERVICE-Clear Punch pockets",20/12/2021 00:00:00,"256991",10.52,"TH0008","JKL SOLUTIONS LTD",29/11/2021 00:00:00,26/12/2021 00:00:00,"P09-2022"
,"LEE VALLEY CARAVAN PARK","SUPPLIES AND SERVICES","OFFICE EXPENSES","4311","P115500-SERVICE-Stocktake",6/12/2021 00:00:00,"256367",133,"VE0038","VENNERS LTD",29/11/2021 00:00:00,26/12/2021 00:00:00,"P09-2022"
,"LEE VALLEY CARAVAN PARK","SUPPLIES AND SERVICES","OFFICE EXPENSES","4311","P115537-SERVICE-Stationery",26/12/2021 00:00:00,"257486",23.51,"TH0008","JKL SOLUTIONS LTD",29/11/2021 00:00:00,26/12/2021 00:00:00,"P09-2022"
"P&V","RIVER LEE COUNTRY PARK","SUPPLIES AND SERVICES","OFFICE EXPENSES","4311","P114862-SERVICE-1x Maxima Green Toilet Tissue 320 Sheet (Pk 3",14/12/2021 00:00:00,"256552",13.77,"TH0008","JKL SOLUTIONS LTD",29/11/2021 00:00:00,26/12/2021 00:00:00,"P09-2022"
"P&V","RIVER LEE COUNTRY PARK","SUPPLIES AND SERVICES","OFFICE EXPENSES","4311","P114862-SERVICE-1x ValueX Peelable Whiteboard Eraser - 85716A",14/12/2021 00:00:00,"256552",4.5,"TH0008","JKL SOLUTIONS LTD",29/11/2021 00:00:00,26/12/2021 00:00:00,"P09-2022"
"P&V","RIVER LEE COUNTRY PARK","SUPPLIES AND SERVICES","OFFICE EXPENSES","4311","P114862-SERVICE-3x Deflecto Clear A4 Wall Sign Holder Portrai",14/12/2021 00:00:00,"256552",14.22,"TH0008","JKL SOLUTIONS LTD",29/11/2021 00:00:00,26/12/2021 00:00:00,"P09-2022"
"P&V","RIVER LEE COUNTRY PARK","SUPPLIES AND SERVICES","OFFICE EXPENSES","4311","P114862-SERVICE-1x A4 Laminating Pouch 250 Micron (100 Pack)",14/12/2021 00:00:00,"256552",18.7,"TH0008","JKL SOLUTIONS LTD",29/11/2021 00:00:00,26/12/2021 00:00:00,"P09-2022"
"P&V","RIVER LEE COUNTRY PARK","SUPPLIES AND SERVICES","OFFICE EXPENSES","4311","P114862-SERVICE-1x Carex Antibacterial Handwash 250ml - CPD34",14/12/2021 00:00:00,"256552",10.95,"TH0008","JKL SOLUTIONS LTD",29/11/2021 00:00:00,26/12/2021 00:00:00,"P09-2022"
"P&V","RIVER LEE COUNTRY PARK","SUPPLIES AND SERVICES","OFFICE EXPENSES","4311","P114862-SERVICE-1x Disposable Protective Face Mask 3 Ply Blue",14/12/2021 00:00:00,"256552",9.99,"TH0008","JKL SOLUTIONS LTD",29/11/2021 00:00:00,26/12/2021 00:00:00,"P09-2022"
"P&V","RIVER LEE COUNTRY PARK","SUPPLIES AND SERVICES","OFFICE EXPENSES","4311","P114862-SERVICE-2x Microfibre Cloths Blue Pack of 10 - PS8511",14/12/2021 00:00:00,"256552",19.5,"TH0008","JKL SOLUTIONS LTD",29/11/2021 00:00:00,26/12/2021 00:00:00,"P09-2022"
"P&V","RIVER LEE COUNTRY PARK","SUPPLIES AND SERVICES","OFFICE EXPENSES","4311","P114862-SERVICE-1x Vinyl Glove Size XL Box 100 - GLOVEXL100",14/12/2021 00:00:00,"256552",9.99,"TH0008","JKL SOLUTIONS LTD",29/11/2021 00:00:00,26/12/2021 00:00:00,"P09-2022"
"P&V","RIVER LEE COUNTRY PARK","SUPPLIES AND SERVICES","OFFICE EXPENSES","4311","P114862-SERVICE-1x 2Work Antibacterial Sanitiser Spray 750ml",14/12/2021 00:00:00,"256552",13.25,"TH0008","JKL SOLUTIONS LTD",29/11/2021 00:00:00,26/12/2021 00:00:00,"P09-2022"
"P&V","RIVER LEE COUNTRY PARK","SUPPLIES AND SERVICES","OFFICE EXPENSES","4311","P114862-SERVICE-1x Fellowes Saturn 3i A3 Laminator 5736101 -",14/12/2021 00:00:00,"256552",103.93,"TH0008","JKL SOLUTIONS LTD",29/11/2021 00:00:00,26/12/2021 00:00:00,"P09-2022"
"P&V","RIVER LEE COUNTRY PARK","SUPPLIES AND SERVICES","OFFICE EXPENSES","4311","P114862-SERVICE-1x Key Fobs Assorted (100 Pack) - KF10869",14/12/2021 00:00:00,"256596",11.7,"TH0008","JKL SOLUTIONS LTD",29/11/2021 00:00:00,26/12/2021 00:00:00,"P09-2022"
,"LEE VALLEY VELOPARK","SUPPLIES AND SERVICES","OFFICE EXPENSES","4311","P115381-SERVICE-Paper Order",6/12/2021 00:00:00,"256326",99.78,"TH0008","JKL SOLUTIONS LTD",29/11/2021 00:00:00,26/12/2021 00:00:00,"P09-2022"
,"LV HOCKEY AND TENNIS CENTRE","SUPPLIES AND SERVICES","OFFICE EXPENSES","4311","P114265-SERVICE-sterile dressing medium",13/12/2021 00:00:00,"256684",3.61,"TH0008","JKL SOLUTIONS LTD",29/11/2021 00:00:00,26/12/2021 00:00:00,"P09-2022"
,"LV HOCKEY AND TENNIS CENTRE","SUPPLIES AND SERVICES","OFFICE EXPENSES","4311","P114265-SERVICE-sticky notes x 4",13/12/2021 00:00:00,"256684",7.16,"TH0008","JKL SOLUTIONS LTD",29/11/2021 00:00:00,26/12/2021 00:00:00,"P09-2022"
,"LV HOCKEY AND TENNIS CENTRE","SUPPLIES AND SERVICES","OFFICE EXPENSES","4311","P114265-SERVICE-laminating pouch",13/12/2021 00:00:00,"256684",14.17,"TH0008","JKL SOLUTIONS LTD",29/11/2021 00:00:00,26/12/2021 00:00:00,"P09-2022"
,"LV HOCKEY AND TENNIS CENTRE","SUPPLIES AND SERVICES","OFFICE EXPENSES","4311","P114265-SERVICE-executive pad",13/12/2021 00:00:00,"256684",14.33,"TH0008","JKL SOLUTIONS LTD",29/11/2021 00:00:00,26/12/2021 00:00:00,"P09-2022"
,"LV HOCKEY AND TENNIS CENTRE","SUPPLIES AND SERVICES","OFFICE EXPENSES","4311","P115197-SERVICE-d bright colours x2 23922",13/12/2021 00:00:00,"256877",0.25,"EA0385","EASTERN SHIRE PURCHASING ORGANISATION (ESPO)",29/11/2021 00:00:00,26/12/2021 00:00:00,"P09-2022"
,"LV HOCKEY AND TENNIS CENTRE","SUPPLIES AND SERVICES","OFFICE EXPENSES","4311","P115197-SERVICE-A5/wilo x2 219738",13/12/2021 00:00:00,"256877",17,"EA0385","EASTERN SHIRE PURCHASING ORGANISATION (ESPO)",29/11/2021 00:00:00,26/12/2021 00:00:00,"P09-2022"
,"LV HOCKEY AND TENNIS CENTRE","SUPPLIES AND SERVICES","OFFICE EXPENSES","4311","P115197-SERVICE-post it index tabs",13/12/2021 00:00:00,"256877",3.65,"EA0385","EASTERN SHIRE PURCHASING ORGANISATION (ESPO)",29/11/2021 00:00:00,26/12/2021 00:00:00,"P09-2022"
,"LV HOCKEY AND TENNIS CENTRE","SUPPLIES AND SERVICES","OFFICE EXPENSES","4311","P115197-SERVICE-burn relief gel 214442`",13/12/2021 00:00:00,"256877",6.55,"EA0385","EASTERN SHIRE PURCHASING ORGANISATION (ESPO)",29/11/2021 00:00:00,26/12/2021 00:00:00,"P09-2022"
,"LV HOCKEY AND TENNIS CENTRE","SUPPLIES AND SERVICES","OFFICE EXPENSES","4311","P115197-SERVICE-blue detectable tape 02658",13/12/2021 00:00:00,"256877",1.3,"EA0385","EASTERN SHIRE PURCHASING ORGANISATION (ESPO)",29/11/2021 00:00:00,26/12/2021 00:00:00,"P09-2022"
,"LV HOCKEY AND TENNIS CENTRE","SUPPLIES AND SERVICES","OFFICE EXPENSES","4311","P115197-SERVICE-medium dressing bandage x20 81612",13/12/2021 00:00:00,"256877",10,"EA0385","EASTERN SHIRE PURCHASING ORGANISATION (ESPO)",29/11/2021 00:00:00,26/12/2021 00:00:00,"P09-2022"
,"LV HOCKEY AND TENNIS CENTRE","SUPPLIES AND SERVICES","OFFICE EXPENSES","4311","P115197-SERVICE-large dressing bandage x15 81302",13/12/2021 00:00:00,"256877",15.75,"EA0385","EASTERN SHIRE PURCHASING ORGANISATION (ESPO)",29/11/2021 00:00:00,26/12/2021 00:00:00,"P09-2022"
,"LV HOCKEY AND TENNIS CENTRE","SUPPLIES AND SERVICES","OFFICE EXPENSES","4311","P114666-SERVICE-delivery",20/12/2021 00:00:00,"256955",15,"TH0267","THAMES CARD TECHNOLOGY LIMITED",29/11/2021 00:00:00,26/12/2021 00:00:00,"P09-2022"
,"LV HOCKEY AND TENNIS CENTRE","SUPPLIES AND SERVICES","OFFICE EXPENSES","4311","P114666-SERVICE-1000 membership cards",20/12/2021 00:00:00,"256955",411.17,"TH0267","THAMES CARD TECHNOLOGY LIMITED",29/11/2021 00:00:00,26/12/2021 00:00:00,"P09-2022"
,"LV HOCKEY AND TENNIS CENTRE","SUPPLIES AND SERVICES","OFFICE EXPENSES","4311","P115756-SERVICE-prestige termal roll 57 x 38x12 4 boxes",22/12/2021 00:00:00,"257262",66.04,"TH0008","JKL SOLUTIONS LTD",29/11/2021 00:00:00,26/12/2021 00:00:00,"P09-2022"
,"LV HOCKEY AND TENNIS CENTRE","SUPPLIES AND SERVICES","OFFICE EXPENSES","4311","P115317-SERVICE-stationary order",22/12/2021 00:00:00,"257272",29,"EA0385","EASTERN SHIRE PURCHASING ORGANISATION (ESPO)",29/11/2021 00:00:00,26/12/2021 00:00:00,"P09-2022"
,"LEE VALLEY RIDING CENTRE","SUPPLIES AND SERVICES","OFFICE EXPENSES","4311","P115190-SERVICE-wallace cameronassorted wash proof plastersx2",22/12/2021 00:00:00,"257296",12.76,"TH0008","JKL SOLUTIONS LTD",29/11/2021 00:00:00,26/12/2021 00:00:00,"P09-2022"
,"LEE VALLEY RIDING CENTRE","SUPPLIES AND SERVICES","OFFICE EXPENSES","4311","P115190-SERVICE-valueX magnetic whiteboard aluminum trim",22/12/2021 00:00:00,"257296",33.5,"TH0008","JKL SOLUTIONS LTD",29/11/2021 00:00:00,26/12/2021 00:00:00,"P09-2022"
,"LEE VALLEY RIDING CENTRE","SUPPLIES AND SERVICES","OFFICE EXPENSES","4311","P115190-SERVICE-valueX diary A5 blue day per pagex7",22/12/2021 00:00:00,"257296",1,"TH0008","JKL SOLUTIONS LTD",29/11/2021 00:00:00,26/12/2021 00:00:00,"P09-2022"
,"LEE VALLEY RIDING CENTRE","SUPPLIES AND SERVICES","OFFICE EXPENSES","4311","P115190-SERVICE-rexel no 23 staples 13mm pack of 1000",22/12/2021 00:00:00,"257296",4.84,"TH0008","JKL SOLUTIONS LTD",29/11/2021 00:00:00,26/12/2021 00:00:00,"P09-2022"
,"LEE VALLEY RIDING CENTRE","SUPPLIES AND SERVICES","OFFICE EXPENSES","4311","P115190-SERVICE-discovery A4 white paper pack 2500 x 2",22/12/2021 00:00:00,"257296",35.36,"TH0008","JKL SOLUTIONS LTD",29/11/2021 00:00:00,26/12/2021 00:00:00,"P09-2022"
,"LEE VALLEY RIDING CENTRE","SUPPLIES AND SERVICES","OFFICE EXPENSES","4311","P115190-SERVICE-purely protect wet floor sign free standingx3",22/12/2021 00:00:00,"257296",20.4,"TH0008","JKL SOLUTIONS LTD",29/11/2021 00:00:00,26/12/2021 00:00:00,"P09-2022"
,"LEE VALLEY ATHLETICS CENTRE","SUPPLIES AND SERVICES","OFFICE EXPENSES","4311","P115444-SERVICE-LVAC CARD NOS",6/12/2021 00:00:00,"255975",140.89,"ST0184","STACY & SON",29/11/2021 00:00:00,26/12/2021 00:00:00,"P09-2022"
,"LEE VALLEY ATHLETICS CENTRE","SUPPLIES AND SERVICES","OFFICE EXPENSES","4311","P115582-SERVICE-DELIVERY",13/12/2021 00:00:00,"256681",11,"JC0052","JC LEISURE CONNEXIONS LTD",29/11/2021 00:00:00,26/12/2021 00:00:00,"P09-2022"
,"LEE VALLEY ATHLETICS CENTRE","SUPPLIES AND SERVICES","OFFICE EXPENSES","4311","P115582-SERVICE-4000 WRISTBANDS . TELEPHONED ORDER 7.12.21",13/12/2021 00:00:00,"256681",140,"JC0052","JC LEISURE CONNEXIONS LTD",29/11/2021 00:00:00,26/12/2021 00:00:00,"P09-2022"
,"LEE VALLEY ATHLETICS CENTRE","SUPPLIES AND SERVICES","OFFICE EXPENSES","4311","P115691-SERVICE-LVAC ONLINE REF",26/12/2021 00:00:00,"257153",151,"TH0008","JKL SOLUTIONS LTD",29/11/2021 00:00:00,26/12/2021 00:00:00,"P09-2022"
"R&B","INFORMATION TECHNOLOGY","SUPPLIES AND SERVICES","PHOTOCOPYING","4314","KONICA MINOLTA BUSINESS SOLUTI",15/12/2021 00:00:00,"256714",255.88,"KO0071","KONICA MINOLTA BUSINESS SOLUTIONS ( UK) LTD",29/11/2021 00:00:00,26/12/2021 00:00:00,"P09-2022"
"R&B","INFORMATION TECHNOLOGY","SUPPLIES AND SERVICES","PHOTOCOPYING","4314","KONICA MINOLTA BUSINESS SOLUTI",21/12/2021 00:00:00,"257233",1566.78,"KO0071","KONICA MINOLTA BUSINESS SOLUTIONS ( UK) LTD",29/11/2021 00:00:00,26/12/2021 00:00:00,"P09-2022"
,"LSC INFORMATION TECHNOLOGY","SUPPLIES AND SERVICES","PHOTOCOPYING","4314","ANNODATA LTD",6/12/2021 00:00:00,"256323",1151.6,"AN0466","ANNODATA LTD",29/11/2021 00:00:00,26/12/2021 00:00:00,"P09-2022"
,"LSC INFORMATION TECHNOLOGY","SUPPLIES AND SERVICES","PHOTOCOPYING","4314","ANNODATA LTD",15/12/2021 00:00:00,"256852",680.59,"AN0466","ANNODATA LTD",29/11/2021 00:00:00,26/12/2021 00:00:00,"P09-2022"
"P&V","LEE VALLEY FARM HOLYFIELDHALL","SUPPLIES AND SERVICES","SUBSCRIPTIONS","4334","P115091-SERVICE-Subs",16/12/2021 00:00:00,"256645",360.94,"NA0005","NATIONAL MILK RECORDS PLC",29/11/2021 00:00:00,26/12/2021 00:00:00,"P09-2022"
"R&B","REVENUE SUSPENSE (AUTHORITY)","SUPPLIES AND SERVICES","TELEPHONES (MOBILE)","4484","GAMMA TELECOM LTD",15/12/2021 00:00:00,"256810",698.1,"GA0432","GAMMA TELECOM LTD",29/11/2021 00:00:00,26/12/2021 00:00:00,"P09-2022"
"P&V","ALMOST WILD CAMPSITE","SUPPLIES AND SERVICES","MARKETING","4603","P115332-SERVICE-Marketing",6/12/2021 00:00:00,"256337",125,"WA0063","WARNERS GROUP PUBLICATIONS PLC",29/11/2021 00:00:00,26/12/2021 00:00:00,"P09-2022"
,"LEE VALLEY VELOPARK","SUPPLIES AND SERVICES","MARKETING","4603","P115773-SERVICE-Lamppost Banners",20/12/2021 00:00:00,"256861",1900,"LT0386","LTD LTD",29/11/2021 00:00:00,26/12/2021 00:00:00,"P09-2022"
,"LV LEISURE CENTRE CAMPSITE","SUPPLIES AND SERVICES","MARKETING","4603","P114474-SERVICE-marketing",14/12/2021 00:00:00,"256899",458.28,"VI0109","VISIT ENGLAND ASSESSMENT SERVICES",29/11/2021 00:00:00,26/12/2021 00:00:00,"P09-2022"
,"LV LEISURE CENTRE GOLF COURSE","SUPPLIES AND SERVICES","MARKETING","4603","P115052-SERVICE-x4 enhanced listings and solus",14/12/2021 00:00:00,"256333",600,"SP0668","SPACE MARKETING",29/11/2021 00:00:00,26/12/2021 00:00:00,"P09-2022"
"P&V","NORTH AREA RANGERS","SUPPLIES AND SERVICES","PEST CONTROL","4625","P111749-SERVICE-Pest Control - Ware Town Centre",6/12/2021 00:00:00,"255488",53.34,"VE0006","VERMINATE CITY & RURAL PEST CONTROL LTD",29/11/2021 00:00:00,26/12/2021 00:00:00,"P09-2022"
"P&V","RIVER LEE COUNTRY PARK","SUPPLIES AND SERVICES","PEST CONTROL","4625","P111748-SERVICE-Pest Control - North Sites",6/12/2021 00:00:00,"255490",200,"VE0006","VERMINATE CITY & RURAL PEST CONTROL LTD",29/11/2021 00:00:00,26/12/2021 00:00:00,"P09-2022"
,"LEE VALLEY MARINA SPRINGFIELD","SUPPLIES AND SERVICES","MERCHANT PROCESSING CHARGES","4641","WORLDPAY",6/12/2021 00:00:00,"255714",15,"WO0338","WORLDPAY",29/11/2021 00:00:00,26/12/2021 00:00:00,"P09-2022"
,"LEE VALLEY MARINA STANSTEAD","SUPPLIES AND SERVICES","MERCHANT PROCESSING CHARGES","4641","WORLDPAY",6/12/2021 00:00:00,"255714",15,"WO0338","WORLDPAY",29/11/2021 00:00:00,26/12/2021 00:00:00,"P09-2022"
,"LEE VALLEY MARINA STANSTEAD","SUPPLIES AND SERVICES","SECURITY","4650","P114492-SERVICE-exrta for invoice",14/12/2021 00:00:00,"254955",65.78,"AI0262","AIS ( ADVANCED INTEGRATED SECURITY)",29/11/2021 00:00:00,26/12/2021 00:00:00,"P09-2022"
,"LEE VALLEY MARINA STANSTEAD","SUPPLIES AND SERVICES","SECURITY","4650","P114492-SERVICE-paxton fobs",14/12/2021 00:00:00,"254955",68.74,"AI0262","AIS ( ADVANCED INTEGRATED SECURITY)",29/11/2021 00:00:00,26/12/2021 00:00:00,"P09-2022"
,"LEE VALLEY MARINA STANSTEAD","SUPPLIES AND SERVICES","SECURITY","4650","P114492-SERVICE-exrta for invoice",14/12/2021 00:00:00,"256853",-65.78,"AI0262","AIS ( ADVANCED INTEGRATED SECURITY)",29/11/2021 00:00:00,26/12/2021 00:00:00,"P09-2022"
,"LEE VALLEY CAMPSITE","SUPPLIES AND SERVICES","SECURITY","4650","P114466-SERVICE-CCTV supply & Install",13/12/2021 00:00:00,"256680",1062.5,"DE0013","DENNIS SECURITY CENTRE",29/11/2021 00:00:00,26/12/2021 00:00:00,"P09-2022"
,"LV LEISURE CENTRE CAMPSITE","SUPPLIES AND SERVICES","SECURITY","4650","P112417-SERVICE-Disabled toilet repairs",13/12/2021 00:00:00,"256628",95,"RV0035","RVTV SECURITY GROUP LTD",29/11/2021 00:00:00,26/12/2021 00:00:00,"P09-2022"
,"LV LEISURE CENTRE CAMPSITE","SUPPLIES AND SERVICES","SECURITY","4650","P115671-SERVICE-Call out",15/12/2021 00:00:00,"256826",39.95,"RV0035","RVTV SECURITY GROUP LTD",29/11/2021 00:00:00,26/12/2021 00:00:00,"P09-2022"
"CEO","PR/COMMUNICATIONS","SUPPLIES AND SERVICES","ONLINE ADVERTISING","4657","P115642-SERVICE-Christmas gift voucher campaign",16/12/2021 00:00:00,"256664",7151.5,"ME0325","HONCHOM INTERNATIONAL LIMITED",29/11/2021 00:00:00,26/12/2021 00:00:00,"P09-2022"
"CEO","PR/COMMUNICATIONS","SUPPLIES AND SERVICES","ARTWORK","4664","P115206-SERVICE-QEOP credentials - Nov 2021",14/12/2021 00:00:00,"256890",532,"BL0393","BLUE SEA DESIGN",29/11/2021 00:00:00,26/12/2021 00:00:00,"P09-2022"
"R&B","PERFORMANCE MANAGEMENT","SUPPLIES AND SERVICES","OFFSITE ARCHIVED STORAGE","4667","P115564-SERVICE-Off Site Archiving October 2021",14/12/2021 00:00:00,"255501",310.39,"DA0154","RESTORE PLC",29/11/2021 00:00:00,26/12/2021 00:00:00,"P09-2022"
"R&B","PERFORMANCE MANAGEMENT","SUPPLIES AND SERVICES","OFFSITE ARCHIVED STORAGE","4667","P115656-SERVICE-Off Site Archive November 2021",16/12/2021 00:00:00,"256641",345.38,"DA0154","RESTORE PLC",29/11/2021 00:00:00,26/12/2021 00:00:00,"P09-2022"
,"LEE VALLEY CARAVAN PARK","SUPPLIES AND SERVICES","ENTERTAINMENT & OTHER LICENCES","4711","P115573-SERVICE-TV Licence",15/12/2021 00:00:00,"256571",318,"TV0065","TV LICENSING",29/11/2021 00:00:00,26/12/2021 00:00:00,"P09-2022"
,"LV WHITE WATER CATERING","SUPPLIES AND SERVICES","ENTERTAINMENT & OTHER LICENCES","4711","P115541-SERVICE-licencee main restuarant",13/12/2021 00:00:00,"254758",350,"BR0016","BOROUGH OF BROXBOURNE",29/11/2021 00:00:00,26/12/2021 00:00:00,"P09-2022"
"P&V","LEE VALLEY FARM HOLYFIELDHALL","THIRD PARTY PAYMENTS","VETERINARY SERVICES","4718","P115738-SERVICE-Vets",20/12/2021 00:00:00,"256872",3045.72,"HA0443","HAMPDEN VETERINARY HOSPITAL",29/11/2021 00:00:00,26/12/2021 00:00:00,"P09-2022"
,"LEE VALLEY RIDING CENTRE","THIRD PARTY PAYMENTS","VETERINARY SERVICES","4718","P112168-SERVICE-vet services April 2021 onwards",21/12/2021 00:00:00,"256930",156.69,"BA0566","BALLINGER EQUINE LTD",29/11/2021 00:00:00,26/12/2021 00:00:00,"P09-2022"
,"LEE VALLEY RIDING CENTRE","THIRD PARTY PAYMENTS","VETERINARY SERVICES","4718","P112168-SERVICE-vet services April 2021 onwards",21/12/2021 00:00:00,"256931",505.21,"BA0566","BALLINGER EQUINE LTD",29/11/2021 00:00:00,26/12/2021 00:00:00,"P09-2022"
,"LEE VALLEY RIDING CENTRE","THIRD PARTY PAYMENTS","VETERINARY SERVICES","4718","P112168-SERVICE-vet services April 2021 onwards",21/12/2021 00:00:00,"256932",36.66,"BA0566","BALLINGER EQUINE LTD",29/11/2021 00:00:00,26/12/2021 00:00:00,"P09-2022"
,"LEE VALLEY RIDING CENTRE","THIRD PARTY PAYMENTS","VETERINARY SERVICES","4718","P112168-SERVICE-vet services April 2021 onwards",21/12/2021 00:00:00,"256933",854.28,"BA0566","BALLINGER EQUINE LTD",29/11/2021 00:00:00,26/12/2021 00:00:00,"P09-2022"
,"LEE VALLEY RIDING CENTRE","THIRD PARTY PAYMENTS","VETERINARY SERVICES","4718","P112168-SERVICE-vet services",21/12/2021 00:00:00,"256933",941.22,"BA0566","BALLINGER EQUINE LTD",29/11/2021 00:00:00,26/12/2021 00:00:00,"P09-2022"
,"LEE VALLEY RIDING CENTRE","THIRD PARTY PAYMENTS","VETERINARY SERVICES","4718","P112168-SERVICE-vet services",21/12/2021 00:00:00,"256934",184.47,"BA0566","BALLINGER EQUINE LTD",29/11/2021 00:00:00,26/12/2021 00:00:00,"P09-2022"
,"LEE VALLEY RIDING CENTRE","THIRD PARTY PAYMENTS","VETERINARY SERVICES","4718","P112168-SERVICE-vet services",21/12/2021 00:00:00,"256935",244.19,"BA0566","BALLINGER EQUINE LTD",29/11/2021 00:00:00,26/12/2021 00:00:00,"P09-2022"
,"LEE VALLEY RIDING CENTRE","THIRD PARTY PAYMENTS","VETERINARY SERVICES","4718","P112168-SERVICE-vet services",21/12/2021 00:00:00,"256936",145.52,"BA0566","BALLINGER EQUINE LTD",29/11/2021 00:00:00,26/12/2021 00:00:00,"P09-2022"
,"LEE VALLEY RIDING CENTRE","THIRD PARTY PAYMENTS","VETERINARY SERVICES","4718","P112168-SERVICE-vet services",21/12/2021 00:00:00,"256937",446.58,"BA0566","BALLINGER EQUINE LTD",29/11/2021 00:00:00,26/12/2021 00:00:00,"P09-2022"
,"LEE VALLEY RIDING CENTRE","THIRD PARTY PAYMENTS","VETERINARY SERVICES","4718","P112168-SERVICE-vet services",21/12/2021 00:00:00,"256938",36.5,"BA0566","BALLINGER EQUINE LTD",29/11/2021 00:00:00,26/12/2021 00:00:00,"P09-2022"
,"LEE VALLEY RIDING CENTRE","THIRD PARTY PAYMENTS","VETERINARY SERVICES","4718","P112168-SERVICE-vet services",21/12/2021 00:00:00,"256939",345.61,"BA0566","BALLINGER EQUINE LTD",29/11/2021 00:00:00,26/12/2021 00:00:00,"P09-2022"
,"LEE VALLEY RIDING CENTRE","THIRD PARTY PAYMENTS","FARRIER","4719","P112202-SERVICE-farrier services",21/12/2021 00:00:00,"256961",355,"CO0061","L COLLINS",29/11/2021 00:00:00,26/12/2021 00:00:00,"P09-2022"
,"LEE VALLEY RIDING CENTRE","THIRD PARTY PAYMENTS","FARRIER","4719","P112202-SERVICE-farrier services",21/12/2021 00:00:00,"256962",320,"CO0061","L COLLINS",29/11/2021 00:00:00,26/12/2021 00:00:00,"P09-2022"
,"LEE VALLEY RIDING CENTRE","THIRD PARTY PAYMENTS","FARRIER","4719","P112202-SERVICE-farrier services",21/12/2021 00:00:00,"256963",200,"CO0061","L COLLINS",29/11/2021 00:00:00,26/12/2021 00:00:00,"P09-2022"
,"LEE VALLEY RIDING CENTRE","THIRD PARTY PAYMENTS","FARRIER","4719","P112202-SERVICE-farrier",21/12/2021 00:00:00,"256963",275,"CO0061","L COLLINS",29/11/2021 00:00:00,26/12/2021 00:00:00,"P09-2022"
,"LEE VALLEY RIDING CENTRE","THIRD PARTY PAYMENTS","FARRIER","4719","P112202-SERVICE-farrier",21/12/2021 00:00:00,"256964",405,"CO0061","L COLLINS",29/11/2021 00:00:00,26/12/2021 00:00:00,"P09-2022"
,"LEE VALLEY RIDING CENTRE","THIRD PARTY PAYMENTS","FARRIER","4719","P112202-SERVICE-farrier",21/12/2021 00:00:00,"256965",300,"CO0061","L COLLINS",29/11/2021 00:00:00,26/12/2021 00:00:00,"P09-2022"
,"LEE VALLEY RIDING CENTRE","THIRD PARTY PAYMENTS","SADDLER","4720","P112557-SERVICE-saddler fees",14/12/2021 00:00:00,"256306",500,"IN0088","INGATESTONE SADDLERY CENTRE LTD",29/11/2021 00:00:00,26/12/2021 00:00:00,"P09-2022"
,"LEE VALLEY RIDING CENTRE","THIRD PARTY PAYMENTS","SADDLER","4720","P112557-SERVICE-new saddle",14/12/2021 00:00:00,"256306",391.67,"IN0088","INGATESTONE SADDLERY CENTRE LTD",29/11/2021 00:00:00,26/12/2021 00:00:00,"P09-2022"
,"LEE VALLEY RIDING CENTRE","THIRD PARTY PAYMENTS","SADDLER","4720","P115422-SERVICE-saddler fee",20/12/2021 00:00:00,"256940",169.17,"IN0088","INGATESTONE SADDLERY CENTRE LTD",29/11/2021 00:00:00,26/12/2021 00:00:00,"P09-2022"
,"LEE VALLEY VELOPARK","SUPPLIES AND SERVICES","EVENTS","4724","P115240-SERVICE-ZoneFlex R510, Qty 5, unit price 385.00",8/12/2021 00:00:00,"255983",1925,"CC0711","CCS MEDIA LIMITED",29/11/2021 00:00:00,26/12/2021 00:00:00,"P09-2022"
,"LEE VALLEY VELOPARK","SUPPLIES AND SERVICES","EVENTS","4724","P115240-SERVICE-AP management license, Qty 5, Unt price 55.0",8/12/2021 00:00:00,"255983",275,"CC0711","CCS MEDIA LIMITED",29/11/2021 00:00:00,26/12/2021 00:00:00,"P09-2022"
,"LEE VALLEY VELOPARK","SUPPLIES AND SERVICES","EVENTS","4724","P115385-SERVICE-UCI Track Security",6/12/2021 00:00:00,"256252",40000,"WI0227","WISE SECURITY SERVICES",29/11/2021 00:00:00,26/12/2021 00:00:00,"P09-2022"
,"LEE VALLEY VELOPARK","SUPPLIES AND SERVICES","EVENTS","4724","P115298-SERVICE-AP MANAGEMENT LICENCE",8/12/2021 00:00:00,"256303",165,"CC0711","CCS MEDIA LIMITED",29/11/2021 00:00:00,26/12/2021 00:00:00,"P09-2022"
,"LEE VALLEY VELOPARK","SUPPLIES AND SERVICES","EVENTS","4724","P115298-SERVICE-Carriage total",8/12/2021 00:00:00,"256303",10,"CC0711","CCS MEDIA LIMITED",29/11/2021 00:00:00,26/12/2021 00:00:00,"P09-2022"
,"LEE VALLEY VELOPARK","SUPPLIES AND SERVICES","EVENTS","4724","P115298-SERVICE-Quote ref 6024707 - Ruckus ZoneFlex T610 Dual",8/12/2021 00:00:00,"256303",3750,"CC0711","CCS MEDIA LIMITED",29/11/2021 00:00:00,26/12/2021 00:00:00,"P09-2022"
,"LEE VALLEY VELOPARK","SUPPLIES AND SERVICES","EVENTS","4724","P115371-SERVICE-Outdoor mounting kit, 180 degree angle compat",7/12/2021 00:00:00,"256534",198,"CC0711","CCS MEDIA LIMITED",29/11/2021 00:00:00,26/12/2021 00:00:00,"P09-2022"
,"LEE VALLEY VELOPARK","SUPPLIES AND SERVICES","EVENTS","4724","P114764-SERVICE-Contract Cleaning Event",15/12/2021 00:00:00,"256816",5204.5,"JA0178","JAK JAK LTD",29/11/2021 00:00:00,26/12/2021 00:00:00,"P09-2022"
,"LEE VALLEY VELOPARK","SUPPLIES AND SERVICES","EVENTS","4724","P115614-SERVICE-Justification & Onsite Support",20/12/2021 00:00:00,"256878",5840,"EX0288","USEFUL SIMPLE GROUP LTD",29/11/2021 00:00:00,26/12/2021 00:00:00,"P09-2022"
,"LEE VALLEY VELOPARK","SUPPLIES AND SERVICES","EVENTS","4724","P115474-SERVICE-Additional MEWP Hire",22/12/2021 00:00:00,"256929",1580,"RE0094","REACT 2 IT (BUILDING & REFURBISHMENT) LTD",29/11/2021 00:00:00,26/12/2021 00:00:00,"P09-2022"
,"LEE VALLEY VELOPARK CATERING","SUPPLIES AND SERVICES","EVENTS","4724","P115843-SERVICE-Event Catering UCI",26/12/2021 00:00:00,"257313",5805.5,"SH0256","SHARRONS EVENT CATERING COMPANY LTD",29/11/2021 00:00:00,26/12/2021 00:00:00,"P09-2022"
"P&V","YOUTH AND SCHOOLS","SUPPLIES AND SERVICES","FACILITIES HIRE","4752","P115806-SERVICE-AF classroom hire Sept-Dec 21",26/12/2021 00:00:00,"257282",1178.83,"WA0108","WALTHAM ABBEY PAROCHIAL CHURCH COUNCIL",29/11/2021 00:00:00,26/12/2021 00:00:00,"P09-2022"
,"LEE VALLEY VELOPARK CATERING","SUPPLIES AND SERVICES","CATERING PURCHASES (CORPORATE)","4772","P115398-SERVICE-Event Catering",6/12/2021 00:00:00,"256166",500.5,"SH0256","SHARRONS EVENT CATERING COMPANY LTD",29/11/2021 00:00:00,26/12/2021 00:00:00,"P09-2022"
,"LEE VALLEY VELOPARK CATERING","SUPPLIES AND SERVICES","CATERING PURCHASES (CORPORATE)","4772","P115399-SERVICE-Event Catering",6/12/2021 00:00:00,"256167",321.25,"SH0256","SHARRONS EVENT CATERING COMPANY LTD",29/11/2021 00:00:00,26/12/2021 00:00:00,"P09-2022"
"P&V","MYDDLETON HSE HERITAGE CENTRE","SUPPLIES AND SERVICES","NET CATERING PURCHASES","4777","P115200-SERVICE-Coffee order Nov 2021",7/12/2021 00:00:00,"256588",108,"TU0194","TUDOR TEA & COFFEE",29/11/2021 00:00:00,26/12/2021 00:00:00,"P09-2022"
,"LEE VALLEY ATHLETICS CENTRE","SUPPLIES AND SERVICES","NET CATERING PURCHASES","4777","P115696-SERVICE-LVAC OFFICIALS LUNCH -  DEC OPEN",15/12/2021 00:00:00,"256613",76.35,"SI0589","SIMPLY LUNCH LTD",29/11/2021 00:00:00,26/12/2021 00:00:00,"P09-2022"
"P&V","MYDDELTON HOUSE","SUPPLIES AND SERVICES","TRADING AC - EXTERNAL PURCHASE","4875","P115053-SERVICE-Coronet Semi skimmed milk capsule UHT 120x12m",16/12/2021 00:00:00,"256611",7,"360001","BIDFOOD",29/11/2021 00:00:00,26/12/2021 00:00:00,"P09-2022"
"P&V","MYDDELTON HOUSE","SUPPLIES AND SERVICES","TRADING AC - EXTERNAL PURCHASE","4875","P115053-SERVICE-Box Assorted Biscuits (20028",16/12/2021 00:00:00,"256611",9.59,"360001","BIDFOOD",29/11/2021 00:00:00,26/12/2021 00:00:00,"P09-2022"
